Workbook

Sheet Utilitaire (hidden)
A3: A | B3: Mot de passe: | C3: !1320PACC | D3: Fiche verrouillée: | E3: Oui - diffusion en ligne
B4: Fiche validée: | C4: Oui | D4: Fiche générée: | E4: Générée
B5: GES attendu: | D5: Est-ce que le pop-up "validation" s'affiche: | E5: Générée
B6: Feuille accueil complètement remplie: | C6: Oui | D6: Exercice de suivi: | E6: 2020-10-01 | F6: Date de l'exercice: | G6: 2022-03-31
B7: Statut action: | C7: =Accueil!D58 -> en cours | F7: Année Courante | G7: 2022-2023
B8: Feuille Utilitaire visible: | C8: Non | D8: Titre des Onglets: | E8: Plan pour une économie verte 2030
B9: Dernière ligne de la zone de défilement de l'onglet détail des projets: | C9: 350
B10: nombre d'indicateurs approuvés: | C10: =COUNT(Indicateurs!E25:E45) -> 0
B11: Secteur: | C11: PMO
B12: Numéro de séquence de l'action: | C12: 1042.0101 | D12: Remplir la section Évaluation requis : | E12: =IF(Utilitaire!C7=I21,"Oui",IF(C7=I23,"Oui","Non")) -> Non | F12: Première ligne masquée dans l'onglet Indicateurs : | G12: 164
B13: Première ligne masquée dans l'onglet Description: | C13: 74 | D13: Affiche onglet Évaluation: | E13: Non | F13: Première ligne masquée dans l'onglet Évaluation: | G13: 51
B15: Listes Déroulantes
B16: Onglet "Détail des projets" | G16: Onglet "Indicateurs" | H16: DRFM COF | I16: Accueil | N16: Administration
B17: Région Administrative | C17: Statut | D17: Classification | E17: Type d'émissions | F17: Info GES | G17: Type d'indicateur | H17: Exercice de suivi | I17: Statut de l'action | J17: Programmes | K17: Fiche verrouillée | N17: Reccommandation
B18: Sans objet | C18: AC-Actif | D18: Subvention | E18: Québec | F18: Oui | G18: Minimum à atteindre | H18: 2013-2014-1 | I18: non démarrée | J18: Sans objet | K18: Oui - partenaire | N18: Arrêter l'action
B19: Plusieurs régions | C19: TE-Terminé | D19: Contrat fonctionnement | E19: Hors-Québec | F19: Non | G19: Maximum à ne pas dépasser | H19: 2013-2014-2 | I19: en élaboration | J19: Action-climat | K19: Oui - diffusion en ligne | N19: Diminuer le budget de l'action
B20: Toutes les régions | C20: AT-En attente | D20: Contrat immobilisation | E20: Non quantifiable | G20: Binaire | H20: 2014-2015-1 | I20: en cours | J20: Aide financière au développement des transports actifs dans les périmètres urbains (TAPU) | K20: Non - BGFV | N20: Maintenir le budget de l'action
B21: 01-Bas-Saint-Laurent | C21: SU-Suspendu | D21: CP-Contrat service professionnel | H21: 2014-2015-2 | I21: terminée | J21: Analyses de risques - municipalités | N21: Augmenter le budget de l'action
B22: 02-Saguenay- Lac-Saint-Jean | C22: AN-Annulé | D22: CT-Contrat service technique | H22: 2015-2016-1 | I22: en suspens | J22: Cadre pour la prévention des sinistres
B23: 03-Capitale-Nationale | C23: AB-Abandonnée | D23: PI-Projet à l'interne | F23: PMO - FECC | H23: 2015-2016-2 | I23: Retirée du PMO | J23: Chauffez vert | N23: Niv dépense
B24: 04-Mauricie | C24: Aucun frais d'administration | D24: AU-Autre | F24: PMO - hors FECC | G24: Étape | H24: 2016-2017-1 | J24: ClimatSol-Plus | N24: Moins d'un mois | P24: Oui
B25: 05-Estrie | F25: PMO - FECC et hors FECC | G25: Acquisition de connaissances | H25: 2016-2017-2 | J25: Écocamionnage | K25: Commentaires | N25: de un à 2 mois | P25: Non
B26: 06-Montréal | G26: Planification de la mise en œuvre | H26: 2017-2018-1 | J26: ÉcoPerformance | K26: Accueil | N26: de 3 à 4 mois | P26: Incertain
B27: 07-Outaouais | C27: Projet en lien avec le transport | D27: Horizon temporel Potentiel GES | F27: Catégories | G27: Implantation de solutions | H27: 2017-2018-2 | J27: Mesure d’aide pour la décarbonisation du secteur industriel québécois | K27: Description | N27: de 5 à 6 mois
B28: 08-Abitibi-Témiscamingue | C28: Oui | D28: À la fin du projet (suite au dernier versement) | F28: Agriculture | G28: Suivi et évaluation | H28: 2018-2019-1 | J28: Programme bioénergie | K28: Détail des projets | N28: de 7 à 12 mois
B29: 09-Côte-Nord | C29: Non | D29: Cinq ans après la commercialisation du produit | F29: Aménagement du territoire | G29: Démarche intégrée | H29: 2018-2019-2 | I29: Part de financement par le PACC | J29: Programme d’aide gouvernementale à l’amélioration de l’efficacité du transport maritime, aérien et ferroviaire (PETMAF) | K29: GES
B30: 10-Nord-du-Québec | D30: Dix ans après la commercialisation du produit | F30: Bâtiment | H30: 2019-2020-1 | I30: Variable | J30: Programme d’extension du réseau triphasé | K30: Indicateurs
B31: 11-Gaspésie-Iles-de-la-Madeleine | D31: 2030 | F31: Biodiversité, écosystèmes et ressources naturelles | H31: 2019-2020-2 | I31: =10 & " %" -> 10 % | J31: Programme d’intégration du matériau bois dans la construction . | K31: Validation | N31: Documents de mise en œuvre de l'action
B32: 12-Chaudières-Appalaches | D32: 2040 | F32: Industrie | H32: 2020-2021-1 | I32: =20 & " %" -> 20 % | J32: Programme d'aide au développement du transport collectif (PADTC) - offre de services | K32: Tout - autres
B33: 13-Laval | D33: 2050 | F33: Matières résiduelles | H33: 2020-2021-2 | I33: =30 & " %" -> 30 % | J33: Programme d'aide gouvernementale au transport collectif des personnes (PAGTCP) - immobilisation | N33: Document de planification du déroulement de l'action
B34: 14-Lanaudière | F34: Production d'énergie | H34: 2021-2022-1 | I34: =40 & " %" -> 40 % | J34: Programme d'aide gouvernementale au transport collectif des personnes (PAGTCP) - Volet Électrification des autobus urbains | N34: Cadre normatif, guide d'appel de projets et documents afférents
B35: 15-Laurentides | F35: Résidentiel, commercial et institutionnel | G35: Ajustements | H35: 2021-2022-2 | I35: =50 & " %" -> 50 % | J35: Programme d'appui aux entreprises dans la mise en place du télétravail | K35: Onglet Évaluation | N35: Description de projet
B36: 16-Montérégie | F36: Transport | G36: Biodiversité et écosystèmes | H36: 2022-2023-1 | I36: =60 & " %" -> 60 % | J36: Programme de résilience et d'adaptation face aux inondations | K36: Type de document | N36: Indicateurs et cibles
B37: 17-Centre-du-Québec | F37: Autres | G37: Communautés (santé-sécurité) | H37: 2022-2023-2 | I37: =70 & " %" -> 70 % | J37: Programme de soutien à l’implantation de bornes dans les résidences, les entreprises et sur le réseau routier - Borne sur rue | K37: Cadre d'évaluation
B38: À l'extérieur du Québec | G38: Économie | H38: 2023-2024-1 | I38: =80 & " %" -> 80 % | J38: Programme de soutien à la modernisation de l’industrie du taxi (PSMITT) | K38: Cadre de suivi d'évaluation préliminaire | N38: Cadre de suivi et d'évaluation préliminaire
G39: Infrastructures | H39: 2023-2024-2 | I39: =90 & " %" -> 90 % | J39: Programme de soutien à la production de gaz naturel renouvelable, à son injection ou à sa connexion au réseau de distribution de gaz naturel (PSPGNR)2 | K39: Rapport d'évaluation | N39: Cadre d'évaluation
B40: Onglet "Description" | G40: Autres | I40: =100 & " %" -> 100 % | J40: Programme de soutien au déploiement des autobus scolaires électriques au Qc (PSDASEQ) | K40: Résultats | N40: Rapport d'évaluation
B41: Bénéficiaires | C41: État d'avancement | D41: Moyens | E41: Finalité | F41: COVID | J41: Programme de soutien au déploiement des autobus urbains et privés électriques - Écobus | N41: Le bilan
B42: Citoyens | C42: Nouvelle | D42: Savoir (Adaptation) | E42: Atténuer les changements climatiques | F42: Aucun changement prévu | J42: Programme des nouvelles mobilités (NOMO) | K42: Type d'évaluation
B43: Communautés autochtones | C43: En cours | D43: Savoir (GES) | E43: Construire l'économie de demain | F43: Diminution des coûts prévus | J43: Programme d'innovation en construction bois | K43: En cours d'action
B44: Entreprises (grandes entreprises) | C44: Complétée | D44: S'outiller (Adaptation) | E44: Renforcer la résilience du Québec face aux impacts des changements climatiques | F44: Augmentation des coûts prévus | J44: Programme Innovation | K44: Lorsque l'action est terminée
B45: Entreprises (grands émetteurs) | C45: Inactive | D45: S'outiller (GES) | E45: Sensibiliser, mobiliser et engager la société dans la transition climatique | F45: L'augmentation prévue du coûts des projets rend le budget 2013-2020 insuffisant pour garantir la réalisation de tous les projets entamés | J45: Roulez Vert - Volets multiples
B46: Entreprises (petites ou moyennes entreprises) | C46: Abandonnée | D46: Agir (Adaptation) | F46: moins d'un mois | J46: Technoclimat
B47: Milieu de la recherche scientifique | D47: Éviter (GES) | F47: de 1 à 6 mois | J47: Transportez-vert | K47: Recommandation
B48: Milieu municipal | D48: Réduire (GES) | F48: de 7 à 12 mois | J48: Autre programme | K48: Reconduire
B49: Ministères et organismes gouvernementaux | D49: Séquestrer (GES) | F49: plus de 12 mois | K49: Ne pas reconduire
B50: Organismes à but non lucratif | F50: Aucun changement | G50: Risques | K50: Voir commentaire ci-dessous
F51: Retards prévus, mais les engagements seront tous pris avant le 31 décembre 2020 | G51: Biodiversité | K51: Objectifs initiaux
B52: Clientèle | F52: Retards prévus et les engagements ne pourront pas tous être pris avant le 31 décembre 2020 | G52: Économie | K52: Oui
F53: Les échéanciers pourront être devancés | G53: Environnement | K53: Partiellement
B54: Citoyens | F54: Des cibles pourraient être atteintes avant les délais prévus | G54: Ressources naturelles | K54: Non
B55: Communautés autochtones | F55: Toutes les cibles devraient être atteintes dans les délais prévus | G55: Santé et sécurité publique
B56: Entreprises (grandes entreprises) | F56: Toutes les cibles devraient être atteintes avec certains retards | G56: Services à la population
B57: Entreprises (grands émetteurs) | F57: Certaines cibles pourraient ne pas être atteintes
B58: Entreprises (petites ou moyennes entreprises) | F58: Aucune cible ne pourra être atteinte
B59: Milieu communautaire
B60: Milieu de la recherche scientifique
B61: Milieu municipal | G61: Aléas climatiques
B62: Ministères et organismes gouvernementaux | G62: Chaleur extrême et hausse des températures moyennes | J62: NoProgrammeFonctionnement | K62: SigleMinistere | L62: NoProgrammeTransfert | O62: IdSeqAction | P62: PSACof
B63: Partenaires hors Québec | G63: Dégradation du pergélisol | J63: 17014 | K63: HQ | L63: 53985 | O63: 1011.0101 | P63: 1813050
G64: Érosion et submersion côtières | J64: 17010 | K64: MAMH | L64: 53981 | O64: 1011.0103 | P64: 1813051
G65: Feux de forêt | J65: 17007 | K65: MAPAQ | L65: 53978 | O65: 1011.0201 | P65: 1813052
B66: Onglet "Détails des projets" | G66: Glissements de terrain | J66: 17009 | K66: MEI | L66: 53980 | O66: 1011.0203 | P66: 1813053
B67: Type de bénéficiaire | G67: Inondations | J67: 17000 | K67: MELCC | L67: 53971 | O67: 1011.0205 | P67: 1813054
B68: Final | G68: Manque d'eau | J68: 17002 | K68: MERN | L68: 53973 | O68: 1011.0207 | P68: 1813055
B69: Intermédiaire | G69: Pluies intenses | J69: 17015 | K69: MERN (SITE) | L69: 53986 | O69: 1011.0209 | P69: 1813056
G70: Vent, verglas, redoux hivernaux, gel-dégel | J70: 17004 | K70: MFFP | L70: 53975 | O70: 1011.03 | P70: 1813057
G71: Plusieurs aléas | J71: 17003 | K71: MFFP_FRN_ADTF | L71: 53974 | O71: 1011.0401 | P71: 1813058
G72: Autres | J72: 17013 | K72: MFQ | L72: 53984 | O72: 1011.0403 | P72: 1813059
J73: 17012 | K73: MRIF | L73: 53983 | O73: 1011.0405 | P73: 1813060
J74: 17008 | K74: MSP | L74: 53979 | O74: 1011.05 | P74: 1813061
J75: 17005 | K75: MSSS | L75: 53976 | O75: 1012.0101 | P75: 1813062
G76: Effet visé | J76: 17016 | K76: MTESS | L76: 53987 | O76: 1012.0103 | P76: 1813063
G77: Atténuation des changements climatiques | J77: 17011 | K77: MTO | L77: 53982 | O77: 1012.0105 | P77: 1813064
G78: Augmentation de la résilience face aux changements climatiques | J78: 17001 | K78: MTQ | L78: 53972 | O78: 1012.02 | P78: 1813065
J79: 17006 | K79: RBQ | L79: 53977 | O79: 1021.01 | P79: 1813066
O80: 1021.0201 | P80: 1813067
O81: 1021.0203 | P81: 1813068
K82: Onglet de la fiche | O82: 1021.03 | P82: 1813069
K83: Accueil | O83: 1021.04 | P83: 1813070
K84: Administration | O84: 1031.01 | P84: 1813071
K85: Description | O85: 1031.02
K86: Détail des projets | O86: 1032.01 | P86: 1813072
K87: GES | O87: 1041.01 | P87: 1813073
K88: Adaptation | O88: 1041.02 | P88: 1813074
K89: Indicateurs | O89: 1041.03 | P89: 1813075
K90: Commentaires | O90: 1041.04 | P90: 1813076
O91: 1042.0101 | P91: 1813077
O92: 1042.0103 | P92: 1813078
O93: 1042.0105 | P93: 1813079
O94: 1042.02 | P94: 1813080
O95: 1051.01 | P95: 1813081
O96: 1051.02 | P96: 1813082
O97: 1061.01 | P97: 1813083
O98: 1061.02
O99: 1062.01 | P99: 1813084
O100: 1062.02 | P100: 1813085
O101: 1062.03 | P101: 1813086
O102: 1062.04 | P102: 1813087
O103: 1062.05 | P103: 1813088
O104: 1063.01 | P104: 1813089
O105: 1063.02
O106: 1063.03 | P106: 1813090
O107: 1071.01 | P107: 1813091
O108: 1072.01 | P108: 1813092
O109: 1072.02 | P109: 1813093
O110: 1081.01 | P110: 1813094
O111: 1082.01 | P111: 1813095
O112: 1083.01 | P112: 1813096
O113: 1084.01 | P113: 1813097
O114: 1091.01 | P114: 1813098
O115: 1092.01
O116: 1092.02 | P116: 1813099
O117: 1092.03 | P117: 1813100
O118: 1101.01
O119: 1111.01 | P119: 1813101
O120: 1121.0101 | P120: 1813102
O121: 1121.02 | P121: 1813103
O122: 1131.0101 | P122: 1813104
O123: 1131.0105 | P123: 1813105
O124: 2011.01 | P124: 1810630
O125: 2011.02 | P125: 1810631
O126: 2011.03 | P126: 1813106
O127: 2011.04 | P127: 1813107
O128: 2011.05 | P128: 1813108
O129: 2011.0601 | P129: 1813109
O130: 2011.0701 | P130: 1813110
O131: 2011.0703 | P131: 1813111
O132: 2011.0705
O133: 2011.08
O134: 2011.09 | P134: 1813112
O135: 2021.01 | P135: 1813113
O136: 2021.02 | P136: 1813114
O137: 2031.01 | P137: 1813115
O138: 2031.02 | P138: 1813116
O139: 2031.03 | P139: 1813117
O140: 2032.01 | P140: 1813118
O141: 2032.02 | P141: 1813119
O142: 2032.03 | P142: 1813120
O143: 2041.01 | P143: 1813121
O144: 2041.0201 | P144: 1813122
O145: 2041.0203 | P145: 1813126
O146: 2041.0205 | P146: 1813123
O147: 2041.0207 | P147: 1813124
O148: 2041.0209 | P148: 1813125
O149: 3011.01 | P149: 1813127
O150: 3011.0201 | P150: 1813128
O151: 3011.0203 | P151: 1813129
O152: 3011.0205 | P152: 1813130
O153: 3011.0301 | P153: 1813131
O154: 3011.0303 | P154: 1813132
O155: 3011.0305 | P155: 1813133
O156: 3011.0307 | P156: 1813134
O157: 3012.01
O158: 3012.02
O159: 3012.03 | P159: 1813135
O160: 3013.01 | P160: 1813136
O161: 3013.02 | P161: 1813137
O162: 3013.0301 | P162: 1813138
O163: 3013.04
O164: 3021.0101 | P164: 1813139
O165: 3021.0103 | P165: 1813140
O166: 3021.02 | P166: 1813141
O167: 3031.0101 | P167: 1813142
O168: 3031.0105 | P168: 1813143
O169: 3031.0107
O170: 3041.0101 | P170: 1813144
O171: 3041.0103 | P171: 1813144
O172: 3042.0101 | P172: 1813145
O173: 3042.0103 | P173: 1813145
O174: 3051.0101 | P174: 1813146
O175: 3051.0103 | P175: 1813147
O176: 3051.02 | P176: 1813148
O177: 3051.03 | P177: 1813149
O178: 3052.01 | P178: 1813150
O179: 3052.02 | P179: 1813151
O180: 3052.0301 | P180: 1813152
O181: 3052.0303 | P181: 1813152
O182: 3053.01 | P182: 1813153
O183: 3061.0101 | P183: 1813154
O184: 3061.0103
O185: 3062.02 | P185: 1813155
O186: 4011.01 | P186: 1813156
O187: 4011.02 | P187: 1813157
O188: 4021.0101 | P188: 1813158
O189: 4021.0103 | P189: 1813159
O190: 4021.0105 | P190: 1813160
O191: 4021.0107 | P191: 1813161
O192: 4021.0109 | P192: 1813162
O193: 4021.0111 | P193: 1810230
O194: 4022.0101 | P194: 1813163
O195: 4022.0103 | P195: 1813163
O196: 4023.01 | P196: 1813164
O197: 4023.0201 | P197: 1813165
O198: 4023.0203 | P198: 1813166
O199: 4023.0205 | P199: 1813167
O200: 4023.02051 | P200: 1813193
O201: 4031.01 | P201: 1813168
O202: 4031.02 | P202: 1813169
O203: 4031.03 | P203: 1813170
... 27 more rows

Sheet Accueil
F2: Exercice de suivi du Plan pour une économie verte 2030
B50: Veuillez vérifier, compléter ou corriger les informations ci-dessous
B52: Mesure : | D52: 1.4.2 | E52: Appuyer l’efficacité et la conversion énergétiques, et l’optimisation des procédés en entreprise
B53: Action : | D53: 1.4.2.1 | E53: Appuyer la réalisation de projets en efficacité énergétique et en conversion énergétique
B54: Sous-action : | D54: 1.4.2.1a | E54: Programme ÉcoPerformance Industrie - Standard
B55: Libellé usuel : | D55: 1.4.2.1a | E55: Appuyer la réalisation de projets en efficacité énergétique et en conversion énergétique - Programme ÉcoPerformance Industrie - Standard
B56: Programme : | D56: ÉcoPerformance
B57: Nom du programme :
B58: Statut : | D58: en cours
B59: Raison du statut de l’action :
B63: Informations en date du : | D63: =Utilitaire!G6 -> 2022-03-31
B65: Ministère porteur : | D65: MERN (SITE) | I65: Direction responsable : | K65: Dir. des secteurs affaires et innovation
B66: Partenaires : | D66: FEFEC | I66: Part de financement par le FECC : | K66: 1
B67: Budget (M$) : | D67: 351.2747518 | I67: Autres sources de financement : | K67: Variable
B68: Date de lancement de l’action : | D68: 2021-04-01 | I68: Date de fin de l’action : | K68: 2025-12-31
B69: Section réservée à l’usage exclusif du BECC (lignes 70 à 73 non publiées)
B70: Chargé de projet : | I70: Tél. :
B71: Responsable ministériel : | I71: Tél. :
B72: Personne ressource pour le BECC : | D72: Guy Desbiens | I72: Courriel : | K72: Guy.Desbiens@mern.gouv.qc.ca
B73: Estimation des sommes résiduelles au 31 décembre 2020 ($) : | D73: 0 | I73: Précisions sur le montant des sommes résiduelles : | K73: s
B74: Téléphone pour informations : | D74: 418 627-6379, poste 708016
B75: Référence Web : | D75: https://transitionenergetique.gouv.qc.ca/affaires/programmes/ecoperformance
B85: Ministère de l'Énergie et des Ressources naturelles (Sous-Ministère associé de l'Innovation et de la Transition Energétique)

Sheet Administration (hidden)
B2: =Utilitaire!E8 -> Plan pour une économie verte 2030
B5: Administration | E5: =Accueil!D65 & " - " & Accueil!D53 -> MERN (SITE) - 1.4.2.1
E6: ="Action " & Accueil!D58 -> Action en cours
B7: Conseils de rédaction : | E7: Informations en date du : | G7: =Utilitaire!G6 -> 2022-03-31
B8: - Cet onglet sera pour usage interne seulement, il ne sera pas publié. - Vous pouvez faire une recommandation en vue de la prochaine mise à jour budgétaire du PMO quant au budget de cette action dans le tableau de la ligne 25. - Le BECC tiendra à jour en continu la liste des livrables que vous devez transmettre en lien avec votre action. Vous serez en mesure de commenter et de mettre à jour les échéances à chaque exercice.
B25: Niveau annuel de dépenses au FECC | I25: Informations de gestion
D26: 2022-2023 | F26: 2023-2024 | I26: Combinaison comptable pour imputation à SAGIR
B27: Dernières prévisions de dépenses au FECC ($) | D27: 59645942.96 | F27: 61727331.35 | I27: Programme pour transferts : | L27: =IF(D27+F27>0,INDEX(Utilitaire!L63:L79,MATCH(Accueil!D65,Utilitaire!K63:K79,0)),"") -> 53986
B28: Allez-vous atteindre ce niveau de dépense annuel? | D28: Oui | I28: Programme pour fonctionnement : | L28: =IF(D27+F27>0,INDEX(Utilitaire!J63:J79,MATCH(Accueil!D65,Utilitaire!K63:K79,0)),"") -> 17015
B29: Sommes prévues être dépensées dans l'année ($) : | I29: PSA : | L29: =IF(D27+F27>0,INDEX(Utilitaire!P63:P219,MATCH(Utilitaire!C12,Utilitaire!O63:O219,0)),"") -> 1813077
B30: Commentaires :
B31: Pouvez-vous aller au-delà de ce niveau de dépense? | I31: Pour toute question, vous pouvez contacter :
B32: Augmentation possible ($) : | I32: Documents de référence :
B33: Préavis requis :
B34: Méthode employée :
B36: Enjeux et possibilités
B37: Risques liés au déploiement et probabilité de la réalisation de l'action
B38: Avez-vous besoin d'un budget supplémentaire jusqu'à la fin du PEV afin d'atteindre les objectifs de l'action ?
B46: Liste des livrables
C47: Type de document | D47: Titre | E47: Date prévue d'envoi au BECC | F47: Date réelle d'envoi au BECC | G47: Commentaires et hyperliens
B48: Évaluation
B74: Évaluation | C74: Rapport d'évaluation | D74: Rapport d'évaluation - ÉcoPerformance, 14 mai 2021 | G74: https://transitionenergetique.gouv.qc.ca/fileadmin/medias/pdf/evaluation-programmes/EcoPerformance_rapport_evaluation_2021.pdf
B76: Documents de mise en œuvre de l'action | J76: - Entente administrative | M76: - Directives de quantification B2
C204: Cadre normatif, guide d'appel de projets et documents afférents | D204: Révision du cadre normatif | E204: 2022-10-30
C205: Indicateurs et cibles | D205: Indicateurs de base | E205: 2022-03-31 | F205: 2022-03-29
C206: Indicateurs et cibles | D206: Indicateurs de GES | E206: 2022-03-31 | F206: 2022-03-29
B209: Rapports et résultats | C209: Livrables
C210: Livrables
C211: Livrables
C212: Livrables
C213: Livrables
C214: Livrables
C215: Livrables
C216: Livrables
C217: Livrables
C218: Livrables
C219: Livrables
C220: Livrables
C221: Livrables
C222: Livrables
C223: Livrables
C224: Livrables
C225: Livrables
C226: Livrables
C227: Livrables
C228: Livrables
C229: Livrables
C230: Livrables
C231: Livrables
C232: Livrables
C233: Livrables
C234: Livrables
C235: Livrables
C236: Livrables
C237: Livrables
C238: Livrables
C239: Livrables
C240: Livrables
C241: Livrables
C242: Livrables
C243: Livrables
C244: Livrables
C245: Livrables
C246: Livrables
C247: Livrables
C248: Livrables
C249: Livrables
C250: Livrables
C251: Livrables
C252: Livrables
C253: Livrables
C254: Livrables
C255: Livrables
C256: Livrables
C257: Livrables
C258: Livrables
C259: Livrables
C260: Livrables
C261: Livrables
C262: Livrables
C263: Livrables
C264: Livrables
C265: Livrables
C266: Livrables
C267: Livrables
C268: Livrables
C269: Livrables
C270: Livrables
C271: Livrables
C272: Livrables
C273: Livrables
C274: Livrables
C275: Livrables
C276: Livrables
C277: Livrables
C278: Livrables
C279: Livrables
C280: Livrables
C281: Livrables
C282: Livrables
C283: Livrables
C284: Livrables
C285: Livrables
C286: Livrables
C287: Livrables
C288: Livrables
C289: Livrables
C290: Livrables
C291: Livrables
C292: Livrables
C293: Livrables
C294: Livrables
C295: Livrables
C296: Livrables
C297: Livrables
C298: Livrables
C299: Livrables
C300: Livrables

Sheet Description
B2: =Utilitaire!E8 -> Plan pour une économie verte 2030
B5: Description | G5: =Accueil!D65 & " - " & Accueil!D53 -> MERN (SITE) - 1.4.2.1
G6: ="Action " & Accueil!D58 -> Action en cours
B7: Conseils de rédaction : | J7: Informations en date du : | N7: =Utilitaire!G6 -> 2022-03-31
B8: - Des précisions sur les contenus attendus sont disponibles en commentaires dans les cellules titres. - Les cases de la section « Informations générales » sont limitées à 2000 caractères. - Pour ajouter une nouvelle ligne à la section « Mise en œuvre », utilisez le bouton à cet effet (ligne 190).
B15: Évaluation des effets de la COVID-19 sur la mise en œuvre de l'action
B16: Résultats attendus :
B17: Échéancier :
B18: Sommes engagées (projets en cours) :
B19: Autres :
B41: Informations en date du : | F41: 2022-03-31
B42: Informations générales
B43: Contexte de l'action: | C43: ÉcoPerformance est un programme d'aide financière pour des projets d'efficacité énergétique et de conversion. Il vise à réduire les émissions de gaz à effet de serre (GES) et la consommation énergétique des entreprises par le financement de projets ou de mesures liés à la consommation et à la production d'énergie, de même qu'à l'amélioration des procédés. Le Programme comporte également un volet transformation de marché qui inclut de la sensibilisation, de la formation et de l'accompagnement visant plus spécifiquement l'intégration de procédés, le forage de données et la mécanique des fluides numériques.
B44: Objectif de l'action : | C44: Cette action contribue à l'objectif 1.4 - Réduire les émissions de GES du secteur industriel tout en renforçant sa compétitivité du Plan de mise en oeuvre du PEV Le Programme se divise en deux volets : le volet Analyse et le volet Implantation. Le volet Analyse a pour objectif d'identifier et de quantifier les mesures potentielles d'économies de combustible fossile et de réductions d'émissions de GES ainsi que les coûts pour les instaurer. Le volet Implantation a pour objectif de soutenir financièrement des projets permettant de réduire ultimement les émissions de GES, soit des projets d'efficacité énergétique, de réduction des émissions de GES ou de conversion à des sources d'énergie à plus faibles émissions de GES.
B45: Bénéficiaires : | C45: Entreprises (grandes entreprises) | E45: Entreprises (petites ou moyennes entreprises) | G45: Milieu municipal | J45: Milieu municipal | M45: Organismes à but non lucratif
C46: Autres (précisez) :
B47: Clientèle ou secteur réglementé :
C48: Autres (précisez) :
B49: Critères d'admissibilité : | C49: Un projet admissible doit d'abord permettre une réduction quantifiable des émissions de GES et peut contenir plusieurs mesures. Formulaire de demande signé par le participant, plan de projet et plan de surveillance signés par un ingénieur sont les documents minimaux requis pour présenter une demande. Les demandes sont analysées, en fonction de leurs dates de dépôt, par un chargé de programme pour ensuite être soumises à l'approbation des autorités du MERN.
B50: Processus de suivi de l'action : | C50: L'action est suivie de manière continuelle. Le budget est suivi hebdomadairement, par l'émission d'un suivi budgétaire hebdomadaire. Ce suivi compare les engagements dans SAGIR, avec les budgets prévus, ainsi que les données fournies par la base de données de suivi du programme ÉcoPerformance. Le suivi de la mise en œuvre des projets est fait en continu par les chargés de programme. La mise en fonction des projets est le moment à partir duquel les déclarations de réductions des émissions de gaz à effet de serre sont comptabilisées. Les réductions sont comptabilisées pour la période d'engagement des participants, tant que les projets sont maintenus. Une reddition de comptes est faite au ministère de l'Environnement et de la Lutte contre les changements climatiques (MELCC) sur la base de deux rapports annuels.
B51: Résultats et co-bénéfices attendus : | C51: Les résultats directs attendus sont l'économie d'énergie, la réduction des émissions de GES, des investissements importants dans le secteur industriel, la création d'emplois et une amélioration soutenue de la performance du secteur industriel au Québec. Les autres avantages ou co-bénéfices attendus de l'action sont de faire appel à des énergies renouvelables ou moins émettrices en carbone, d'améliorer les procédés industriels, de permettre de faire des choix de procédés et d'équipements plus performants lors de nouveaux projets. Également, l'action permet de transformer le marché et de dynamiser les interventions dans le secteur industriel. Plusieurs analyses permettront aux entreprises de se conscientiser sur leur consommation énergétique et de prendre action pour améliorer leur performance.
B52: Résultats et co-bénéfices obtenus dans la dernière année : | C52: Du 1er avril 2021 au 31 mars 2022, 23 dossiers d’analyse et 227 projets d’implantation ont été acceptés par le ministre, pour une réduction annuelle potentielle de 196 789 tCO2é, nécessitant des investissements de 236,5 M$ grâce à des aides financières de 104,8 M$ pour un coût moyen de l’aide financière de 25.37 $/t sur la durée de vie des équipements (21 ans). Ces investissements entraîneraient la création de 3 310 emplois.
B53: Résultats et co-bénéfices obtenus depuis le lancement de l'action :
B55: Classification
B56: Finalité : | G56: Moyen : | J56: Éviter (GES)
B62: Mise en œuvre
B63: Étapes (depuis le début de l'action) | J63: Échéancier | M63: État d'avancement
A64: 1 | B64: Entrée en vigueur d'un nouveau cadre normatif au 1er janvier 2021 | J64: 2021-04-01 | M64: Complétée
A65: 2
A66: 3
A67: 4
A68: 5
A69: 6
A71: 8
A72: 9
A73: 10
A74: 11
B190: Ajouter une ligne
B194: Plans, stratégies ou politiques incluant la mise en œuvre de cette action
B195: Abréviation | D195: Nom complet | N195: Numéro de l'action
B196: PMO 2021-2026 | D196: PLAN DE MISE EN ŒUVRE 2021-2026 POUR UNE ÉCONOMIE VERTE 2030 | N196: 1.4.2.1
B197: PACC 2013-2020 | D197: Plan d'action 2013-2020 sur les changements climatiques | N197: 18.1.1, 20.1, 20.5, 21.1
B198: PD | D198: Plan directeur en transition, innovation et efficacité énergétiques 2018-2023 | N198: 38.7

Sheet Détail des projets
B2: =Utilitaire!E8 -> Plan pour une économie verte 2030 | J2: Détail des projets | L2: =Accueil!D65 & " - " & Accueil!D53 -> MERN (SITE) - 1.4.2.1
L3: ="Action " & Accueil!D58 -> Action en cours
B5: Conseils de rédaction : | M5: Informations en date du : | O5: =Utilitaire!G6 -> 2022-03-31
B6: - Veuillez remplir cet onglet uniquement si vous connaissez les projets qui seront financés. - Inscrire en bleu toute ligne de projet n'ayant pas encore été approuvé ou annoncé. - Nouveau: Veuillez ajouter le type de bénéficiaire (final/intermédiaire) dans la colonne D.
D19: Informations en date du : | G19: 2022-03-31
B22: DÉTAILS DES PROJETS AUTORISÉS | Q22: MONTANTS DÉPENSÉS DANS LE CADRE DU PEV 2030 ($)
A23: No | B23: Nom du projet | C23: Nom du requérant ou du bénéficiaire | D23: Type de bénéficiaire | E23: Volet ou thématique | F23: Catégorie | G23: Nombre de projets | H23: Région administrative | I23: Municipalité | J23: Statut | K23: Classification du projet | L23: Montant engagé ($) par le PEV | M23: Date de l'engagement | N23: Date de fin | O23: Dépenses imputées au FECC | P23: Budget total du projet ($) | Q23: 2019-2020 | R23: 2020-2021 | S23: 2021-2022 | T23: 2022-2023 | U23: 2023-2024 | V23: 2024-2025 | W23: 2025-2026 | X23: 2026-2027 | Y23: 2027-2028 | Z23: 2028-2029 | AA23: MONTANT DES DÉPENSES RÉELLES ($) | AB23: TOTAL DES DÉPENSES RÉELLES ET PRÉVUES ($)
L24: (convention signée, contrat, lettre de confirmation du ministre ou de son représentant ou lettre d'octroi) | Q24: Réel | R24: Réel | S24: Réel | T24: Prévu | U24: Prévu | V24: Prévu | W24: Prévu | X24: Prévu | Y24: Prévu | Z24: Prévu
A25: 1 | B25: Frais de gestion et de coordination de l'action | C25: MERN (SITE) | F25: Autres | H25: Sans objet | I25: Sans objet | K25: Frais de gestion - rémunération | S25: 450118 | AA25: =SUM(Q25:S25) -> 450118 | AB25: =SUM(Q25:Z25) -> 450118
A26: 2 | B26: Frais de gestion et de coordination de l'action | C26: MERN (SITE) | F26: Autres | H26: Sans objet | I26: Sans objet | K26: Frais de gestion - fonctionnement | S26: 354976 | AA26: =SUM(Q26:S26) -> 354976 | AB26: 354976
A27: 3 | AA27: =SUM(Q27:S27) -> 0 | AB27: 0
A28: 4 | B28: RSI Environnement - Étude conversion énergétique | C28: Énergie Tergasa inc. | D28: Final | E28: Analyse | F28: Industrie | H28: 02-Saguenay--Lac-Saint-Jean | J28: AC | K28: SU | L28: 22475.5 | M28: 00:00:00 | N28: 2022-11-30 | O28: PMO - FECC | P28: 44951 | Q28: 0 | R28: 0 | S28: 11237.75 | T28: 11237.75 | U28: 0 | V28: 0 | W28: 0 | X28: 0 | Y28: 0 | Z28: 0 | AA28: =SUM(Q28:S28) -> 11237.75 | AB28: 22475.5
A29: 5 | B29: Excavation Alain Lemay - Audit énergétique, récupération de chaleur et optimisation énergétique | C29: Excavation Alain Lemay inc. | D29: Final | E29: Analyse | F29: Industrie | H29: 17-Centre-du-Québec | J29: AC | K29: SU | L29: 6000 | M29: 00:00:00 | N29: 2023-01-19 | O29: PMO - FECC | P29: 18500 | Q29: 0 | R29: 0 | S29: 0 | T29: 6000 | U29: 0 | V29: 0 | W29: 0 | X29: 0 | Y29: 0 | Z29: 0 | AA29: 0 | AB29: 6000
A30: 6 | B30: Études comparatives en énergie 010501 | C30: Minière Osisko Inc. | D30: Final | E30: Analyse | F30: Industrie | H30: 10-Nord-du-Québec | J30: AC | K30: SU | L30: 39272.1 | M30: 2021-08-13T13:35:04 | N30: 2021-12-30 | O30: PMO - FECC | P30: 74804 | Q30: 0 | R30: 0 | S30: 39272.1 | T30: 0 | U30: 0 | V30: 0 | W30: 0 | X30: 0 | Y30: 0 | Z30: 0 | AA30: 39272.1 | AB30: 39272.1
A31: 7 | B31: Étude du chauffage des serres du Parc Marie-Victorin | C31: Parc Marie-Victorin inc. | D31: Final | E31: Analyse | F31: Industrie | H31: 17-Centre-du-Québec | J31: AC | K31: SU | L31: 5231.1 | M31: 2021-08-11T13:51:59 | N31: 2021-09-30 | O31: PMO - FECC | P31: 9964 | Q31: 0 | R31: 0 | S31: 5231.1 | T31: 0 | U31: 0 | V31: 0 | W31: 0 | X31: 0 | Y31: 0 | Z31: 0 | AA31: 5231.1 | AB31: 5231.1
A32: 8 | B32: Analyse bilan d'air - Usine Essity | C32: Essity Canada inc. | D32: Final | E32: Analyse | F32: Industrie | H32: 17-Centre-du-Québec | J32: AC | K32: SU | L32: 7720 | M32: 2021-08-11T13:41:15 | N32: 2021-09-15 | O32: PMO - FECC | P32: 16589 | Q32: 0 | R32: 0 | S32: 7720 | T32: 0 | U32: 0 | V32: 0 | W32: 0 | X32: 0 | Y32: 0 | Z32: 0 | AA32: 7720 | AB32: 7720
A33: 9 | B33: Étude en efficacité énergétique | C33: Mercier, Industries en mécanique ltée | D33: Final | E33: Analyse | F33: Industrie | H33: 02-Saguenay--Lac-Saint-Jean | J33: AC | K33: SU | L33: 8393.22 | M33: 2021-10-08T14:18:31 | N33: 2022-01-26 | O33: PMO - FECC | P33: 20000 | Q33: 0 | R33: 0 | S33: 8393.22 | T33: 0 | U33: 0 | V33: 0 | W33: 0 | X33: 0 | Y33: 0 | Z33: 0 | AA33: 8393.22 | AB33: 8393.22
A34: 10 | B34: Audit des installations vapeur/condensat et des utilités thermiques | C34: Canneberges Atoka inc. | D34: Final | E34: Analyse | F34: Industrie | H34: 17-Centre-du-Québec | J34: AC | K34: SU | L34: 41325 | M34: 2021-05-11T08:38:48 | N34: 2021-12-30 | O34: PMO - FECC | P34: 82650 | Q34: 0 | R34: 0 | S34: 41325 | T34: 0 | U34: 0 | V34: 0 | W34: 0 | X34: 0 | Y34: 0 | Z34: 0 | AA34: 41325 | AB34: 41325
A35: 11 | B35: Étude pour la réduction de la consommation d'énergie et d'émission de GES | C35: Fortier 2000 ltée | D35: Final | E35: Analyse | F35: Industrie | H35: 12-Chaudière-Appalaches | J35: AC | K35: SU | L35: 8875 | M35: 2021-11-16T08:34:15 | N35: 2022-12-30 | O35: PMO - FECC | P35: 27000 | Q35: 0 | R35: 0 | S35: 4437.5 | T35: 4437.5 | U35: 0 | V35: 0 | W35: 0 | X35: 0 | Y35: 0 | Z35: 0 | AA35: 4437.5 | AB35: 8875
A36: 12 | B36: Étude IP - Phase II | C36: Entreprise Greenfield Global Québec | D36: Final | E36: Analyse | F36: Industrie | H36: 16-Montérégie | J36: AC | K36: SU | L36: 88018.5 | M36: 2021-10-21T14:12:34 | N36: 2022-04-30 | O36: PMO - FECC | P36: 117358 | Q36: 0 | R36: 0 | S36: 44009.25 | T36: 44009.25 | U36: 0 | V36: 0 | W36: 0 | X36: 0 | Y36: 0 | Z36: 0 | AA36: 44009.25 | AB36: =SUM(Q36:Z36) -> 88018.5
A37: 13 | B37: Étude en intégration énergétique par analyse de pincement | C37: Technocell inc. | D37: Final | E37: Analyse | F37: Industrie | H37: 17-Centre-du-Québec | J37: AC | K37: SU | L37: 46287.19 | M37: 2022-01-11T08:58:11 | N37: 2022-04-01 | O37: PMO - FECC | P37: 61881.25 | Q37: 0 | R37: 0 | S37: 23143.6 | T37: 23143.59 | U37: 0 | V37: 0 | W37: 0 | X37: 0 | Y37: 0 | Z37: 0 | AA37: 23143.6 | AB37: =SUM(Q37:Z37) -> 46287.19
A38: 14 | B38: Étude écoénergétique à la teinturerie Cansew | C38: Cansew inc. | D38: Final | E38: Analyse | F38: Industrie | H38: 06-Montréal | J38: AC | K38: SU | L38: 10384 | M38: 2021-06-15T16:09:47 | N38: 2022-12-16 | O38: PMO - FECC | P38: 20768 | Q38: 0 | R38: 0 | S38: 0 | T38: 10384 | U38: 0 | V38: 0 | W38: 0 | X38: 0 | Y38: 0 | Z38: 0 | AA38: 0 | AB38: =SUM(Q38:Z38) -> 10384
A39: 15 | B39: Étude d’efficacité énergétique des procédés et utilités | C39: Les Ingrédients Alimentaires BSA inc. | D39: Final | E39: Analyse | F39: Industrie | H39: 06-Montréal | J39: AC | K39: SU | L39: 9288 | M39: 2021-11-16T08:32:50 | N39: 2022-02-19 | O39: PMO - FECC | P39: 18575 | Q39: 0 | R39: 0 | S39: 9288 | T39: 0 | U39: 0 | V39: 0 | W39: 0 | X39: 0 | Y39: 0 | Z39: 0 | AA39: 9288 | AB39: =SUM(Q39:Z39) -> 9288
A40: 16 | B40: Conversion à l'hydrogène des fours du Centre de Coulée de Baie-Comeau | C40: Alcoa Canada Cie | D40: Final | E40: Analyse | F40: Industrie | H40: 09-Côte-Nord | J40: AC | K40: SU | L40: 27461.09 | M40: 2022-01-11T09:01:48 | N40: 2022-03-31 | O40: PMO - FECC | P40: 63178.08 | Q40: 0 | R40: 0 | S40: 27461.09 | T40: 0 | U40: 0 | V40: 0 | W40: 0 | X40: 0 | Y40: 0 | Z40: 0 | AA40: 27461.09 | AB40: =SUM(Q40:Z40) -> 27461.09
A41: 17 | B41: Étude d’efficacité énergétique | C41: Fonderie Poitras ltée | D41: Final | E41: Analyse | F41: Industrie | H41: 12-Chaudière-Appalaches | J41: AC | K41: SU | L41: 25000 | M41: 2022-02-03T15:08:51 | N41: 2023-03-01 | O41: PMO - FECC | P41: 61015 | Q41: 0 | R41: 0 | S41: 12500 | T41: 12500 | U41: 0 | V41: 0 | W41: 0 | X41: 0 | Y41: 0 | Z41: 0 | AA41: 12500 | AB41: =SUM(Q41:Z41) -> 25000
A42: 18 | B42: Analyse énergétique et potentiel de récupération | C42: La Fromagerie Polyethnique inc. | D42: Final | E42: Analyse | F42: Industrie | H42: 16-Montérégie | J42: TE | K42: SU | L42: 23909.13 | M42: 2021-07-22T09:37:26 | N42: 2021-08-04 | O42: PMO - FECC | P42: 52600 | Q42: 0 | R42: 0 | S42: 23909.13 | T42: 0 | U42: 0 | V42: 0 | W42: 0 | X42: 0 | Y42: 0 | Z42: 0 | AA42: 23909.13 | AB42: 23909.13
A43: 19 | B43: Étude de faisabilité - remplacement de la chaudière et mesures d'efficacité énergétique | C43: Boulangerie St-Méthode inc. | D43: Final | E43: Analyse | F43: Industrie | H43: 12-Chaudière-Appalaches | J43: TE | K43: SU | L43: 10195.48 | M43: 2021-07-22T08:55:05 | N43: 2021-11-22 | O43: PMO - FECC | P43: 20390.97 | Q43: 0 | R43: 0 | S43: 10195.48 | T43: 0 | U43: 0 | V43: 0 | W43: 0 | X43: 0 | Y43: 0 | Z43: 0 | AA43: 10195.48 | AB43: =SUM(Q43:Z43) -> 10195.48
A44: 20 | B44: Étude énergétique de récupération de chaleur du système de refroidissement | C44: Les Plastiques Balcan | D44: Final | E44: Analyse | F44: Industrie | H44: 06-Montréal | J44: TE | K44: SU | L44: 6247.5 | M44: 2021-07-22T09:00:50 | N44: 2021-10-28 | O44: PMO - FECC | P44: 11900 | Q44: 0 | R44: 0 | S44: 6247.5 | T44: 0 | U44: 0 | V44: 0 | W44: 0 | X44: 0 | Y44: 0 | Z44: 0 | AA44: 6247.5 | AB44: =SUM(Q44:Z44) -> 6247.5
A45: 21 | B45: Implantation d'un système de chauffage de serre | C45: Entreprise Gendron-Benoit | D45: Final | E45: Analyse | F45: Industrie | H45: 05-Estrie | J45: TE | K45: SU | L45: 4462.5 | M45: 2021-06-14T10:30:23 | N45: 2021-07-09 | O45: PMO - FECC | P45: 8500 | Q45: 0 | R45: 0 | S45: 4462.5 | T45: 0 | U45: 0 | V45: 0 | W45: 0 | X45: 0 | Y45: 0 | Z45: 0 | AA45: 4462.5 | AB45: =SUM(Q45:Z45) -> 4462.5
A46: 22 | B46: Analyse des opportunités de réduction des GES de 2021 | C46: Groupe Canam inc. | D46: Final | E46: Analyse | F46: Industrie | H46: 16-Montérégie | J46: TE | K46: SU | L46: 10352.58 | M46: 2021-06-14T10:49:35 | N46: 2021-11-02 | O46: PMO - FECC | P46: 21277.15 | Q46: 0 | R46: 0 | S46: 10352.58 | T46: 0 | U46: 0 | V46: 0 | W46: 0 | X46: 0 | Y46: 0 | Z46: 0 | AA46: 10352.58 | AB46: =SUM(Q46:Z46) -> 10352.58
A47: 23 | B47: Opportunités de réduction de coûts et de GES - MdFQ - Lac Bloom | C47: Minerai de fer Québec inc. | D47: Final | E47: Analyse | F47: Industrie | H47: 09-Côte-Nord | J47: TE | K47: SU | L47: 31170 | M47: 2021-07-22T09:28:24 | N47: 2021-11-18 | O47: PMO - FECC | P47: 62500 | Q47: 0 | R47: 0 | S47: 31170 | T47: 0 | U47: 0 | V47: 0 | W47: 0 | X47: 0 | Y47: 0 | Z47: 0 | AA47: 31170 | AB47: =SUM(Q47:Z47) -> 31170
A48: 24 | B48: Étude pour une boucle d’eau de chauffage par géothermie et efficacité énergétique en serre | C48: L'Abri Végétal | D48: Final | E48: Analyse | F48: Industrie | H48: 05-Estrie | J48: TE | K48: SU | L48: 25000 | M48: 2021-08-11T13:04:23 | N48: 2022-01-19 | O48: PMO - FECC | P48: 53564.45 | Q48: 0 | R48: 0 | S48: 25000 | T48: 0 | U48: 0 | V48: 0 | W48: 0 | X48: 0 | Y48: 0 | Z48: 0 | AA48: 25000 | AB48: =SUM(Q48:Z48) -> 25000
A49: 25 | B49: Amélioration de la fiabilité des bassins | C49: Sonaca Montréal inc. | D49: Final | E49: Analyse | F49: Industrie | H49: 15-Laurentides | J49: TE | K49: SU | L49: 12146.75 | M49: 2021-10-08T14:22:14 | N49: 2022-01-28 | O49: PMO - FECC | P49: 24293.5 | Q49: 0 | R49: 0 | S49: 12146.75 | T49: 0 | U49: 0 | V49: 0 | W49: 0 | X49: 0 | Y49: 0 | Z49: 0 | AA49: 12146.75 | AB49: 12146.75
A50: 26 | B50: Étude d'intégration de procédés | C50: Alcyon sel de mer inc. | D50: Final | E50: Analyse | F50: Industrie | H50: 11-Gaspésie--Îles-de-la-Madeleine | J50: TE | K50: SU | L50: 27984 | M50: 2021-06-22T07:54:02 | N50: 2021-12-10 | O50: PMO - FECC | P50: 37312.5 | Q50: 0 | R50: 0 | S50: 27984 | T50: 0 | U50: 0 | V50: 0 | W50: 0 | X50: 0 | Y50: 0 | Z50: 0 | AA50: 27984 | AB50: =SUM(Q50:Z50) -> 27984
A51: 27 | AA51: =SUM(Q51:S51) -> 0 | AB51: 0
A52: 28 | B52: Économies d'énergie - Les Machineries Pronovost inc. | C52: Les Machineries Pronovost inc. | D52: Final | E52: Implantation | F52: Industrie | H52: 04-Mauricie | J52: AC | K52: SU | L52: 206330.83 | M52: 00:00:00 | N52: 2023-03-31 | O52: PMO - FECC | P52: 381500 | Q52: 0 | R52: 0 | S52: 0 | T52: 206330.83 | U52: 0 | V52: 0 | W52: 0 | X52: 0 | Y52: 0 | Z52: 0 | AA52: 0 | AB52: =SUM(Q52:Z52) -> 206330.83
A53: 29 | B53: Efficacité et conversion énergétiques chez Séchoirs St-Élisabeth | C53: Séchoirs St-Élisabeth (9200-4746 Québec inc.) | D53: Final | E53: Implantation | F53: Industrie | H53: 14-Lanaudière | J53: AC | K53: SU | L53: 1066729.24 | M53: 00:00:00 | N53: 2022-12-31 | O53: PMO - FECC | P53: 1487300 | Q53: 0 | R53: 0 | S53: 533364.62 | T53: 533364.62 | U53: 0 | V53: 0 | W53: 0 | X53: 0 | Y53: 0 | Z53: 0 | AA53: =SUM(Q53:S53) -> 533364.62 | AB53: 1066729.24
A54: 30 | B54: Construction d’une ligne électrique en remplacement de deux génératrices pour 9246-7984 Québec inc. | C54: 9246-7984 Québec inc. | D54: Final | E54: Implantation | F54: Industrie | H54: 17-Centre-du-Québec | J54: AC | K54: SU | L54: 14707.03 | M54: 00:00:00 | N54: 2022-06-01 | O54: PMO - FECC | P54: 39625 | Q54: 0 | R54: 0 | S54: 0 | T54: 14707.03 | U54: 0 | V54: 0 | W54: 0 | X54: 0 | Y54: 0 | Z54: 0 | AA54: 0 | AB54: =SUM(Q54:Z54) -> 14707.03
A55: 31 | B55: Ventilation de l'entrepôt de maintenance de Kerry Ste-Claire | C55: Kerry (Canada) inc. | D55: Final | E55: Implantation | F55: Industrie | H55: 12-Chaudière-Appalaches | J55: AC | K55: SU | L55: 35117.42 | M55: 00:00:00 | N55: 2022-09-01 | O55: PMO - FECC | P55: 83123 | Q55: 0 | R55: 0 | S55: 26338.08 | T55: 8779.34 | U55: 0 | V55: 0 | W55: 0 | X55: 0 | Y55: 0 | Z55: 0 | AA55: =SUM(Q55:S55) -> 26338.08 | AB55: 35117.42
A56: 32 | B56: Construction Agropod Verchères - Phase 3 | C56: 9444-0609 Québec inc. | D56: Final | E56: Implantation | F56: Industrie | H56: 16-Montérégie | J56: AC | K56: SU | L56: 1823040 | M56: 00:00:00 | N56: 2024-02-01 | O56: PMO - FECC | P56: 2923200 | Q56: 0 | R56: 0 | S56: 455760 | T56: 911520 | U56: 455760 | V56: 0 | W56: 0 | X56: 0 | Y56: 0 | Z56: 0 | AA56: 455760 | AB56: =SUM(Q56:Z56) -> 1823040
A57: 33 | B57: Agropod Partnership inc. | C57: Agropod Partnership inc. | D57: Final | E57: Implantation | F57: Industrie | H57: 16-Montérégie | J57: AC | K57: SU | L57: 2011961.17 | M57: 00:00:00 | N57: 2023-08-31 | O57: PMO - FECC | P57: 3548900 | Q57: 0 | R57: 0 | S57: 502990.29 | T57: 1005980.58 | U57: 502990.3 | V57: 0 | W57: 0 | X57: 0 | Y57: 0 | Z57: 0 | AA57: =SUM(Q57:S57) -> 502990.29 | AB57: 2011961.17
A58: 34 | B58: Rideaux d'air - Agrimétal inc. | C58: Agrimétal inc. | D58: Final | E58: Implantation | F58: Industrie | H58: 17-Centre-du-Québec | J58: AC | K58: SU | L58: 23681.19 | M58: 00:00:00 | N58: 2022-12-30 | O58: PMO - FECC | P58: 48300 | Q58: 0 | R58: 0 | S58: 17760.9 | T58: 5920.29 | U58: 0 | V58: 0 | W58: 0 | X58: 0 | Y58: 0 | Z58: 0 | AA58: 17760.9 | AB58: =SUM(Q58:Z58) -> 23681.19
A59: 35 | B59: Récupération de chaleur pour la réduction de la consommation du propane | C59: Ouellet Canada inc | D59: Final | E59: Implantation | F59: Industrie | H59: 12-Chaudière-Appalaches | J59: AC | K59: SU | L59: 1022434.28 | M59: 00:00:00 | N59: 2022-11-30 | O59: PMO - FECC | P59: 1811667 | Q59: 0 | R59: 0 | S59: 255608.57 | T59: 766825.71 | U59: 0 | V59: 0 | W59: 0 | X59: 0 | Y59: 0 | Z59: 0 | AA59: =SUM(Q59:S59) -> 255608.57 | AB59: 1022434.28
A60: 36 | B60: Optimisation du système de traitement des COV des ateliers de peinture du bâtiment 318 | C60: Bombardier inc. | D60: Final | E60: Implantation | F60: Industrie | H60: 06-Montréal | J60: AC | K60: SU | L60: 140856.37 | M60: 00:00:00 | N60: 2022-12-30 | O60: PMO - FECC | P60: 521538 | Q60: 0 | R60: 0 | S60: 35214.09 | T60: 105642.28 | U60: 0 | V60: 0 | W60: 0 | X60: 0 | Y60: 0 | Z60: 0 | AA60: 35214.09 | AB60: =SUM(Q60:Z60) -> 140856.37
A61: 37 | B61: Nouveau bâtiment de serre intérieure | C61: PharmaflorX inc. | D61: Final | E61: Implantation | F61: Industrie | H61: 07-Outaouais | J61: AC | K61: SU | L61: 1311196.694 | M61: 2021-07-12T09:03:36 | N61: 2024-05-01 | O61: PMO - FECC | P61: 2048976 | Q61: 0 | R61: 0 | S61: 686817.3226 | T61: 312189.6904 | U61: 0 | V61: 312189.6809 | W61: 0 | X61: 0 | Y61: 0 | Z61: 0 | AA61: =SUM(Q61:S61) -> 686817.3226 | AB61: 1311196.694
A62: 38 | B62: Viandes Première - Agrandissement | C62: 4496663 Canada inc. | D62: Final | E62: Implantation | F62: Industrie | H62: 16-Montérégie | J62: AC | K62: SU | L62: 260790.1177 | M62: 2021-10-13T10:47:38 | N62: 2023-06-30 | O62: PMO - FECC | P62: 839080 | Q62: 0 | R62: 0 | S62: 65197.52786 | T62: 130395.0557 | U62: 65197.53409 | V62: 0 | W62: 0 | X62: 0 | Y62: 0 | Z62: 0 | AA62: 65197.52786 | AB62: =SUM(Q62:Z62) -> 260790.1177
A63: 39 | B63: Implantation d’un séchoir électrique sur rail | C63: Bois LIB inc. | D63: Final | E63: Implantation | F63: Industrie | H63: 17-Centre-du-Québec | J63: AC | K63: SU | L63: 1135106.75 | M63: 2021-07-09T14:05:05 | N63: 2022-06-01 | O63: PMO - FECC | P63: 3293238 | Q63: 0 | R63: 0 | S63: 864843.23 | T63: 270263.52 | U63: 0 | V63: 0 | W63: 0 | X63: 0 | Y63: 0 | Z63: 0 | AA63: =SUM(Q63:S63) -> 864843.23 | AB63: 1135106.75
A64: 40 | B64: Serre agricole, efficacité énergétique et conversion à la biomasse résiduelle | C64: Fraîcheur Urbaine | D64: Final | E64: Implantation | F64: Industrie | H64: 05-Estrie | J64: AC | K64: SU | L64: 22576.0777 | M64: 2021-08-31T10:23:19 | N64: 2022-11-01 | O64: PMO - FECC | P64: 38108 | Q64: 0 | R64: 0 | S64: 16932.05783 | T64: 5644.019872 | U64: 0 | V64: 0 | W64: 0 | X64: 0 | Y64: 0 | Z64: 0 | AA64: 16932.05783 | AB64: =SUM(Q64:Z64) -> 22576.0777
A65: 41 | B65: Installation de thermopompes pour le chauffage | C65: GEA Houle, une division de GEA Farm Technologies Canada | D65: Final | E65: Implantation | F65: Industrie | H65: 17-Centre-du-Québec | J65: AC | K65: SU | L65: 248750 | M65: 2021-06-14T10:46:20 | N65: 2023-04-03 | O65: PMO - FECC | P65: 465000 | Q65: 0 | R65: 0 | S65: 124375 | T65: 62187.5 | U65: 62187.5 | V65: 0 | W65: 0 | X65: 0 | Y65: 0 | Z65: 0 | AA65: =SUM(Q65:S65) -> 124375 | AB65: 248750
A66: 42 | B66: Amélioration de l'efficacité énergétique | C66: Société en commandite Papier Masson WB | D66: Final | E66: Implantation | F66: Industrie | H66: 07-Outaouais | J66: AC | K66: SU | L66: 4146363.08 | M66: 2021-06-11T10:08:25 | N66: 2024-02-01 | O66: PMO - FECC | P66: 5854634 | Q66: 0 | R66: 0 | S66: 0 | T66: 1036590.77 | U66: 3109772.31 | V66: 0 | W66: 0 | X66: 0 | Y66: 0 | Z66: 0 | AA66: 0 | AB66: =SUM(Q66:Z66) -> 4146363.08
A67: 43 | B67: Serre agricole de micropousses – Efficacité énergétique | C67: Les Jardiniers du Chef | D67: Final | E67: Implantation | F67: Industrie | H67: 15-Laurentides | J67: AC | K67: SU | L67: 31750.02 | M67: 2021-10-08T13:58:48 | N67: 2023-12-31 | O67: PMO - FECC | P67: 79046 | Q67: 0 | R67: 0 | S67: 7937.5 | T67: 15875 | U67: 7937.52 | V67: 0 | W67: 0 | X67: 0 | Y67: 0 | Z67: 0 | AA67: =SUM(Q67:S67) -> 7937.5 | AB67: 31750.02
A68: 44 | B68: Électrification d'une cannebergière, phase II | C68: Les Canneberges Dion inc. | D68: Final | E68: Implantation | F68: Industrie | H68: 17-Centre-du-Québec | J68: AC | K68: SU | L68: 244625.29 | M68: 2021-10-06T13:53:38 | N68: 2022-06-01 | O68: PMO - FECC | P68: 642800 | Q68: 0 | R68: 0 | S68: 122312.64 | T68: 122312.65 | U68: 0 | V68: 0 | W68: 0 | X68: 0 | Y68: 0 | Z68: 0 | AA68: 122312.64 | AB68: =SUM(Q68:Z68) -> 244625.29
A69: 45 | B69: Agrandissement de 3 hectares, efficacité énergétique et chauffage à la biomasse | C69: 9328-3810 Québec inc. | D69: Final | E69: Implantation | F69: Industrie | H69: 15-Laurentides | J69: AC | K69: SU | L69: 2209804.46 | M69: 2021-04-19 | N69: 2022-10-01 | O69: PMO - FECC | P69: 6107000 | Q69: 0 | R69: 0 | S69: 1657353.36 | T69: 552451.1 | U69: 0 | V69: 0 | W69: 0 | X69: 0 | Y69: 0 | Z69: 0 | AA69: =SUM(Q69:S69) -> 1657353.36 | AB69: 2209804.46
A70: 46 | B70: Échangeur de chaleur | C70: Soprema inc. | D70: Final | E70: Implantation | F70: Industrie | H70: 17-Centre-du-Québec | J70: AC | K70: SU | L70: 294750 | M70: 2021-06-11T09:01:41 | N70: 2022-04-02 | O70: PMO - FECC | P70: 412500 | Q70: 0 | R70: 0 | S70: 221089.47 | T70: 73660.53 | U70: 0 | V70: 0 | W70: 0 | X70: 0 | Y70: 0 | Z70: 0 | AA70: 221089.47 | AB70: =SUM(Q70:Z70) -> 294750
A71: 47 | B71: Remplacement de deux échangeurs de chaleur | C71: Société en commandite FF Soucy WB | D71: Final | E71: Implantation | F71: Industrie | H71: 01-Bas-Saint-Laurent | J71: AC | K71: SU | L71: 67198.8 | M71: 2022-03-08T10:26:25 | N71: 2021-04-01 | O71: PMO - FECC | P71: 300000 | Q71: 0 | S71: 67199 | T71: 0 | U71: 0 | V71: 0 | W71: 0 | X71: 0 | Y71: 0 | Z71: 0 | AA71: =SUM(Q71:S71) -> 67199 | AB71: 67199
A72: 48 | B72: Écrans thermiques - Phase 3 | C72: Serres Toundra inc. | D72: Final | E72: Implantation | F72: Industrie | H72: 02-Saguenay--Lac-Saint-Jean | J72: AC | K72: SU | L72: 1904919.31 | M72: 2021-07-22T11:52:47 | N72: 2022-10-15 | O72: PMO - FECC | P72: 3232052 | Q72: 0 | R72: 0 | S72: 1428689.49 | T72: 476229.82 | U72: 0 | V72: 0 | W72: 0 | X72: 0 | Y72: 0 | Z72: 0 | AA72: 1428689.49 | AB72: =SUM(Q72:Z72) -> 1904919.31
A73: 49 | B73: Valorisation de rejets thermiques industriels - phase 3 | C73: Serres Toundra inc. | D73: Final | E73: Implantation | F73: Industrie | H73: 02-Saguenay--Lac-Saint-Jean | J73: AC | K73: SU | L73: 3441707.25 | M73: 2022-02-24 | N73: 2023-06-15 | O73: PMO - FECC | P73: 4588943 | Q73: 0 | R73: 0 | S73: 1720853.62 | T73: 860426.81 | U73: 860426.82 | V73: 0 | W73: 0 | X73: 0 | Y73: 0 | Z73: 0 | AA73: =SUM(Q73:S73) -> 1720853.62 | AB73: 3441707.25
A74: 50 | B74: Acériculture-Évaporateur électrique | C74: 9071-0567 Québec inc. | D74: Final | E74: Implantation | F74: Industrie | H74: 12-Chaudière-Appalaches | J74: AC | K74: SU | L74: 28839.67 | M74: 2020-10-21T12:20:52 | N74: 2022-09-25 | O74: PMO - FECC | P74: 81299 | Q74: 0 | R74: 0 | S74: 0 | T74: 28839.67 | U74: 0 | V74: 0 | W74: 0 | X74: 0 | Y74: 0 | Z74: 0 | AA74: 0 | AB74: =SUM(Q74:Z74) -> 28839.67
A75: 51 | B75: Système Thermo PVT, chauffage de l’eau de lavage avec récupération de chaleur sur le procédé de refroidissement du séchoir de canneberges | C75: Fruit d'Or inc. | D75: Final | E75: Implantation | F75: Industrie | H75: 17-Centre-du-Québec | J75: AC | K75: SU | L75: 146244.19 | M75: 2021-05-17T09:45:11 | N75: 2021-11-01 | O75: PMO - FECC | P75: 338000 | Q75: 0 | R75: 0 | S75: 146244.19 | T75: 0 | U75: 0 | V75: 0 | W75: 0 | X75: 0 | Y75: 0 | Z75: 0 | AA75: =SUM(Q75:S75) -> 146244.19 | AB75: 146244.19
A76: 52 | B76: Brûleurs régénératifs Laterrière | C76: Rio Tinto Aluminium | D76: Final | E76: Implantation | F76: Industrie | H76: 02-Saguenay--Lac-Saint-Jean | J76: AC | K76: SU | L76: 302310.56 | M76: 2021-05-17T09:36:04 | N76: 2023-04-28 | O76: PMO - FECC | P76: 10912767 | Q76: 0 | R76: 0 | S76: 158353.14 | T76: 71978.7 | U76: 71978.72 | V76: 0 | W76: 0 | X76: 0 | Y76: 0 | Z76: 0 | AA76: 158353.14 | AB76: =SUM(Q76:Z76) -> 302310.56
A77: 53 | B77: Deux murs solaires et un rideau d'air | C77: ABB Électrification Canada SRI | D77: Final | E77: Implantation | F77: Industrie | H77: 06-Montréal | J77: AC | K77: SU | L77: 60808.99 | M77: 2021-07-22T09:42:54 | N77: 2022-06-01 | O77: PMO - FECC | P77: 144800 | Q77: 0 | R77: 0 | S77: 45606.75 | T77: 15202.24 | U77: 0 | V77: 0 | W77: 0 | X77: 0 | Y77: 0 | Z77: 0 | AA77: =SUM(Q77:S77) -> 45606.75 | AB77: 60808.99
A78: 54 | B78: Mur solaire et rideau d'air | C78: ABB Électrification Canada SRI | D78: Final | E78: Implantation | F78: Industrie | H78: 06-Montréal | J78: AC | K78: SU | L78: 30572 | M78: 2021-09-07T13:23:23 | N78: 2023-05-01 | O78: PMO - FECC | P78: 69000 | Q78: 0 | R78: 0 | S78: 7643 | T78: 15286 | U78: 7643 | V78: 0 | W78: 0 | X78: 0 | Y78: 0 | Z78: 0 | AA78: 7643 | AB78: =SUM(Q78:Z78) -> 30572
A79: 55 | B79: Remplacement d'un concasseur diesel par un nouveau concasseur électrique | C79: Bellemare abrasifs & minéraux | D79: Final | E79: Implantation | F79: Industrie | H79: 04-Mauricie | J79: AC | K79: SU | L79: 182780.28 | M79: 2021-05-17T09:10:24 | N79: 2023-04-29 | O79: PMO - FECC | P79: 350000 | Q79: 0 | R79: 0 | S79: 0 | T79: 139261.18 | U79: 43519.1 | V79: 0 | W79: 0 | X79: 0 | Y79: 0 | Z79: 0 | AA79: =SUM(Q79:S79) -> 0 | AB79: 182780.28
A80: 56 | B80: Remplacement d'un convoyeur empileur au diesel par un convoyeur électrique | C80: Bellemare abrasifs & minéraux | D80: Final | E80: Implantation | F80: Industrie | H80: 04-Mauricie | J80: AC | K80: SU | L80: 67811.3 | M80: 2021-05-31T09:22:11 | N80: 2023-05-31 | O80: PMO - FECC | P80: 127000 | Q80: 0 | R80: 0 | S80: 0 | T80: 51665.76 | U80: 16145.54 | V80: 0 | W80: 0 | X80: 0 | Y80: 0 | Z80: 0 | AA80: 0 | AB80: =SUM(Q80:Z80) -> 67811.3
A81: 57 | B81: Remplacement d'un tamiseur rotatif Laprade diesel par un tamiseur rotatif Laprade électrique | C81: Bellemare abrasifs & minéraux | D81: Final | E81: Implantation | F81: Industrie | H81: 04-Mauricie | J81: AC | K81: SU | L81: 75129.15 | M81: 2021-05-31T09:24:05 | N81: 2022-05-31 | O81: PMO - FECC | P81: 137000 | Q81: 0 | R81: 0 | S81: 57241.25 | T81: 17887.9 | U81: 0 | V81: 0 | W81: 0 | X81: 0 | Y81: 0 | Z81: 0 | AA81: =SUM(Q81:S81) -> 57241.25 | AB81: 75129.15
A82: 58 | B82: Remplacement d'un tamiseur McCloskey diesel par un tamiseur bivi-TEC électrique | C82: Bellemare abrasifs & minéraux | D82: Final | E82: Implantation | F82: Industrie | H82: 04-Mauricie | J82: AC | K82: SU | L82: 136112.04 | M82: 2021-05-17T09:16:23 | N82: 2023-04-29 | O82: PMO - FECC | P82: 259655 | Q82: 0 | R82: 0 | S82: 0 | T82: 103704.42 | U82: 32407.62 | V82: 0 | W82: 0 | X82: 0 | Y82: 0 | Z82: 0 | AA82: 0 | AB82: =SUM(Q82:Z82) -> 136112.04
A83: 59 | B83: Remplacement d'un tamiseur Powerscreen diesel par un tamiseur Midwestern électrique | C83: Bellemare abrasifs & minéraux | D83: Final | E83: Implantation | F83: Industrie | H83: 04-Mauricie | J83: AC | K83: SU | L83: 43899.08 | M83: 2021-05-31T09:26:09 | N83: 2023-05-31 | O83: PMO - FECC | P83: 112968 | Q83: 0 | R83: 0 | S83: 0 | T83: 33446.91 | U83: 10452.17 | V83: 0 | W83: 0 | X83: 0 | Y83: 0 | Z83: 0 | AA83: =SUM(Q83:S83) -> 0 | AB83: 43899.08
A84: 60 | B84: Remplacement tamiseur rotatif Vermeer diesel par tamiseur rotatif Vermeer électrique | C84: Bellemare abrasifs & minéraux | D84: Final | E84: Implantation | F84: Industrie | H84: 04-Mauricie | J84: AC | K84: SU | L84: 215435.9 | M84: 2021-05-17T09:18:42 | N84: 2023-04-29 | O84: PMO - FECC | P84: 579000 | Q84: 0 | R84: 0 | S84: 0 | T84: 164141.63 | U84: 51294.27 | V84: 0 | W84: 0 | X84: 0 | Y84: 0 | Z84: 0 | AA84: 0 | AB84: =SUM(Q84:Z84) -> 215435.9
A85: 61 | B85: Récupération de chaleur sur les refroidisseurs | C85: GSK Vaccins | D85: Final | E85: Implantation | F85: Industrie | H85: 03-Capitale-Nationale | J85: AC | K85: SU | L85: 548076.5 | M85: 2021-05-17T08:53:50 | N85: 2022-08-31 | O85: PMO - FECC | P85: 1882992 | Q85: 0 | R85: 0 | S85: 411057.36 | T85: 137019.14 | U85: 0 | V85: 0 | W85: 0 | X85: 0 | Y85: 0 | Z85: 0 | AA85: =SUM(Q85:S85) -> 411057.36 | AB85: 548076.5
A86: 62 | B86: Installation d'échangeurs de chaleur | C86: Volailles St-Hugues inc. | D86: Final | E86: Implantation | F86: Industrie | H86: 16-Montérégie | J86: AC | K86: SU | L86: 53416.15 | M86: 2022-02-18T10:02:59 | N86: 2023-03-01 | O86: PMO - FECC | P86: 112806 | Q86: 0 | R86: 0 | S86: 0 | T86: 53416.15 | U86: 0 | V86: 0 | W86: 0 | X86: 0 | Y86: 0 | Z86: 0 | AA86: 0 | AB86: =SUM(Q86:Z86) -> 53416.15
A87: 63 | B87: Acériculture-Évaporateur électrique | C87: B.M. Les Hauteurs inc. | D87: Final | E87: Implantation | F87: Industrie | H87: 01-Bas-Saint-Laurent | J87: AC | K87: SU | L87: 48923.41 | M87: 2020-06-29T17:19:55 | N87: 2021-06-01 | O87: PMO - FECC | P87: 100216 | Q87: 0 | R87: 0 | S87: 48923.41 | T87: 0 | U87: 0 | V87: 0 | W87: 0 | X87: 0 | Y87: 0 | Z87: 0 | AA87: =SUM(Q87:S87) -> 48923.41 | AB87: 48923.41
A88: 64 | B88: Serre agricole de culture mixte – Efficacité énergétique | C88: Coop de travailleurs en serres Belle-de-Jour | D88: Final | E88: Implantation | F88: Industrie | H88: 02-Saguenay--Lac-Saint-Jean | J88: AC | K88: SU | L88: 48309.33 | M88: 2021-05-11T08:44:00 | N88: 2022-10-15 | O88: PMO - FECC | P88: 92505 | Q88: 0 | R88: 0 | S88: 36231.99 | T88: 12077.34 | U88: 0 | V88: 0 | W88: 0 | X88: 0 | Y88: 0 | Z88: 0 | AA88: 36231.99 | AB88: =SUM(Q88:Z88) -> 48309.33
A89: 65 | B89: Électrification d’un deuxième séchoir sur rail | C89: Damabois division Cap-Chat inc. | D89: Final | E89: Implantation | F89: Industrie | H89: 11-Gaspésie--Îles-de-la-Madeleine | J89: AC | K89: SU | L89: 1005090.53 | M89: 2021-09-20T09:01:34 | N89: 2022-06-01 | O89: PMO - FECC | P89: 2937804 | Q89: 0 | R89: 0 | S89: 526475.99 | T89: 478614.54 | U89: 0 | V89: 0 | W89: 0 | X89: 0 | Y89: 0 | Z89: 0 | AA89: =SUM(Q89:S89) -> 526475.99 | AB89: 1005090.53
A90: 66 | B90: Acériculture-Évaporateur électrique | C90: Les érablières Lalanne inc. | D90: Final | E90: Implantation | F90: Industrie | H90: 05-Estrie | J90: AC | K90: SU | L90: 53345.73 | M90: 2020-09-14T17:08:10 | N90: 2022-01-30 | O90: PMO - FECC | P90: 112193 | Q90: 0 | R90: 0 | S90: 50805.46 | T90: 2540.27 | U90: 0 | V90: 0 | W90: 0 | X90: 0 | Y90: 0 | Z90: 0 | AA90: 50805.46 | AB90: =SUM(Q90:Z90) -> 53345.73
A91: 67 | B91: Électrification du chauffage des unités air make-up | C91: Structures CPI inc. | D91: Final | E91: Implantation | F91: Industrie | H91: 02-Saguenay--Lac-Saint-Jean | J91: AC | K91: SU | L91: 463896.91 | M91: 2021-10-20T11:28:35 | N91: 2022-06-30 | O91: PMO - FECC | P91: 651318 | Q91: 0 | R91: 0 | S91: 242305.93 | T91: 221590.98 | U91: 0 | V91: 0 | W91: 0 | X91: 0 | Y91: 0 | Z91: 0 | AA91: =SUM(Q91:S91) -> 242305.93 | AB91: 463896.91
A92: 68 | B92: Économie d'énergie | C92: Quali-T-Groupe ULC | D92: Final | E92: Implantation | F92: Industrie | H92: 05-Estrie | J92: AC | K92: SU | L92: 622769.25 | M92: 2021-05-17T09:42:41 | N92: 2022-08-31 | O92: PMO - FECC | P92: 960675 | Q92: 0 | R92: 0 | S92: 473361.78 | T92: 149407.47 | U92: 0 | V92: 0 | W92: 0 | X92: 0 | Y92: 0 | Z92: 0 | AA92: 473361.78 | AB92: =SUM(Q92:Z92) -> 622769.25
A93: 69 | B93: Conversion à la biomasse résiduelle et implantation d’écrans thermiques en serres | C93: 9354-1704 Québec inc. (Les serres Stéphane Bertrand inc.) | D93: Final | E93: Implantation | F93: Industrie | H93: 14-Lanaudière | J93: AC | K93: SU | L93: 2263558.52 | M93: 2021-04-23 | N93: 2024-05-01 | O93: PMO - FECC | P93: 4014292 | Q93: 0 | R93: 0 | S93: 0 | T93: 1131779.26 | U93: 565889.63 | V93: 565889.63 | W93: 0 | X93: 0 | Y93: 0 | Z93: 0 | AA93: =SUM(Q93:S93) -> 0 | AB93: 2263558.52
A94: 70 | B94: Rideaux d'air | C94: Industries Machinex inc. | D94: Final | E94: Implantation | F94: Industrie | H94: 17-Centre-du-Québec | J94: AC | K94: SU | L94: 58770.87 | M94: 2021-08-11T13:08:18 | N94: 2023-09-20 | O94: PMO - FECC | P94: 99950 | Q94: 0 | R94: 0 | S94: 29385.44 | T94: 14692.72 | U94: 14692.71 | V94: 0 | W94: 0 | X94: 0 | Y94: 0 | Z94: 0 | AA94: 29385.44 | AB94: =SUM(Q94:Z94) -> 58770.87
A95: 71 | B95: Acériculture-Évaporateur électrique | C95: Ferme Pascal Binette inc. | D95: Final | E95: Implantation | F95: Industrie | H95: 17-Centre-du-Québec | J95: AC | K95: SU | L95: 65784.36 | M95: 2020-10-08T11:07:02 | N95: 2022-03-14 | O95: PMO - FECC | P95: 119194 | Q95: 0 | R95: 0 | S95: 65784.36 | T95: 0 | U95: 0 | V95: 0 | W95: 0 | X95: 0 | Y95: 0 | Z95: 0 | AA95: =SUM(Q95:S95) -> 65784.36 | AB95: 65784.36
A96: 72 | B96: Optimisation énergétique des bassins de galvanisation | C96: ArcelorMittal Produits longs Canada s.e.n.c. | D96: Final | E96: Implantation | F96: Industrie | H96: 06-Montréal | J96: AC | K96: SU | L96: 202239.05 | M96: 2021-05-17T09:08:29 | N96: 2022-08-30 | O96: PMO - FECC | P96: 1050000 | Q96: 0 | R96: 0 | S96: 105934.75 | T96: 96304.3 | U96: 0 | V96: 0 | W96: 0 | X96: 0 | Y96: 0 | Z96: 0 | AA96: 105934.75 | AB96: =SUM(Q96:Z96) -> 202239.05
A97: 73 | B97: Implantation d'une unité de traitement d'air efficace | C97: Agropod Limitée | D97: Final | E97: Implantation | F97: Industrie | H97: 16-Montérégie | J97: AC | K97: SU | L97: 1771200 | M97: 2021-05-18T10:48:19 | N97: 2023-01-24 | O97: PMO - FECC | P97: 3456000 | Q97: 0 | R97: 0 | S97: 1328400 | T97: 442800 | U97: 0 | V97: 0 | W97: 0 | X97: 0 | Y97: 0 | Z97: 0 | AA97: =SUM(Q97:S97) -> 1328400 | AB97: 1771200
A98: 74 | B98: Construction d'une nouvelle usine pour les produits pour la peau à base de lait de chèvre | C98: Bopack inc. | D98: Final | E98: Implantation | F98: Industrie | H98: 17-Centre-du-Québec | J98: AC | K98: SU | L98: 54350 | M98: 2022-02-18T12:59:04 | N98: 2023-02-01 | O98: PMO - FECC | P98: 1399375 | Q98: 0 | R98: 0 | S98: 0 | T98: 54350 | U98: 0 | V98: 0 | W98: 0 | X98: 0 | Y98: 0 | Z98: 0 | AA98: 0 | AB98: =SUM(Q98:Z98) -> 54350
A99: 75 | B99: Conversion électrique de chariots élévateurs | C99: Boa-Franc, S.E.N.C. | D99: Final | E99: Implantation | F99: Industrie | H99: 12-Chaudière-Appalaches | J99: AC | K99: SU | L99: 117115.79 | M99: 2021-09-13T13:42:40 | N99: 2024-11-07 | O99: PMO - FECC | P99: 843068 | Q99: 0 | R99: 0 | S99: 0 | T99: 61346.36 | U99: 0 | V99: 55769.43 | W99: 0 | X99: 0 | Y99: 0 | Z99: 0 | AA99: =SUM(Q99:S99) -> 0 | AB99: 117115.79
A100: 76 | B100: Remplacement de chariots élévateurs | C100: Boa-Franc, S.E.N.C. | D100: Final | E100: Implantation | F100: Industrie | H100: 12-Chaudière-Appalaches | J100: AC | K100: SU | L100: 158272.82 | M100: 2021-09-23T11:30:40 | N100: 2024-11-07 | O100: PMO - FECC | P100: 750116 | Q100: 0 | R100: 0 | S100: 45220.8 | T100: 37684 | U100: 0 | V100: 75368.02 | W100: 0 | X100: 0 | Y100: 0 | Z100: 0 | AA100: 45220.8 | AB100: =SUM(Q100:Z100) -> 158272.82
A101: 77 | B101: Mur solaire | C101: Boa-Franc, S.E.N.C. | D101: Final | E101: Implantation | F101: Industrie | H101: 12-Chaudière-Appalaches | J101: AC | K101: SU | L101: 53448 | M101: 2021-10-08T14:08:15 | N101: 2023-03-31 | O101: PMO - FECC | P101: 150000 | Q101: 0 | R101: 0 | S101: 40086 | T101: 13362 | U101: 0 | V101: 0 | W101: 0 | X101: 0 | Y101: 0 | Z101: 0 | AA101: =SUM(Q101:S101) -> 40086 | AB101: 53448
A102: 78 | B102: Mur solaire | C102: Soprema inc. | D102: Final | E102: Implantation | F102: Industrie | H102: 17-Centre-du-Québec | J102: AC | K102: SU | L102: 12449 | M102: 2021-08-11T13:48:26 | N102: 2022-03-31 | O102: PMO - FECC | P102: 86700 | Q102: 0 | R102: 0 | S102: 12449 | T102: 0 | U102: 0 | V102: 0 | W102: 0 | X102: 0 | Y102: 0 | Z102: 0 | AA102: 12449 | AB102: =SUM(Q102:Z102) -> 12449
A103: 79 | B103: Construction d'une usine de cannabis | C103: Ono Cannabis inc. | D103: Final | E103: Implantation | F103: Industrie | H103: 12-Chaudière-Appalaches | J103: AC | K103: SU | L103: 887251.34 | M103: 2021-07-06T15:02:35 | N103: 2024-04-01 | O103: PMO - FECC | P103: 2282500 | Q103: 0 | R103: 0 | S103: 464750.7 | T103: 0 | U103: 211250.32 | V103: 211250.32 | W103: 0 | X103: 0 | Y103: 0 | Z103: 0 | AA103: =SUM(Q103:S103) -> 464750.7 | AB103: 887251.34
A104: 80 | B104: Mur solaire | C104: Soprema inc. | D104: Final | E104: Implantation | F104: Industrie | H104: 14-Lanaudière | J104: AC | K104: SU | L104: 31192.56 | M104: 2021-06-14T10:37:34 | N104: 2022-04-30 | O104: PMO - FECC | P104: 75800 | Q104: 0 | R104: 0 | S104: 23765.76 | T104: 7426.8 | U104: 0 | V104: 0 | W104: 0 | X104: 0 | Y104: 0 | Z104: 0 | AA104: 23765.76 | AB104: =SUM(Q104:Z104) -> 31192.56
A105: 81 | B105: Réduction des GES par la technique de l'osmose inverse | C105: Fromagerie Boivin | D105: Final | E105: Implantation | F105: Industrie | H105: 02-Saguenay--Lac-Saint-Jean | J105: AC | K105: SU | L105: 604273.25 | M105: 2021-07-12T08:48:04 | N105: 2022-10-01 | O105: PMO - FECC | P105: 1151031 | Q105: 0 | R105: 0 | S105: 453204.93 | T105: 151068.32 | U105: 0 | V105: 0 | W105: 0 | X105: 0 | Y105: 0 | Z105: 0 | AA105: =SUM(Q105:S105) -> 453204.93 | AB105: 604273.25
A106: 82 | B106: Ajout d'échangeurs de chaleur dans des bâtiments d'élevage de volailles | C106: Ferme Avicole MGF inc. | D106: Final | E106: Implantation | F106: Industrie | H106: 16-Montérégie | J106: AC | K106: SU | L106: 184145.84 | M106: 2021-05-17T09:37:42 | N106: 2023-07-30 | O106: PMO - FECC | P106: 269819 | Q106: 0 | R106: 0 | S106: 140301.6 | T106: 0 | U106: 43844.24 | V106: 0 | W106: 0 | X106: 0 | Y106: 0 | Z106: 0 | AA106: 140301.6 | AB106: =SUM(Q106:Z106) -> 184145.84
A107: 83 | B107: Alimentation de l'usine en vapeur à faibles émissions de GES - Projet révisé | C107: Produits Kruger Sherbrooke Inc. | D107: Final | E107: Implantation | F107: Industrie | H107: 05-Estrie | J107: AC | K107: SU | L107: 5000000 | M107: 2021-08-13T15:26:26 | N107: 2023-01-31 | O107: PMO - FECC | P107: 7242710 | Q107: 0 | R107: 0 | S107: 1250000 | T107: 3750000 | U107: 0 | V107: 0 | W107: 0 | X107: 0 | Y107: 0 | Z107: 0 | AA107: =SUM(Q107:S107) -> 1250000 | AB107: 5000000
A108: 84 | B108: Économie d'énergie | C108: ABB Électrification Canada SRI | D108: Final | E108: Implantation | F108: Industrie | H108: 06-Montréal | J108: AC | K108: SU | L108: 379443.31 | M108: 2021-05-17T09:33:24 | N108: 2022-06-01 | O108: PMO - FECC | P108: 566000 | Q108: 0 | R108: 0 | S108: 286270.17 | T108: 93173.14 | U108: 0 | V108: 0 | W108: 0 | X108: 0 | Y108: 0 | Z108: 0 | AA108: 286270.17 | AB108: =SUM(Q108:Z108) -> 379443.31
A109: 85 | B109: Alimentation au procédé et cascade | C109: ABB Électrification Canada SRI | D109: Final | E109: Implantation | F109: Industrie | H109: 06-Montréal | J109: AC | K109: SU | L109: 97459.58 | M109: 2021-12-13T08:42:14 | N109: 2022-10-01 | O109: PMO - FECC | P109: 152500 | Q109: 0 | R109: 0 | S109: 24364.9 | T109: 73094.68 | U109: 0 | V109: 0 | W109: 0 | X109: 0 | Y109: 0 | Z109: 0 | AA109: =SUM(Q109:S109) -> 24364.9 | AB109: 97459.58
A110: 86 | B110: Ajout d'échangeurs de chaleur dans des bâtiments d'élevage de volailles | C110: Les Élevages Avico inc. | D110: Final | E110: Implantation | F110: Industrie | H110: 16-Montérégie | J110: AC | K110: SU | L110: 114267.07 | M110: 2021-05-17T09:49:19 | N110: 2023-07-30 | O110: PMO - FECC | P110: 179610 | Q110: 0 | R110: 0 | S110: 87060.61 | T110: 0 | U110: 27206.46 | V110: 0 | W110: 0 | X110: 0 | Y110: 0 | Z110: 0 | AA110: 87060.61 | AB110: =SUM(Q110:Z110) -> 114267.07
A111: 87 | B111: Ajout d'échangeurs de chaleur dans des bâtiments d'élevage de volailles | C111: Ferme Gilles Brodeur inc. | D111: Final | E111: Implantation | F111: Industrie | H111: 05-Estrie | J111: AC | K111: SU | L111: 189318.26 | M111: 2021-06-11T11:49:00 | N111: 2024-04-01 | O111: PMO - FECC | P111: 288064 | Q111: 0 | R111: 0 | S111: 47329.56 | T111: 94659.12 | U111: 0 | V111: 47329.58 | W111: 0 | X111: 0 | Y111: 0 | Z111: 0 | AA111: =SUM(Q111:S111) -> 47329.56 | AB111: 189318.26
A112: 88 | B112: Remplacement d'une génératrice au diesel pour la production de granulats par une entrée électrique | C112: Pavage Sartigan ltée | D112: Final | E112: Implantation | F112: Industrie | H112: 12-Chaudière-Appalaches | J112: AC | K112: SU | L112: 514310.84 | M112: 2021-06-11T10:19:14 | N112: 2022-12-15 | O112: PMO - FECC | P112: 867182 | Q112: 0 | R112: 0 | S112: 257155.42 | T112: 257155.42 | U112: 0 | V112: 0 | W112: 0 | X112: 0 | Y112: 0 | Z112: 0 | AA112: 257155.42 | AB112: =SUM(Q112:Z112) -> 514310.84
A113: 89 | B113: Conversion électrique des systèmes de pompage (diesel) pour l'irrigation des petits fruits | C113: Les Fraises de l'Île d'Orléans inc. | D113: Final | E113: Implantation | F113: Industrie | H113: 03-Capitale-Nationale | J113: AC | K113: SU | L113: 17878.69 | M113: 2021-06-14T10:35:11 | N113: 2022-11-25 | O113: PMO - FECC | P113: 50351 | Q113: 0 | R113: 0 | S113: 13409.01 | T113: 4469.68 | U113: 0 | V113: 0 | W113: 0 | X113: 0 | Y113: 0 | Z113: 0 | AA113: =SUM(Q113:S113) -> 13409.01 | AB113: 17878.69
A114: 90 | B114: Acériculture-Évaporateur électrique | C114: Érablière Mont Yamaska 2009 inc. | D114: Final | E114: Implantation | F114: Industrie | H114: 16-Montérégie | J114: AC | K114: SU | L114: 67299.72 | M114: 2021-03-03T13:10:25 | N114: 2022-02-28 | O114: PMO - FECC | P114: 120182 | Q114: 0 | R114: 0 | S114: 67299.72 | T114: 0 | U114: 0 | V114: 0 | W114: 0 | X114: 0 | Y114: 0 | Z114: 0 | AA114: 67299.72 | AB114: =SUM(Q114:Z114) -> 67299.72
A115: 91 | B115: Serre agricole de culture mixte – Efficacité énergétique - Écrans thermiques | C115: Maurice Bélanger paysagiste inc. | D115: Final | E115: Implantation | F115: Industrie | H115: 01-Bas-Saint-Laurent | J115: AC | K115: SU | L115: 17954.22 | M115: 2021-07-22T09:38:50 | N115: 2023-01-10 | O115: PMO - FECC | P115: 43688 | Q115: 0 | R115: 0 | S115: 13465.68 | T115: 4488.54 | U115: 0 | V115: 0 | W115: 0 | X115: 0 | Y115: 0 | Z115: 0 | AA115: =SUM(Q115:S115) -> 13465.68 | AB115: 17954.22
A116: 92 | B116: Mur solaire | C116: Acier Rayco (2016) inc. | D116: Final | E116: Implantation | F116: Industrie | H116: 04-Mauricie | J116: AC | K116: SU | L116: 16609.18 | M116: 2021-08-11T13:58:24 | N116: 2022-05-31 | O116: PMO - FECC | P116: 35700 | Q116: 0 | R116: 0 | S116: 12456.9 | T116: 4152.28 | U116: 0 | V116: 0 | W116: 0 | X116: 0 | Y116: 0 | Z116: 0 | AA116: 12456.9 | AB116: =SUM(Q116:Z116) -> 16609.18
A117: 93 | B117: Serre-Conversion chauffage-CII- électrique | C117: La Boîte à Légumes Inc. | D117: Final | E117: Implantation | F117: Industrie | H117: 05-Estrie | J117: AC | K117: SU | L117: 53010 | M117: 2021-05-27T12:34:23 | N117: 2022-06-01 | O117: PMO - FECC | P117: 70680 | Q117: 0 | R117: 0 | S117: 0 | T117: 53010 | U117: 0 | V117: 0 | W117: 0 | X117: 0 | Y117: 0 | Z117: 0 | AA117: =SUM(Q117:S117) -> 0 | AB117: 53010
A118: 94 | B118: Installation d'un Flu-Ace et de trappes à vapeur Venturi | C118: Société en commandite Stadacona WB | D118: Final | E118: Implantation | F118: Industrie | H118: 03-Capitale-Nationale | J118: AC | K118: SU | L118: 3700585.55 | M118: 2021-05-26T09:33:57 | N118: 2022-12-01 | O118: PMO - FECC | P118: 7076525 | Q118: 0 | R118: 0 | S118: 1850292.78 | T118: 1850292.77 | U118: 0 | V118: 0 | W118: 0 | X118: 0 | Y118: 0 | Z118: 0 | AA118: 1850292.78 | AB118: =SUM(Q118:Z118) -> 3700585.55
A119: 95 | B119: Optimisation du réseau de vapeur et remplacement de la turbine à vapeur | C119: Société en commandite Stadacona WB | D119: Final | E119: Implantation | F119: Industrie | H119: 03-Capitale-Nationale | J119: AC | K119: SU | L119: 905941 | M119: 2021-06-11T11:57:59 | N119: 2023-12-31 | O119: PMO - FECC | P119: 1689602 | Q119: 0 | R119: 0 | S119: 226485.25 | T119: 452970.5 | U119: 226485.25 | V119: 0 | W119: 0 | X119: 0 | Y119: 0 | Z119: 0 | AA119: =SUM(Q119:S119) -> 226485.25 | AB119: 905941
A120: 96 | B120: Économie d'énergie | C120: Manac inc. | D120: Final | E120: Implantation | F120: Industrie | H120: 12-Chaudière-Appalaches | J120: AC | K120: SU | L120: 285344.63 | M120: 2022-02-07T11:34:25 | N120: 2022-05-28 | O120: PMO - FECC | P120: 460000 | Q120: 0 | R120: 0 | S120: 142672.32 | T120: 142672.31 | U120: 0 | V120: 0 | W120: 0 | X120: 0 | Y120: 0 | Z120: 0 | AA120: 142672.32 | AB120: =SUM(Q120:Z120) -> 285344.63
A121: 97 | B121: Économie d'énergie | C121: Manac inc. | D121: Final | E121: Implantation | F121: Industrie | H121: 12-Chaudière-Appalaches | J121: AC | K121: SU | L121: 291880.49 | M121: 2021-12-20T10:38:35 | N121: 2023-05-31 | O121: PMO - FECC | P121: 529000 | Q121: 0 | R121: 0 | S121: 145940.24 | T121: 72970.12 | U121: 72970.13 | V121: 0 | W121: 0 | X121: 0 | Y121: 0 | Z121: 0 | AA121: =SUM(Q121:S121) -> 145940.24 | AB121: 291880.49
A122: 98 | B122: Serre-Conversion chauffage-CII- électrique | C122: Ferme Cabru inc. | D122: Final | E122: Implantation | F122: Industrie | H122: 16-Montérégie | J122: AC | K122: SU | L122: 51212.91 | M122: 2021-04-12T10:32:03 | N122: 2022-05-02 | O122: PMO - FECC | P122: 71976 | Q122: 0 | R122: 0 | S122: 0 | T122: 51212.91 | U122: 0 | V122: 0 | W122: 0 | X122: 0 | Y122: 0 | Z122: 0 | AA122: 0 | AB122: =SUM(Q122:Z122) -> 51212.91
A123: 99 | B123: Construction Agropod Verchères | C123: Agropod Services inc. | D123: Final | E123: Implantation | F123: Industrie | H123: 16-Montérégie | J123: AC | K123: SU | L123: 1913913 | M123: 2021-11-10T08:24:51 | N123: 2023-07-03 | O123: PMO - FECC | P123: 3030000 | Q123: 0 | R123: 0 | S123: 956956.5 | T123: 478478.25 | U123: 478478.25 | V123: 0 | W123: 0 | X123: 0 | Y123: 0 | Z123: 0 | AA123: =SUM(Q123:S123) -> 956956.5 | AB123: 1913913
A124: 100 | B124: Conversion du chauffage à la géothermie | C124: Les Jardins de l'Écoumène inc. | D124: Final | E124: Implantation | F124: Industrie | H124: 14-Lanaudière | J124: AC | K124: SU | L124: 28821.39 | M124: 2022-01-17T10:43:22 | N124: 2022-07-01 | O124: PMO - FECC | P124: 343089 | Q124: 0 | R124: 0 | S124: 21616.05 | T124: 7205.34 | U124: 0 | V124: 0 | W124: 0 | X124: 0 | Y124: 0 | Z124: 0 | AA124: 21616.05 | AB124: =SUM(Q124:Z124) -> 28821.39
A125: 101 | B125: Chauffage solaire sur l'agrandissement de l'usine Matritech | C125: Gestion immeubles Cardin inc. | D125: Final | E125: Implantation | F125: Industrie | H125: 17-Centre-du-Québec | J125: AC | K125: SU | L125: 134107.39 | M125: 2021-05-31T09:09:03 | N125: 2022-04-30 | O125: PMO - FECC | P125: 331720 | Q125: 0 | R125: 0 | S125: 100580.55 | T125: 33526.84 | U125: 0 | V125: 0 | W125: 0 | X125: 0 | Y125: 0 | Z125: 0 | AA125: =SUM(Q125:S125) -> 100580.55 | AB125: 134107.39
A126: 102 | B126: Serre-Conversion chauffage-CII- électrique | C126: La cigale et la fourmi! | D126: Final | E126: Implantation | F126: Industrie | H126: 11-Gaspésie--Îles-de-la-Madeleine | J126: AC | K126: SU | L126: 16948.46 | M126: 2021-03-16T13:20:43 | N126: 2022-12-01 | O126: PMO - FECC | P126: 22598 | Q126: 0 | R126: 0 | S126: 0 | T126: 16948.46 | U126: 0 | V126: 0 | W126: 0 | X126: 0 | Y126: 0 | Z126: 0 | AA126: 0 | AB126: =SUM(Q126:Z126) -> 16948.46
A127: 103 | B127: Boucle de récupération de chaleur au glycol pour chauffage et préchauffage divers | C127: 9416-8382 Québec inc. | D127: Final | E127: Implantation | F127: Industrie | H127: 05-Estrie | J127: AC | K127: SU | L127: 1063486.74 | M127: 2021-08-13T15:28:18 | N127: 2023-06-05 | O127: PMO - FECC | P127: 2967212 | Q127: 0 | R127: 0 | S127: 0 | T127: 797615.04 | U127: 265871.7 | V127: 0 | W127: 0 | X127: 0 | Y127: 0 | Z127: 0 | AA127: =SUM(Q127:S127) -> 0 | AB127: 1063486.74
A128: 104 | B128: Remplacement de deux séchoirs à grains | C128: Ferme du Cordon inc. | D128: Final | E128: Implantation | F128: Industrie | H128: 17-Centre-du-Québec | J128: AC | K128: SU | L128: 42130.1 | M128: 2021-08-31T08:56:10 | N128: 2022-05-01 | O128: PMO - FECC | P128: 297790 | Q128: 0 | R128: 0 | S128: 31597.56 | T128: 10532.54 | U128: 0 | V128: 0 | W128: 0 | X128: 0 | Y128: 0 | Z128: 0 | AA128: 31597.56 | AB128: =SUM(Q128:Z128) -> 42130.1
A129: 105 | B129: Plan de séchage de grains | C129: Ferme Maquille inc. | D129: Final | E129: Implantation | F129: Industrie | H129: 17-Centre-du-Québec | J129: AC | K129: SU | L129: 92061.3 | M129: 2021-10-21T14:02:27 | N129: 2022-12-15 | O129: PMO - FECC | P129: 324684 | Q129: 0 | R129: 0 | S129: 69045.96 | T129: 23015.34 | U129: 0 | V129: 0 | W129: 0 | X129: 0 | Y129: 0 | Z129: 0 | AA129: =SUM(Q129:S129) -> 69045.96 | AB129: 92061.3
A130: 106 | B130: Implantation de deux séchoirs fixes électriques | C130: Normand Sioui | D130: Final | E130: Implantation | F130: Industrie | H130: 03-Capitale-Nationale | J130: AC | K130: SU | L130: 688530.71 | M130: 2021-10-27T14:13:55 | N130: 2022-03-22 | O130: PMO - FECC | P130: 1629000 | Q130: 0 | R130: 0 | S130: 688530.71 | T130: 0 | U130: 0 | V130: 0 | W130: 0 | X130: 0 | Y130: 0 | Z130: 0 | AA130: 688530.71 | AB130: =SUM(Q130:Z130) -> 688530.71
A131: 107 | B131: Cannasher - Récupération de chaleur du procédé | C131: TPC3 investissements inc. | D131: Final | E131: Implantation | F131: Industrie | H131: 05-Estrie | J131: AC | K131: SU | L131: 2193140.6 | M131: 2021-11-17T11:01:34 | N131: 2023-10-15 | O131: PMO - FECC | P131: 11698147 | Q131: 0 | R131: 0 | S131: 0 | T131: 1644855.45 | U131: 548285.15 | V131: 0 | W131: 0 | X131: 0 | Y131: 0 | Z131: 0 | AA131: =SUM(Q131:S131) -> 0 | AB131: 2193140.6
A132: 108 | B132: Conversion électrique des systèmes de pompage (diesel) pour l'irrigation des petits fruits | C132: Les Fraises de l'Île d'Orléans inc. | D132: Final | E132: Implantation | F132: Industrie | H132: 03-Capitale-Nationale | J132: AC | K132: SU | L132: 20326.53 | M132: 2021-06-14T10:33:31 | N132: 2022-10-15 | O132: PMO - FECC | P132: 56051 | Q132: 0 | R132: 0 | S132: 15244.89 | T132: 5081.64 | U132: 0 | V132: 0 | W132: 0 | X132: 0 | Y132: 0 | Z132: 0 | AA132: 15244.89 | AB132: =SUM(Q132:Z132) -> 20326.53
A133: 109 | B133: Ajout d'une chaudière électrique de 1250 kW pour utilisation hors-pointe | C133: Bernard Breton inc. | D133: Final | E133: Implantation | F133: Industrie | H133: 12-Chaudière-Appalaches | J133: AC | K133: SU | L133: 394770 | M133: 2022-02-24T13:14:48 | N133: 2022-10-15 | O133: PMO - FECC | P133: 526360 | Q133: 0 | R133: 0 | S133: 0 | T133: 394770 | U133: 0 | V133: 0 | W133: 0 | X133: 0 | Y133: 0 | Z133: 0 | AA133: =SUM(Q133:S133) -> 0 | AB133: 394770
A134: 110 | B134: Construction d'un complexe de serres et implantation de mesures d’efficacité énergétique | C134: Marie-Josée Daguerre, Louis Vaillancourt S.E.N.C. | D134: Final | E134: Implantation | F134: Industrie | H134: 15-Laurentides | J134: AC | K134: SU | L134: 633125 | M134: 2022-02-16T08:13:53 | N134: 2023-04-01 | O134: PMO - FECC | P134: 1163900 | Q134: 0 | R134: 0 | S134: 474843.75 | T134: 0 | U134: 158281.25 | V134: 0 | W134: 0 | X134: 0 | Y134: 0 | Z134: 0 | AA134: 474843.75 | AB134: =SUM(Q134:Z134) -> 633125
A135: 111 | B135: Acériculture-Évaporateur électrique | C135: Érablière Maxime Caron inc. | D135: Final | E135: Implantation | F135: Industrie | H135: 12-Chaudière-Appalaches | J135: AC | K135: SU | L135: 69176.06 | M135: 2021-05-05T08:55:19 | N135: 2022-06-30 | O135: PMO - FECC | P135: 122018 | Q135: 0 | R135: 0 | S135: 0 | T135: 69176.06 | U135: 0 | V135: 0 | W135: 0 | X135: 0 | Y135: 0 | Z135: 0 | AA135: =SUM(Q135:S135) -> 0 | AB135: 69176.06
A136: 112 | B136: Remplacement du brûleur Hauck | C136: Les Pavages des Monts | D136: Final | E136: Implantation | F136: Industrie | H136: 01-Bas-Saint-Laurent | J136: AC | K136: SU | L136: 58557.69 | M136: 2021-07-22T09:02:55 | N136: 2021-07-01 | O136: PMO - FECC | P136: 93000 | Q136: 0 | R136: 0 | S136: 58557.69 | T136: 0 | U136: 0 | V136: 0 | W136: 0 | X136: 0 | Y136: 0 | Z136: 0 | AA136: 58557.69 | AB136: =SUM(Q136:Z136) -> 58557.69
A137: 113 | B137: Installation d'un nouveau séchoir à grains | C137: R.S. Jeanson & Fils inc. | D137: Final | E137: Implantation | F137: Industrie | H137: 16-Montérégie | J137: AC | K137: SU | L137: 109195.08 | M137: 2021-07-22T13:51:10 | N137: 2024-07-15 | O137: PMO - FECC | P137: 493335 | Q137: 0 | R137: 0 | S137: 81896.31 | T137: 0 | U137: 0 | V137: 27298.77 | W137: 0 | X137: 0 | Y137: 0 | Z137: 0 | AA137: =SUM(Q137:S137) -> 81896.31 | AB137: 109195.08
A138: 114 | B138: Remplacement du préchauffeur no 3 | C138: La Cie matériaux de construction BP Canada | D138: Final | E138: Implantation | F138: Industrie | H138: 06-Montréal | J138: AC | K138: SU | L138: 525889 | M138: 2021-06-11T09:05:28 | N138: 2022-12-31 | O138: PMO - FECC | P138: 1461700 | Q138: 0 | R138: 0 | S138: 131472.25 | T138: 394416.75 | U138: 0 | V138: 0 | W138: 0 | X138: 0 | Y138: 0 | Z138: 0 | AA138: 131472.25 | AB138: =SUM(Q138:Z138) -> 525889
A139: 115 | B139: Installation d'un séchoir à grains | C139: Ferme L.A.B.D. inc. | D139: Final | E139: Implantation | F139: Industrie | H139: 12-Chaudière-Appalaches | J139: AC | K139: SU | L139: 32917.22 | M139: 2021-07-22T09:40:59 | N139: 2023-09-01 | O139: PMO - FECC | P139: 143960 | Q139: 0 | R139: 0 | S139: 0 | T139: 24687.9 | U139: 8229.32 | V139: 0 | W139: 0 | X139: 0 | Y139: 0 | Z139: 0 | AA139: =SUM(Q139:S139) -> 0 | AB139: 32917.22
A140: 116 | B140: Implantation de deux séchoirs électriques | C140: Arbec, Bois d'œuvre inc. | D140: Final | E140: Implantation | F140: Industrie | H140: 04-Mauricie | J140: AC | K140: SU | L140: 3663000 | M140: 2021-07-22T09:45:02 | N140: 2022-08-01 | O140: PMO - FECC | P140: 7184000 | Q140: 0 | R140: 0 | S140: 2747250 | T140: 915750 | U140: 0 | V140: 0 | W140: 0 | X140: 0 | Y140: 0 | Z140: 0 | AA140: 2747250 | AB140: =SUM(Q140:Z140) -> 3663000
A141: 117 | B141: Serre-Conversion chauffage-CII- électrique | C141: Ferme la Bourrasque | D141: Final | E141: Implantation | F141: Industrie | H141: 16-Montérégie | J141: AC | K141: SU | L141: 56550 | M141: 2021-06-15T13:16:23 | N141: 2022-12-31 | O141: PMO - FECC | P141: 75400 | Q141: 0 | R141: 0 | S141: 0 | T141: 56550 | U141: 0 | V141: 0 | W141: 0 | X141: 0 | Y141: 0 | Z141: 0 | AA141: =SUM(Q141:S141) -> 0 | AB141: 56550
A142: 118 | B142: Serre-Conversion chauffage-CII- électrique | C142: Ferme la Bourrasque | D142: Final | E142: Implantation | F142: Industrie | H142: 16-Montérégie | J142: AC | K142: SU | L142: 52200 | M142: 2021-06-15T13:09:19 | N142: 2022-12-31 | O142: PMO - FECC | P142: 69600 | Q142: 0 | R142: 0 | S142: 0 | T142: 52200 | U142: 0 | V142: 0 | W142: 0 | X142: 0 | Y142: 0 | Z142: 0 | AA142: 0 | AB142: =SUM(Q142:Z142) -> 52200
A143: 119 | B143: Récupération de chaleur avec thermopompe pour le chauffage de l'eau de procédé | C143: Spécialités Lassonde inc. | D143: Final | E143: Implantation | F143: Industrie | H143: 16-Montérégie | J143: AC | K143: SU | L143: 534465.01 | M143: 2021-09-03T08:54:21 | N143: 2022-10-30 | O143: PMO - FECC | P143: 868333 | Q143: 0 | R143: 0 | S143: 133616.25 | T143: 400848.76 | U143: 0 | V143: 0 | W143: 0 | X143: 0 | Y143: 0 | Z143: 0 | AA143: =SUM(Q143:S143) -> 133616.25 | AB143: 534465.01
A144: 120 | B144: Ajout d'échangeurs de chaleur dans des bâtiments d'élevage de volailles | C144: Ferme Daniel Brodeur (1981) inc. | D144: Final | E144: Implantation | F144: Industrie | H144: 05-Estrie | J144: AC | K144: SU | L144: 158612.42 | M144: 2021-09-13T14:27:19 | N144: 2023-10-15 | O144: PMO - FECC | P144: 264442 | Q144: 0 | R144: 0 | S144: 118659.33 | T144: 0 | U144: 39953.09 | V144: 0 | W144: 0 | X144: 0 | Y144: 0 | Z144: 0 | AA144: 118659.33 | AB144: =SUM(Q144:Z144) -> 158612.42
A145: 121 | B145: Implantation d'un séchoir électrique | C145: Produits Forestiers Petit-Paris inc. | D145: Final | E145: Implantation | F145: Industrie | H145: 02-Saguenay--Lac-Saint-Jean | J145: AC | K145: SU | L145: 1476512.97 | M145: 2021-09-13T13:31:58 | N145: 2021-10-31 | O145: PMO - FECC | P145: 3127780 | Q145: 0 | R145: 0 | S145: 1476512.97 | T145: 0 | U145: 0 | V145: 0 | W145: 0 | X145: 0 | Y145: 0 | Z145: 0 | AA145: =SUM(Q145:S145) -> 1476512.97 | AB145: 1476512.97
A146: 122 | B146: Implantation d'un chauffage électrique | C146: Produits Forestiers Petit-Paris inc. | D146: Final | E146: Implantation | F146: Industrie | H146: 02-Saguenay--Lac-Saint-Jean | J146: AC | K146: SU | L146: 120415.88 | M146: 2021-09-03T09:01:02 | N146: 2022-05-01 | O146: PMO - FECC | P146: 285409 | Q146: 0 | R146: 0 | S146: 90311.91 | T146: 30103.97 | U146: 0 | V146: 0 | W146: 0 | X146: 0 | Y146: 0 | Z146: 0 | AA146: 90311.91 | AB146: =SUM(Q146:Z146) -> 120415.88
A147: 123 | B147: Nouvelle usine de filtration des résidus - Mine LaRonde | C147: Mines Agnico Eagle limitée | D147: Final | E147: Implantation | F147: Industrie | H147: 08-Abitibi-Témiscamingue | J147: AC | K147: SU | L147: 139000 | M147: 2021-09-13T14:30:54 | N147: 2023-04-01 | O147: PMO - FECC | P147: 578200 | Q147: 0 | R147: 0 | S147: 0 | T147: 104250 | U147: 34750 | V147: 0 | W147: 0 | X147: 0 | Y147: 0 | Z147: 0 | AA147: =SUM(Q147:S147) -> 0 | AB147: 139000
A148: 124 | B148: Électrification d'une cannebergière | C148: Canneberges Dénitoine | D148: Final | E148: Implantation | F148: Industrie | H148: 17-Centre-du-Québec | J148: AC | K148: SU | L148: 551662.42 | M148: 2021-06-11T09:22:10 | N148: 2022-12-31 | O148: PMO - FECC | P148: 894870 | Q148: 0 | R148: 0 | S148: 275831.22 | T148: 275831.2 | U148: 0 | V148: 0 | W148: 0 | X148: 0 | Y148: 0 | Z148: 0 | AA148: 275831.22 | AB148: =SUM(Q148:Z148) -> 551662.42
A149: 125 | B149: Serre agricole de culture ornementale – Efficacité énergétique | C149: Les Serres Jacques Barbe inc. | D149: Final | E149: Implantation | F149: Industrie | H149: 15-Laurentides | J149: AC | K149: SU | L149: 350534.99 | M149: 2021-09-13T14:04:55 | N149: 2023-01-15 | O149: PMO - FECC | P149: 696799 | Q149: 0 | R149: 0 | S149: 175267.5 | T149: 175267.49 | U149: 0 | V149: 0 | W149: 0 | X149: 0 | Y149: 0 | Z149: 0 | AA149: =SUM(Q149:S149) -> 175267.5 | AB149: 350534.99
A150: 126 | B150: Acériculture-Évaporateur électrique | C150: Érablière SFKL S.E.N.C. | D150: Final | E150: Implantation | F150: Industrie | H150: 12-Chaudière-Appalaches | J150: AC | K150: SU | L150: 17074.32 | M150: 2021-04-29T16:10:19 | N150: 2021-12-15 | O150: PMO - FECC | P150: 70891 | Q150: 0 | R150: 0 | S150: 17074.32 | T150: 0 | U150: 0 | V150: 0 | W150: 0 | X150: 0 | Y150: 0 | Z150: 0 | AA150: 17074.32 | AB150: =SUM(Q150:Z150) -> 17074.32
A151: 127 | B151: Acériculture-Évaporateur électrique | C151: Érablière Léonard (2017) inc. | D151: Final | E151: Implantation | F151: Industrie | H151: 15-Laurentides | J151: AC | K151: SU | L151: 54857 | M151: 2021-05-05T09:07:34 | N151: 2021-12-31 | O151: PMO - FECC | P151: 107967 | Q151: 0 | R151: 0 | S151: 54857 | T151: 0 | U151: 0 | V151: 0 | W151: 0 | X151: 0 | Y151: 0 | Z151: 0 | AA151: =SUM(Q151:S151) -> 54857 | AB151: 54857
A152: 128 | B152: Électrification des séchoirs à bois | C152: Arbec, Bois d'œuvre inc. | D152: Final | E152: Implantation | F152: Industrie | H152: 02-Saguenay--Lac-Saint-Jean | J152: AC | K152: SU | L152: 2013436.58 | M152: 2021-07-22T09:48:43 | N152: 2022-09-01 | O152: PMO - FECC | P152: 3956000 | Q152: 0 | R152: 0 | S152: 1510077.42 | T152: 503359.16 | U152: 0 | V152: 0 | W152: 0 | X152: 0 | Y152: 0 | Z152: 0 | AA152: 1510077.42 | AB152: =SUM(Q152:Z152) -> 2013436.58
A153: 129 | B153: Installation d’un échangeur pour la ventilation de l'usine | C153: Robert Bernard (TRM) ltée | D153: Final | E153: Implantation | F153: Industrie | H153: 05-Estrie | J153: AC | K153: SU | L153: 452593.69 | M153: 2021-12-20T10:42:19 | N153: 2023-02-01 | O153: PMO - FECC | P153: 888000 | Q153: 0 | R153: 0 | S153: 113148.42 | T153: 339445.27 | U153: 0 | V153: 0 | W153: 0 | X153: 0 | Y153: 0 | Z153: 0 | AA153: =SUM(Q153:S153) -> 113148.42 | AB153: 452593.69
A154: 130 | B154: Une ligne électrique pour éviter l'utilisation d'une génératrice à l'Érablière Dany Michaud | C154: Dany Michaud | D154: Final | E154: Implantation | F154: Industrie | H154: 01-Bas-Saint-Laurent | J154: AC | K154: SU | L154: 11709.42 | M154: 2022-01-17T10:52:08 | N154: 2022-06-01 | O154: PMO - FECC | P154: 36450 | Q154: 0 | R154: 0 | S154: 8782.08 | T154: 2927.34 | U154: 0 | V154: 0 | W154: 0 | X154: 0 | Y154: 0 | Z154: 0 | AA154: 8782.08 | AB154: =SUM(Q154:Z154) -> 11709.42
A155: 131 | B155: Conversion du pompage diesel vers l'électricité | C155: Gazonnière Alexander inc. | D155: Final | E155: Implantation | F155: Industrie | H155: 14-Lanaudière | J155: AC | K155: SU | L155: 85169.66 | M155: 2022-02-28T08:34:39 | N155: 2023-11-01 | O155: PMO - FECC | P155: 126914 | Q155: 0 | R155: 0 | S155: 21292.42 | T155: 42584.84 | U155: 21292.4 | V155: 0 | W155: 0 | X155: 0 | Y155: 0 | Z155: 0 | AA155: =SUM(Q155:S155) -> 21292.42 | AB155: 85169.66
A156: 132 | B156: Isocanmed – Récupération de chaleur du procédé | C156: Isocanmed inc. | D156: Final | E156: Implantation | F156: Industrie | H156: 04-Mauricie | J156: AC | K156: SU | L156: 1907106.75 | M156: 2021-12-13T08:34:14 | N156: 2023-09-19 | O156: PMO - FECC | P156: 3685000 | Q156: 0 | R156: 0 | S156: 476776.69 | T156: 953553.38 | U156: 476776.68 | V156: 0 | W156: 0 | X156: 0 | Y156: 0 | Z156: 0 | AA156: 476776.69 | AB156: =SUM(Q156:Z156) -> 1907106.75
A157: 133 | B157: Phase 3 - Projet d’agrandissement et d’efficacité énergétique | C157: Les Serres Coulombe inc. | D157: Final | E157: Implantation | F157: Industrie | H157: 14-Lanaudière | J157: AC | K157: SU | L157: 161754.82 | M157: 2021-12-13T08:44:30 | N157: 2023-03-31 | O157: PMO - FECC | P157: 361915 | Q157: 0 | R157: 0 | S157: 121316.1 | T157: 40438.72 | U157: 0 | V157: 0 | W157: 0 | X157: 0 | Y157: 0 | Z157: 0 | AA157: =SUM(Q157:S157) -> 121316.1 | AB157: 161754.82
A158: 134 | B158: Phase 4 - Projet d’agrandissement et d’efficacité énergétique | C158: 12809672 Canada inc. | D158: Final | E158: Implantation | F158: Industrie | H158: 14-Lanaudière | J158: AC | K158: SU | L158: 283880.74 | M158: 2021-12-01T13:59:42 | N158: 2023-03-31 | O158: PMO - FECC | P158: 708550 | Q158: 0 | R158: 0 | S158: 212910.54 | T158: 70970.2 | U158: 0 | V158: 0 | W158: 0 | X158: 0 | Y158: 0 | Z158: 0 | AA158: 212910.54 | AB158: =SUM(Q158:Z158) -> 283880.74
A159: 135 | B159: Acériculture-Évaporateur électrique | C159: 9274-6544 Québec inc. | D159: Final | E159: Implantation | F159: Industrie | H159: 01-Bas-Saint-Laurent | J159: AC | K159: SU | L159: 100000 | M159: 2021-05-04T18:09:01 | N159: 2022-06-30 | O159: PMO - FECC | P159: 159027 | Q159: 0 | R159: 0 | S159: 0 | T159: 100000 | U159: 0 | V159: 0 | W159: 0 | X159: 0 | Y159: 0 | Z159: 0 | AA159: =SUM(Q159:S159) -> 0 | AB159: 100000
A160: 136 | B160: Beaulieu Canada - Nouvelle centrale thermique | C160: Beaulieu Canada | D160: Final | E160: Implantation | F160: Industrie | H160: 16-Montérégie | J160: AC | K160: SU | L160: 1587139.6 | M160: 2021-08-13T15:22:10 | N160: 2022-11-01 | O160: PMO - FECC | P160: 2161944 | Q160: 0 | R160: 0 | S160: 1190354.7 | T160: 396784.9 | U160: 0 | V160: 0 | W160: 0 | X160: 0 | Y160: 0 | Z160: 0 | AA160: 1190354.7 | AB160: =SUM(Q160:Z160) -> 1587139.6
A161: 137 | B161: Acériculture-Évaporateur électrique | C161: La Coulée LRP | D161: Final | E161: Implantation | F161: Industrie | H161: 05-Estrie | J161: AC | K161: SU | L161: 100000 | M161: 2021-06-02T12:33:38 | N161: 2022-11-01 | O161: PMO - FECC | P161: 173651 | Q161: 0 | R161: 0 | S161: 0 | T161: 100000 | U161: 0 | V161: 0 | W161: 0 | X161: 0 | Y161: 0 | Z161: 0 | AA161: =SUM(Q161:S161) -> 0 | AB161: 100000
A162: 138 | B162: Construction d'une ligne électrique aérienne au champ 2326 | C162: Cultures H. Dolbec inc. | D162: Final | E162: Implantation | F162: Industrie | H162: 03-Capitale-Nationale | J162: AC | K162: SU | L162: 111261.97 | M162: 2021-07-22T13:11:21 | N162: 2022-10-31 | O162: PMO - FECC | P162: 182076 | Q162: 0 | R162: 0 | S162: 27815.49 | T162: 83446.48 | U162: 0 | V162: 0 | W162: 0 | X162: 0 | Y162: 0 | Z162: 0 | AA162: 27815.49 | AB162: =SUM(Q162:Z162) -> 111261.97
A163: 139 | B163: Conversion de la bouilloire au gaz naturel | C163: Béton Provincial Div. Granby ltée | D163: Final | E163: Implantation | F163: Industrie | H163: 05-Estrie | J163: AC | K163: SU | L163: 24995.55 | M163: 2022-01-10T08:26:54 | N163: 2022-04-01 | O163: PMO - FECC | P163: 51345 | Q163: 0 | R163: 0 | S163: 18746.67 | T163: 6248.88 | U163: 0 | V163: 0 | W163: 0 | X163: 0 | Y163: 0 | Z163: 0 | AA163: =SUM(Q163:S163) -> 18746.67 | AB163: 24995.55
A164: 140 | B164: Ajout d'échangeurs de chaleur dans des bâtiments d'élevage de volailles | C164: Ferme Handschin inc. | D164: Final | E164: Implantation | F164: Industrie | H164: 16-Montérégie | J164: AC | K164: SU | L164: 105935.6 | M164: 2021-10-13T10:51:28 | N164: 2023-12-15 | O164: PMO - FECC | P164: 149002 | Q164: 0 | R164: 0 | S164: 26483.9 | T164: 52967.8 | U164: 26483.9 | V164: 0 | W164: 0 | X164: 0 | Y164: 0 | Z164: 0 | AA164: 26483.9 | AB164: =SUM(Q164:Z164) -> 105935.6
A165: 141 | B165: Optimisation énergétique des presses | C165: Formica Canada inc. | D165: Final | E165: Implantation | F165: Industrie | H165: 16-Montérégie | J165: AC | K165: SU | L165: 749311.68 | M165: 2021-07-21T10:47:50 | N165: 2023-03-31 | O165: PMO - FECC | P165: 1750000 | Q165: 0 | R165: 0 | S165: 187327.92 | T165: 561983.76 | U165: 0 | V165: 0 | W165: 0 | X165: 0 | Y165: 0 | Z165: 0 | AA165: =SUM(Q165:S165) -> 187327.92 | AB165: 749311.68
A166: 142 | B166: Chauffage de l'accumulateur par récupération de l'énergie dans l'évacuation du traiteur 5 | C166: Formica Canada inc. | D166: Final | E166: Implantation | F166: Industrie | H166: 16-Montérégie | J166: AC | K166: SU | L166: 371210.76 | M166: 2021-06-30T09:36:58 | N166: 2022-12-01 | O166: PMO - FECC | P166: 1008000 | Q166: 0 | R166: 0 | S166: 185605.38 | T166: 185605.38 | U166: 0 | V166: 0 | W166: 0 | X166: 0 | Y166: 0 | Z166: 0 | AA166: 185605.38 | AB166: =SUM(Q166:Z166) -> 371210.76
A167: 143 | B167: Chauffage de l'accumulateur par récupération de l'énergie des fumées des chaudières | C167: Formica Canada inc. | D167: Final | E167: Implantation | F167: Industrie | H167: 16-Montérégie | J167: AC | K167: SU | L167: 224155.54 | M167: 2021-10-26T14:09:42 | N167: 2023-12-01 | O167: PMO - FECC | P167: 706000 | Q167: 0 | R167: 0 | S167: 0 | T167: 112077.76 | U167: 112077.78 | V167: 0 | W167: 0 | X167: 0 | Y167: 0 | Z167: 0 | AA167: =SUM(Q167:S167) -> 0 | AB167: 224155.54
A168: 144 | B168: Récupération de l'énergie dans l'évacuation du traiteur 6 | C168: Formica Canada inc. | D168: Final | E168: Implantation | F168: Industrie | H168: 16-Montérégie | J168: AC | K168: SU | L168: 351308.66 | M168: 2021-10-26T14:12:03 | N168: 2023-06-01 | O168: PMO - FECC | P168: 985500 | Q168: 0 | R168: 0 | S168: 0 | T168: 263481.48 | U168: 87827.18 | V168: 0 | W168: 0 | X168: 0 | Y168: 0 | Z168: 0 | AA168: 0 | AB168: =SUM(Q168:Z168) -> 351308.66
A169: 145 | B169: Implantation - Projet d'amélioration de l'efficacité des réseaux de chauffage (Site Expo) | C169: Canadian Royalties inc. | D169: Final | E169: Implantation | F169: Industrie | H169: 06-Montréal | J169: AC | K169: SU | L169: 468660.12 | M169: 2021-07-22T13:02:09 | N169: 2022-11-01 | O169: PMO - FECC | P169: 1810615 | Q169: 0 | R169: 0 | S169: 0 | T169: 468660.12 | U169: 0 | V169: 0 | W169: 0 | X169: 0 | Y169: 0 | Z169: 0 | AA169: =SUM(Q169:S169) -> 0 | AB169: 468660.12
A170: 146 | B170: Chauffage de la ventilation du garage H1 | C170: Canadian Royalties inc. | D170: Final | E170: Implantation | F170: Industrie | H170: 06-Montréal | J170: AC | K170: SU | L170: 147512.26 | M170: 2021-08-13T13:55:46 | N170: 2023-03-01 | O170: PMO - FECC | P170: 384240 | Q170: 0 | R170: 0 | S170: 110634.18 | T170: 36878.08 | U170: 0 | V170: 0 | W170: 0 | X170: 0 | Y170: 0 | Z170: 0 | AA170: 110634.18 | AB170: =SUM(Q170:Z170) -> 147512.26
A171: 147 | B171: Serre agricole de tomates - Efficacité énergétique | C171: TOMATÉ! Inc. | D171: Final | E171: Implantation | F171: Industrie | H171: 16-Montérégie | J171: AC | K171: SU | L171: 349278.59 | M171: 2021-11-02T10:59:41 | N171: 2023-09-30 | O171: PMO - FECC | P171: 749585 | Q171: 0 | R171: 0 | S171: 0 | T171: 261958.95 | U171: 87319.64 | V171: 0 | W171: 0 | X171: 0 | Y171: 0 | Z171: 0 | AA171: =SUM(Q171:S171) -> 0 | AB171: 349278.59
A172: 148 | B172: Acériculture-Évaporateur électrique | C172: Érablière Nadeau & Fils inc. | D172: Final | E172: Implantation | F172: Industrie | H172: 12-Chaudière-Appalaches | J172: AC | K172: SU | L172: 52541.53 | M172: 2021-06-23T14:22:06 | N172: 2022-07-30 | O172: PMO - FECC | P172: 105695 | Q172: 0 | R172: 0 | S172: 0 | T172: 52541.53 | U172: 0 | V172: 0 | W172: 0 | X172: 0 | Y172: 0 | Z172: 0 | AA172: 0 | AB172: =SUM(Q172:Z172) -> 52541.53
A173: 149 | B173: Nouveau AMU et échangeur de chaleur pour l'apport d'air frais | C173: Ani-Mat inc. | D173: Final | E173: Implantation | F173: Industrie | H173: 05-Estrie | J173: AC | K173: SU | L173: 312375 | M173: 2021-09-13T14:11:11 | N173: 2022-12-01 | O173: PMO - FECC | P173: 596470 | Q173: 0 | R173: 0 | S173: 156187.5 | T173: 156187.5 | U173: 0 | V173: 0 | W173: 0 | X173: 0 | Y173: 0 | Z173: 0 | AA173: =SUM(Q173:S173) -> 156187.5 | AB173: 312375
A174: 150 | B174: Installation d’un échangeur de chaleur de 30 000 CFM pour la ventilation du secteur maturation | C174: Domfoam inc. | D174: Final | E174: Implantation | F174: Industrie | H174: 06-Montréal | J174: AC | K174: SU | L174: 604008.52 | M174: 2021-09-03T09:07:01 | N174: 2022-05-31 | O174: PMO - FECC | P174: 901111 | Q174: 0 | R174: 0 | S174: 453006.39 | T174: 151002.13 | U174: 0 | V174: 0 | W174: 0 | X174: 0 | Y174: 0 | Z174: 0 | AA174: 453006.39 | AB174: =SUM(Q174:Z174) -> 604008.52
A175: 151 | B175: Récupération de chaleur des compresseurs et du dépoussiéreur avec un nouveau contrôleur central | C175: Elopak Canada inc. | D175: Final | E175: Implantation | F175: Industrie | H175: 15-Laurentides | J175: AC | K175: SU | L175: 401195.01 | M175: 2021-07-06T14:11:14 | N175: 2023-01-15 | O175: PMO - FECC | P175: 6594630 | Q175: 0 | R175: 0 | S175: 100298.75 | T175: 300896.26 | U175: 0 | V175: 0 | W175: 0 | X175: 0 | Y175: 0 | Z175: 0 | AA175: =SUM(Q175:S175) -> 100298.75 | AB175: 401195.01
A176: 152 | B176: Conversion d'un système de pompage | C176: Ferme L.M. Drainville & Fils inc. | D176: Final | E176: Implantation | F176: Industrie | H176: 14-Lanaudière | J176: AC | K176: SU | L176: 27091.52 | M176: 2021-11-26T08:30:43 | N176: 2022-10-10 | O176: PMO - FECC | P176: 67250 | Q176: 0 | R176: 0 | S176: 20318.64 | T176: 6772.88 | U176: 0 | V176: 0 | W176: 0 | X176: 0 | Y176: 0 | Z176: 0 | AA176: 20318.64 | AB176: =SUM(Q176:Z176) -> 27091.52
A177: 153 | B177: Pl5 - Conversion du chauffage des bassins par une chaudière électrique | C177: Pratt & Whitney Canada Cie. | D177: Final | E177: Implantation | F177: Industrie | H177: 16-Montérégie | J177: AC | K177: SU | L177: 1309415 | M177: 2021-08-16T08:23:10 | N177: 2024-05-26 | O177: PMO - FECC | P177: 3911103 | Q177: 0 | R177: 0 | S177: 327353.75 | T177: 327353.75 | U177: 327353.75 | V177: 327353.75 | W177: 0 | X177: 0 | Y177: 0 | Z177: 0 | AA177: =SUM(Q177:S177) -> 327353.75 | AB177: 1309415
A178: 154 | B178: Chauffage solaire avec collecteur à faible émissivité | C178: BHS Composites inc. | D178: Final | E178: Implantation | F178: Industrie | H178: 05-Estrie | J178: AC | K178: SU | L178: 80072.15 | M178: 2021-11-10T13:34:34 | N178: 2023-03-03 | O178: PMO - FECC | P178: 200450 | Q178: 0 | R178: 0 | S178: 60054.12 | T178: 20018.03 | U178: 0 | V178: 0 | W178: 0 | X178: 0 | Y178: 0 | Z178: 0 | AA178: 60054.12 | AB178: =SUM(Q178:Z178) -> 80072.15
A179: 155 | B179: Électrification d'une cannebergière | C179: Atocas St-Louis inc. | D179: Final | E179: Implantation | F179: Industrie | H179: 17-Centre-du-Québec | J179: AC | K179: SU | L179: 469402.94 | M179: 2021-08-04T08:22:07 | N179: 2024-12-31 | O179: PMO - FECC | P179: 941943 | Q179: 0 | R179: 0 | S179: 0 | T179: 117350.74 | U179: 117350.74 | V179: 234701.46 | W179: 0 | X179: 0 | Y179: 0 | Z179: 0 | AA179: =SUM(Q179:S179) -> 0 | AB179: 469402.94
A180: 156 | B180: Électrification d'une cannebergière | C180: Atocas Blandford inc. | D180: Final | E180: Implantation | F180: Industrie | H180: 17-Centre-du-Québec | J180: AC | K180: SU | L180: 306571.26 | M180: 2021-08-04T09:06:13 | N180: 2024-12-31 | O180: PMO - FECC | P180: 823451 | Q180: 0 | R180: 0 | S180: 0 | T180: 76642.82 | U180: 76642.82 | V180: 153285.62 | W180: 0 | X180: 0 | Y180: 0 | Z180: 0 | AA180: 0 | AB180: =SUM(Q180:Z180) -> 306571.26
A181: 157 | B181: Électrification d'une cannebergière | C181: Les Bassins Rouges S.E.N.C. | D181: Final | E181: Implantation | F181: Industrie | H181: 17-Centre-du-Québec | J181: AC | K181: SU | L181: 1004221.41 | M181: 2021-08-16T08:55:36 | N181: 2024-12-31 | O181: PMO - FECC | P181: 1570483 | Q181: 0 | R181: 0 | S181: 0 | T181: 251055.35 | U181: 251055.35 | V181: 502110.71 | W181: 0 | X181: 0 | Y181: 0 | Z181: 0 | AA181: =SUM(Q181:S181) -> 0 | AB181: 1004221.41
A182: 158 | B182: Remplacement d’un séchoir à grains par un séchoir écoénergétique | C182: Les Élévateurs D.P. inc. | D182: Final | E182: Implantation | F182: Industrie | H182: 16-Montérégie | J182: AC | K182: SU | L182: 405681.8 | M182: 2021-11-29T14:44:31 | N182: 2022-05-30 | O182: PMO - FECC | P182: 799250 | Q182: 0 | R182: 0 | S182: 304261.35 | T182: 101420.45 | U182: 0 | V182: 0 | W182: 0 | X182: 0 | Y182: 0 | Z182: 0 | AA182: 304261.35 | AB182: =SUM(Q182:Z182) -> 405681.8
A183: 159 | B183: Remplacement des séchoirs à grains de la Ferme Porclair | C183: Ferme Porclair S.E.N.C. | D183: Final | E183: Implantation | F183: Industrie | H183: 17-Centre-du-Québec | J183: AC | K183: SU | L183: 49047.04 | M183: 2022-01-10T08:31:39 | N183: 2023-01-30 | O183: PMO - FECC | P183: 190194 | Q183: 0 | R183: 0 | S183: 0 | T183: 49047.04 | U183: 0 | V183: 0 | W183: 0 | X183: 0 | Y183: 0 | Z183: 0 | AA183: =SUM(Q183:S183) -> 0 | AB183: 49047.04
A184: 160 | B184: Projet d'efficacité énergétique | C184: Boulangerie WF | D184: Final | E184: Implantation | F184: Industrie | H184: 16-Montérégie | J184: AC | K184: SU | L184: 339639.56 | M184: 2021-10-06T14:33:02 | N184: 2023-03-10 | O184: PMO - FECC | P184: 733754 | Q184: 0 | R184: 0 | S184: 0 | T184: 339639.56 | U184: 0 | V184: 0 | W184: 0 | X184: 0 | Y184: 0 | Z184: 0 | AA184: 0 | AB184: =SUM(Q184:Z184) -> 339639.56
A185: 161 | B185: Optimisation de la centrale d’enrobés bitumineux par vis de préchauffage du GBR | C185: P. Baillargeon ltée | D185: Final | E185: Implantation | F185: Industrie | H185: 16-Montérégie | J185: AC | K185: SU | L185: 126668.49 | M185: 2021-08-04T09:21:14 | N185: 2023-12-15 | O185: PMO - FECC | P185: 359000 | Q185: 0 | R185: 0 | S185: 31667.12 | T185: 63334.24 | U185: 31667.13 | V185: 0 | W185: 0 | X185: 0 | Y185: 0 | Z185: 0 | AA185: =SUM(Q185:S185) -> 31667.12 | AB185: 126668.49
A186: 162 | B186: Serre de plants : efficacité énergétique | C186: Ferme aux petits oignons inc. | D186: Final | E186: Implantation | F186: Industrie | H186: 15-Laurentides | J186: AC | K186: SU | L186: 172271.36 | M186: 2022-02-23T08:47:22 | N186: 2023-10-31 | O186: PMO - FECC | P186: 274386 | Q186: 0 | R186: 0 | S186: 43067.84 | T186: 86135.68 | U186: 43067.84 | V186: 0 | W186: 0 | X186: 0 | Y186: 0 | Z186: 0 | AA186: 43067.84 | AB186: =SUM(Q186:Z186) -> 172271.36
A187: 163 | B187: Optimisation des fours de trempe | C187: Les Traitements d'acier S.T. inc. | D187: Final | E187: Implantation | F187: Industrie | H187: 04-Mauricie | J187: AC | K187: SU | L187: 338823.19 | M187: 2021-10-06T14:54:23 | N187: 2023-03-01 | O187: PMO - FECC | P187: 700000 | Q187: 0 | R187: 0 | S187: 0 | T187: 338823.19 | U187: 0 | V187: 0 | W187: 0 | X187: 0 | Y187: 0 | Z187: 0 | AA187: =SUM(Q187:S187) -> 0 | AB187: 338823.19
A188: 164 | B188: Conversion au gaz naturel | C188: Produits Hevea inc. | D188: Final | E188: Implantation | F188: Industrie | H188: 05-Estrie | J188: AC | K188: SU | L188: 132741.16 | M188: 2022-03-08T09:03:06 | N188: 2022-12-31 | O188: PMO - FECC | P188: 315500 | Q188: 0 | R188: 0 | S188: 66370.58 | T188: 66370.58 | U188: 0 | V188: 0 | W188: 0 | X188: 0 | Y188: 0 | Z188: 0 | AA188: 66370.58 | AB188: =SUM(Q188:Z188) -> 132741.16
A189: 165 | B189: Mur solaire et rideaux d'air | C189: Emballages Mitchel-Lincoln ltée | D189: Final | E189: Implantation | F189: Industrie | H189: 16-Montérégie | J189: AC | K189: SU | L189: 96340.99 | M189: 2022-02-16T08:17:47 | N189: 2023-10-03 | O189: PMO - FECC | P189: 341750 | Q189: 0 | R189: 0 | S189: 48170.5 | T189: 24085.25 | U189: 24085.24 | V189: 0 | W189: 0 | X189: 0 | Y189: 0 | Z189: 0 | AA189: =SUM(Q189:S189) -> 48170.5 | AB189: 96340.99
A190: 166 | B190: Construction d’une ligne électrique | C190: Érablière des Sept Lacs inc. | D190: Final | E190: Implantation | F190: Industrie | H190: 01-Bas-Saint-Laurent | J190: AC | K190: SU | L190: 24852.33 | M190: 2022-01-17T10:48:23 | N190: 2022-06-01 | O190: PMO - FECC | P190: 53740 | Q190: 0 | R190: 0 | S190: 18639.24 | T190: 6213.09 | U190: 0 | V190: 0 | W190: 0 | X190: 0 | Y190: 0 | Z190: 0 | AA190: 18639.24 | AB190: =SUM(Q190:Z190) -> 24852.33
A191: 167 | B191: Intégration de thermopompe | C191: Laboratoires Abbott Cie | D191: Final | E191: Implantation | F191: Industrie | H191: 17-Centre-du-Québec | J191: AC | K191: SU | L191: 1240419.36 | M191: 2021-12-13T08:24:49 | N191: 2022-07-15 | O191: PMO - FECC | P191: 2176515 | Q191: 0 | R191: 0 | S191: 620209.68 | T191: 620209.68 | U191: 0 | V191: 0 | W191: 0 | X191: 0 | Y191: 0 | Z191: 0 | AA191: =SUM(Q191:S191) -> 620209.68 | AB191: 1240419.36
A192: 168 | B192: ESA-3000 : réduction des émissions de GES dans le poulailler de Ferme Sylvain Proulx inc. | C192: Ferme Sylvain Proulx inc. | D192: Final | E192: Implantation | F192: Industrie | H192: 16-Montérégie | J192: AC | K192: SU | L192: 38073.19 | M192: 2022-01-17T10:50:30 | N192: 2023-06-01 | O192: PMO - FECC | P192: 54690 | Q192: 0 | R192: 0 | S192: 0 | T192: 28554.9 | U192: 9518.29 | V192: 0 | W192: 0 | X192: 0 | Y192: 0 | Z192: 0 | AA192: 0 | AB192: =SUM(Q192:Z192) -> 38073.19
A193: 169 | B193: ESA-3000 : réduction des émissions de GES dans le poulailler De la comté SENC | C193: De La Comté s.e.n.c. | D193: Final | E193: Implantation | F193: Industrie | H193: 05-Estrie | J193: AC | K193: SU | L193: 59088.57 | M193: 2022-02-03T15:03:37 | N193: 2023-05-01 | O193: PMO - FECC | P193: 84229 | Q193: 0 | R193: 0 | S193: 14772.14 | T193: 29544.28 | U193: 14772.15 | V193: 0 | W193: 0 | X193: 0 | Y193: 0 | Z193: 0 | AA193: =SUM(Q193:S193) -> 14772.14 | AB193: 59088.57
A194: 170 | B194: Projet LPI | C194: Chimie ParaChem S.E.C. | D194: Final | E194: Implantation | F194: Industrie | H194: 06-Montréal | J194: AC | K194: SU | L194: 5000000 | M194: 2021-09-15T08:28:54 | N194: 2024-07-01 | O194: PMO - FECC | P194: 10904589 | Q194: 0 | R194: 0 | S194: 0 | T194: 2500000 | U194: 1250000 | V194: 1250000 | W194: 0 | X194: 0 | Y194: 0 | Z194: 0 | AA194: 0 | AB194: =SUM(Q194:Z194) -> 5000000
A195: 171 | B195: Serre-Conversion chauffage-CII- électrique | C195: Ferme Juniper (2017) inc. | D195: Final | E195: Implantation | F195: Industrie | H195: 07-Outaouais | J195: AC | K195: SU | L195: 33750 | M195: 2021-07-23T15:35:57 | N195: 2022-10-01 | O195: PMO - FECC | P195: 45000 | Q195: 0 | R195: 0 | S195: 0 | T195: 33750 | U195: 0 | V195: 0 | W195: 0 | X195: 0 | Y195: 0 | Z195: 0 | AA195: =SUM(Q195:S195) -> 0 | AB195: 33750
A196: 172 | B196: Implantation et électrification de nos chariots élévateurs | C196: Métal Bernard inc. | D196: Final | E196: Implantation | F196: Industrie | H196: 12-Chaudière-Appalaches | J196: AC | K196: SU | L196: 69382.89 | M196: 00:00:00 | N196: 2022-05-15 | O196: PMO - FECC | P196: 248601 | Q196: 0 | R196: 0 | S196: 52037.16 | T196: 17345.73 | U196: 0 | V196: 0 | W196: 0 | X196: 0 | Y196: 0 | Z196: 0 | AA196: 52037.16 | AB196: =SUM(Q196:Z196) -> 69382.89
A197: 173 | B197: Construction d'un bâtiment d'élevage avec échangeurs de chaleur | C197: Ferme Porc Saint SENC | D197: Final | E197: Implantation | F197: Industrie | H197: 05-Estrie | J197: AC | K197: SU | L197: 45809.97 | M197: 2021-10-21T14:08:03 | N197: 2024-02-01 | O197: PMO - FECC | P197: 89586 | Q197: 0 | R197: 0 | S197: 34357.47 | T197: 0 | U197: 11452.5 | V197: 0 | W197: 0 | X197: 0 | Y197: 0 | Z197: 0 | AA197: =SUM(Q197:S197) -> 34357.47 | AB197: 45809.97
A198: 174 | B198: Conversion d'un système de pompage | C198: Gosselin G2 inc. | D198: Final | E198: Implantation | F198: Industrie | H198: 14-Lanaudière | J198: AC | K198: SU | L198: 38062.5 | M198: 2022-02-03T15:05:29 | N198: 2022-10-01 | O198: PMO - FECC | P198: 50750 | Q198: 0 | R198: 0 | S198: 19031.24 | T198: 19031.26 | U198: 0 | V198: 0 | W198: 0 | X198: 0 | Y198: 0 | Z198: 0 | AA198: 19031.24 | AB198: =SUM(Q198:Z198) -> 38062.5
A199: 175 | B199: Optimisation de la centrale d’enrobés bitumineux par vis de préchauffage du GBR | C199: Usine d'asphalte Ali inc. | D199: Final | E199: Implantation | F199: Industrie | H199: 16-Montérégie | J199: AC | K199: SU | L199: 322835.14 | M199: 2021-08-31T10:45:44 | N199: 2023-12-15 | O199: PMO - FECC | P199: 867000 | Q199: 0 | R199: 0 | S199: 0 | T199: 161417.56 | U199: 161417.58 | V199: 0 | W199: 0 | X199: 0 | Y199: 0 | Z199: 0 | AA199: =SUM(Q199:S199) -> 0 | AB199: 322835.14
A200: 176 | B200: Ajout d'échangeurs de chaleur dans un bâtiment d'élevage de volailles | C200: Les Fermes Meier (9032-5085 Québec inc.) | D200: Final | E200: Implantation | F200: Industrie | H200: 05-Estrie | J200: AC | K200: SU | L200: 55545.87 | M200: 2022-01-20T15:04:54 | N200: 2024-03-01 | O200: PMO - FECC | P200: 86750 | Q200: 0 | R200: 0 | S200: 41659.41 | T200: 0 | U200: 13886.46 | V200: 0 | W200: 0 | X200: 0 | Y200: 0 | Z200: 0 | AA200: 41659.41 | AB200: =SUM(Q200:Z200) -> 55545.87
A201: 177 | B201: Installation d'une nouvelle chaudière à vapeur | C201: Soylutions inc. | D201: Final | E201: Implantation | F201: Industrie | H201: 03-Capitale-Nationale | J201: AC | K201: SU | L201: 185978.67 | M201: 2021-09-13 | N201: 2023-08-31 | O201: PMO - FECC | P201: 377950 | Q201: 0 | R201: 0 | S201: 92989.34 | T201: 46494.67 | U201: 46494.66 | V201: 0 | W201: 0 | X201: 0 | Y201: 0 | Z201: 0 | AA201: =SUM(Q201:S201) -> 92989.34 | AB201: 185978.67
A202: 178 | B202: Projet d'économie d'énergie de Montréal Chrome | C202: Placage au chrome de Montréal inc. | D202: Final | E202: Implantation | F202: Industrie | H202: 06-Montréal | J202: AC | K202: SU | L202: 261544.56 | M202: 2021-12-20T10:40:17 | N202: 2023-12-31 | O202: PMO - FECC | P202: 564585 | Q202: 0 | R202: 0 | S202: 0 | T202: 196158.42 | U202: 65386.14 | V202: 0 | W202: 0 | X202: 0 | Y202: 0 | Z202: 0 | AA202: 0 | AB202: =SUM(Q202:Z202) -> 261544.56
A203: 179 | B203: « SCORE » - Saumure et Chaufferie : optimisation des ressources énergétiques | C203: Axiall Canada, Inc. | D203: Final | E203: Implantation | F203: Industrie | H203: 16-Montérégie | J203: AC | K203: SU | L203: 388613.62 | M203: 2021-09-20T09:21:50 | N203: 2023-12-15 | O203: PMO - FECC | P203: 1015000 | Q203: 0 | R203: 0 | S203: 97153.4 | T203: 194306.8 | U203: 97153.42 | V203: 0 | W203: 0 | X203: 0 | Y203: 0 | Z203: 0 | AA203: =SUM(Q203:S203) -> 97153.4 | AB203: 388613.62
A204: 180 | B204: Infasco - Projet écoénergétique | C204: Ifastgroupe 2004 L.P. agissant par son commanditaire Heico 2004 Member Inc. | D204: Final | E204: Implantation | F204: Industrie | H204: 16-Montérégie | J204: AC | K204: SU | L204: 2118861.89 | M204: 2021-10-26T14:19:10 | N204: 2023-12-31 | O204: PMO - FECC | P204: 6324313 | Q204: 0 | R204: 0 | S204: 529715.47 | T204: 1059430.94 | U204: 529715.48 | V204: 0 | W204: 0 | X204: 0 | Y204: 0 | Z204: 0 | AA204: 529715.47 | AB204: =SUM(Q204:Z204) -> 2118861.89
A205: 181 | B205: Sivaco - Projet écoénergétique | C205: Sivaco Wire Group 2004 L.P. agissant par son commenditaire Heico 2004 Member, inc. | D205: Final | E205: Implantation | F205: Industrie | H205: 16-Montérégie | J205: AC | K205: SU | L205: 2228147.97 | M205: 2021-12-08T13:51:42 | N205: 2024-12-31 | O205: PMO - FECC | P205: 5877947 | Q205: 0 | R205: 0 | S205: 0 | T205: 557036.99 | U205: 1114073.98 | V205: 557037 | W205: 0 | X205: 0 | Y205: 0 | Z205: 0 | AA205: =SUM(Q205:S205) -> 0 | AB205: 2228147.97
A206: 182 | B206: Installation d'échangeurs de chaleur dans un bâtiment d'élevage de volailles | C206: Ferme N.C. Trottier inc. | D206: Final | E206: Implantation | F206: Industrie | H206: 17-Centre-du-Québec | J206: AC | K206: SU | L206: 72879.27 | M206: 2022-02-03T15:07:15 | N206: 2023-10-01 | O206: PMO - FECC | P206: 135596 | Q206: 0 | R206: 0 | S206: 18219.82 | T206: 36439.64 | U206: 18219.81 | V206: 0 | W206: 0 | X206: 0 | Y206: 0 | Z206: 0 | AA206: 18219.82 | AB206: =SUM(Q206:Z206) -> 72879.27
A207: 183 | B207: Conversion de la chaudière au mazout no 2 vers l'électricité | C207: La Meunerie St-Patrice inc. | D207: Final | E207: Implantation | F207: Industrie | H207: 12-Chaudière-Appalaches | J207: AC | K207: SU | L207: 775042.5 | M207: 2021-11-17T10:59:58 | N207: 2023-01-10 | O207: PMO - FECC | P207: 1033390 | Q207: 0 | R207: 0 | S207: 193760.62 | T207: 581281.88 | U207: 0 | V207: 0 | W207: 0 | X207: 0 | Y207: 0 | Z207: 0 | AA207: =SUM(Q207:S207) -> 193760.62 | AB207: 775042.5
A208: 184 | B208: Chauffage de l’air du bâtiment par récupération de chaleur | C208: Magotteaux ltée | D208: Final | E208: Implantation | F208: Industrie | H208: 05-Estrie | J208: AC | K208: SU | L208: 1075950 | M208: 2021-10-07T15:44:39 | N208: 2023-01-01 | O208: PMO - FECC | P208: 1474600 | Q208: 0 | R208: 0 | S208: 268987.5 | T208: 806962.5 | U208: 0 | V208: 0 | W208: 0 | X208: 0 | Y208: 0 | Z208: 0 | AA208: 268987.5 | AB208: =SUM(Q208:Z208) -> 1075950
A209: 185 | B209: Installation de deux tamiseurs Triple-deck pour faire une ségrégation du lit de boulettes | C209: ArcelorMittal Exploitation Minière Canada s.e.n.c. | D209: Final | E209: Implantation | F209: Industrie | H209: 09-Côte-Nord | J209: AC | K209: SU | L209: 5000000 | M209: 2021-11-02T11:13:02 | N209: 2023-12-31 | O209: PMO - FECC | P209: 7269226 | Q209: 0 | R209: 0 | S209: 0 | T209: 2500000 | U209: 2500000 | V209: 0 | W209: 0 | X209: 0 | Y209: 0 | Z209: 0 | AA209: =SUM(Q209:S209) -> 0 | AB209: 5000000
A210: 186 | B210: Arboria | C210: Association Forestière de Lanaudière | D210: Final | E210: Implantation | F210: Industrie | H210: 14-Lanaudière | J210: AC | K210: SU | L210: 19201.43 | M210: 2021-11-10T13:36:28 | N210: 2023-05-31 | O210: PMO - FECC | P210: 34000 | Q210: 0 | R210: 0 | S210: 9600.72 | T210: 4800.36 | U210: 4800.35 | V210: 0 | W210: 0 | X210: 0 | Y210: 0 | Z210: 0 | AA210: 9600.72 | AB210: =SUM(Q210:Z210) -> 19201.43
A211: 187 | B211: Mur solaire, récupération de chaleur de compresseur et rideaux d'air | C211: Boccam inc. | D211: Final | E211: Implantation | F211: Industrie | H211: 12-Chaudière-Appalaches | J211: AC | K211: SU | L211: 87706.81 | M211: 2022-02-28T08:28:33 | N211: 2023-03-31 | O211: PMO - FECC | P211: 251100 | Q211: 0 | R211: 0 | S211: 43853.4 | T211: 43853.41 | U211: 0 | V211: 0 | W211: 0 | X211: 0 | Y211: 0 | Z211: 0 | AA211: =SUM(Q211:S211) -> 43853.4 | AB211: 87706.81
A212: 188 | B212: Conversion du système de chauffage à combustibles fossiles par de la géothermie | C212: GM Modulaire (9419-4289 Québec inc.) | D212: Final | E212: Implantation | F212: Industrie | H212: 04-Mauricie | J212: AC | K212: SU | L212: 84399.75 | M212: 2022-02-16T13:24:48 | N212: 2023-03-15 | O212: PMO - FECC | P212: 283033 | Q212: 0 | R212: 0 | S212: 42199.88 | T212: 42199.87 | U212: 0 | V212: 0 | W212: 0 | X212: 0 | Y212: 0 | Z212: 0 | AA212: 42199.88 | AB212: =SUM(Q212:Z212) -> 84399.75
A213: 189 | B213: Installation d'un séchoir à grains | C213: Agri-Bienco inc. | D213: Final | E213: Implantation | F213: Industrie | H213: 05-Estrie | J213: AC | K213: SU | L213: 74638.14 | M213: 2022-02-28T08:38:09 | N213: 2025-06-01 | O213: PMO - FECC | P213: 353827 | Q213: 0 | R213: 0 | S213: 0 | T213: 55978.62 | U213: 0 | V213: 0 | W213: 18659.52 | X213: 0 | Y213: 0 | Z213: 0 | AA213: =SUM(Q213:S213) -> 0 | AB213: 74638.14
A214: 190 | B214: Conversion chauffage-CII- électrique | C214: Sablière BY inc. | D214: Final | E214: Implantation | F214: Industrie | H214: 02-Saguenay--Lac-Saint-Jean | J214: AC | K214: SU | L214: 13822 | M214: 2022-03-08T09:34:21 | N214: 2022-07-01 | O214: PMO - FECC | P214: 18954 | Q214: 0 | R214: 0 | S214: 0 | T214: 13822 | U214: 0 | V214: 0 | W214: 0 | X214: 0 | Y214: 0 | Z214: 0 | AA214: 0 | AB214: =SUM(Q214:Z214) -> 13822
A215: 191 | B215: Acériculture-Évaporateur électrique | C215: Érablière A. F. Sénéchal inc. | D215: Final | E215: Implantation | F215: Industrie | H215: 01-Bas-Saint-Laurent | J215: AC | K215: SU | L215: 42326.88 | M215: 2020-06-16T09:36:37 | N215: 2022-02-03 | O215: PMO - FECC | P215: 94003 | Q215: 0 | R215: 0 | S215: 42326.88 | T215: 0 | U215: 0 | V215: 0 | W215: 0 | X215: 0 | Y215: 0 | Z215: 0 | AA215: =SUM(Q215:S215) -> 42326.88 | AB215: 42326.88
A216: 192 | B216: Chaudière électrique no 5 | C216: La Brasserie Labatt limitée | D216: Final | E216: Implantation | F216: Industrie | H216: 06-Montréal | J216: AC | K216: SU | L216: 236465.65 | M216: 2021-10-06T14:21:29 | N216: 2022-01-10 | O216: PMO - FECC | P216: 375844 | Q216: 0 | R216: 0 | S216: 236465.65 | T216: 0 | U216: 0 | V216: 0 | W216: 0 | X216: 0 | Y216: 0 | Z216: 0 | AA216: 236465.65 | AB216: =SUM(Q216:Z216) -> 236465.65
... 68 more rows

Sheet GES
B2: =Utilitaire!E8 -> Plan pour une économie verte 2030 | J2: GES | L2: =Accueil!D65 & " - " & Accueil!D53 -> MERN (SITE) - 1.4.2.1
L3: ="Action " & Accueil!D58 -> Action en cours
B5: Conseils de rédaction : | K5: Informations en date du : | N5: =Utilitaire!G6 -> 2022-03-31
B6: - Veuillez sélectionner les choix pertinents pour votre action à la ligne 20. - Veuillez remplir le tableau uniquement si des résultats ont déjà pu être colligés.
B19: Informations en date du : | D19: 2022-03-31
B20: Potentiel de réduction des GES évalué lors de la sélection des projets de cette action : | G20: Oui | I20: Réductions réelles quantifiables des émissions de GES attendues pour cette action : | O20: Oui
F22: ÉVALUATION DU POTENTIEL DE RÉDUCTION ET D'ÉVITEMENT D'ÉMISSIONS DE GES À TERME. | H22: DÉTAIL DES ÉMISSIONS DE GES RÉDUITES OU ÉVITÉES (en tonnes éq. CO2)
B23: Nom du projet | C23: Nom du requérant ou du bénéficiaire | D23: Région administrative | E23: Montant engagé ($) | F23: Potentiel de réduction des GES sur une base annuelle | G23: Horizon temporel pour la réalisation du potentiel | H23: Coût/tonne estimé | I23: Type d'émission | J23: Émissions rapportées dans l'inventaire | K23: Perrinité des réductions | L23: Émissions | N23: Vérifiées | P23: 2019-2020 | R23: 2020-2021 | T23: 2021-2022 | V23: 2022-2023 | X23: 2023-2024 | Z23: 2024-2025 | AB23: 2025-2026 | AD23: 2026-2027 | AF23: 2027-2028 | AH23: 2028-2029
F24: (tonnes éq. CO2) | H24: $ ------------ tonne éq. CO2 | K24: (années) | L24: Réduites | M24: Évitées | N24: Tierce partie | O24: M/O | P24: Vérifié | Q24: Non vérifié | R24: Vérifié | S24: Non vérifié | T24: Vérifié | U24: Non vérifié | V24: Vérifié | W24: Non vérifié | X24: Vérifié | Y24: Non vérifié | Z24: Vérifié | AA24: Non vérifié | AB24: Vérifié | AC24: Non vérifié | AD24: Vérifié | AE24: Non vérifié | AF24: Vérifié | AG24: Non vérifié | AH24: Vérifié | AI24: Non vérifié
B25: =IF(LEN('Détail des projets'!B25)=0,"",'Détail des projets'!B25) -> Frais de gestion et de coordination de l'action | C25: =IF(LEN('Détail des projets'!C25)=0,"",'Détail des projets'!C25) -> MERN (SITE) | D25: =IF(LEN('Détail des projets'!H25)=0,"",'Détail des projets'!H25) -> Sans objet | E25: =IF(LEN('Détail des projets'!L25)=0,"",'Détail des projets'!L25) -> 
B26: =IF(LEN('Détail des projets'!B26)=0,"",'Détail des projets'!B26) -> Frais de gestion et de coordination de l'action | C26: =IF(LEN('Détail des projets'!C26)=0,"",'Détail des projets'!C26) -> MERN (SITE) | D26: =IF(LEN('Détail des projets'!H26)=0,"",'Détail des projets'!H26) -> Sans objet | E26: =IF(LEN('Détail des projets'!L26)=0,"",'Détail des projets'!L26) -> 
B27: =IF(LEN('Détail des projets'!B27)=0,"",'Détail des projets'!B27) ->  | C27: =IF(LEN('Détail des projets'!C27)=0,"",'Détail des projets'!C27) ->  | D27: =IF(LEN('Détail des projets'!H27)=0,"",'Détail des projets'!H27) ->  | E27: =IF(LEN('Détail des projets'!L27)=0,"",'Détail des projets'!L27) -> 
B28: =IF(LEN('Détail des projets'!B28)=0,"",'Détail des projets'!B28) -> RSI Environnement - Étude conversion énergétique | C28: =IF(LEN('Détail des projets'!C28)=0,"",'Détail des projets'!C28) -> Énergie Tergasa inc. | D28: =IF(LEN('Détail des projets'!H28)=0,"",'Détail des projets'!H28) -> 02-Saguenay--Lac-Saint-Jean | E28: =IF(LEN('Détail des projets'!L28)=0,"",'Détail des projets'!L28) -> 22475.5 | F28: 0 | G28: À la fin du projet (suite au dernier versement) | H28: 0 | I28: QC-Québec | J28: Oui | K28: 0 | L28: non | M28: non | N28: Non | O28: Oui | P28: 0 | Q28: 0 | R28: 0 | S28: 0 | T28: 0 | U28: 0
B29: =IF(LEN('Détail des projets'!B29)=0,"",'Détail des projets'!B29) -> Excavation Alain Lemay - Audit énergétique, récupération de chaleur et optimisation énergétique | C29: =IF(LEN('Détail des projets'!C29)=0,"",'Détail des projets'!C29) -> Excavation Alain Lemay inc. | D29: =IF(LEN('Détail des projets'!H29)=0,"",'Détail des projets'!H29) -> 17-Centre-du-Québec | E29: =IF(LEN('Détail des projets'!L29)=0,"",'Détail des projets'!L29) -> 6000 | F29: 0 | G29: À la fin du projet (suite au dernier versement) | H29: 0 | I29: QC-Québec | J29: Oui | K29: 0 | L29: non | M29: non | N29: Non | O29: Oui | P29: 0 | Q29: 0 | R29: 0 | S29: 0 | T29: 0 | U29: 0
B30: =IF(LEN('Détail des projets'!B30)=0,"",'Détail des projets'!B30) -> Études comparatives en énergie 010501 | C30: =IF(LEN('Détail des projets'!C30)=0,"",'Détail des projets'!C30) -> Minière Osisko Inc. | D30: =IF(LEN('Détail des projets'!H30)=0,"",'Détail des projets'!H30) -> 10-Nord-du-Québec | E30: =IF(LEN('Détail des projets'!L30)=0,"",'Détail des projets'!L30) -> 39272.1 | F30: 0 | G30: À la fin du projet (suite au dernier versement) | H30: 0 | I30: QC-Québec | J30: Oui | K30: 0 | L30: non | M30: non | N30: Non | O30: Oui | P30: 0 | Q30: 0 | R30: 0 | S30: 0 | T30: 0 | U30: 0
B31: =IF(LEN('Détail des projets'!B31)=0,"",'Détail des projets'!B31) -> Étude du chauffage des serres du Parc Marie-Victorin | C31: =IF(LEN('Détail des projets'!C31)=0,"",'Détail des projets'!C31) -> Parc Marie-Victorin inc. | D31: =IF(LEN('Détail des projets'!H31)=0,"",'Détail des projets'!H31) -> 17-Centre-du-Québec | E31: =IF(LEN('Détail des projets'!L31)=0,"",'Détail des projets'!L31) -> 5231.1 | F31: 0 | G31: À la fin du projet (suite au dernier versement) | H31: 0 | I31: QC-Québec | J31: Oui | K31: 0 | L31: non | M31: non | N31: Non | O31: Oui | P31: 0 | Q31: 0 | R31: 0 | S31: 0 | T31: 0 | U31: 0
B32: =IF(LEN('Détail des projets'!B32)=0,"",'Détail des projets'!B32) -> Analyse bilan d'air - Usine Essity | C32: =IF(LEN('Détail des projets'!C32)=0,"",'Détail des projets'!C32) -> Essity Canada inc. | D32: =IF(LEN('Détail des projets'!H32)=0,"",'Détail des projets'!H32) -> 17-Centre-du-Québec | E32: =IF(LEN('Détail des projets'!L32)=0,"",'Détail des projets'!L32) -> 7720 | F32: 0 | G32: À la fin du projet (suite au dernier versement) | H32: 0 | I32: QC-Québec | J32: Oui | K32: 0 | L32: non | M32: non | N32: Non | O32: Oui | P32: 0 | Q32: 0 | R32: 0 | S32: 0 | T32: 0 | U32: 0
B33: =IF(LEN('Détail des projets'!B33)=0,"",'Détail des projets'!B33) -> Étude en efficacité énergétique | C33: =IF(LEN('Détail des projets'!C33)=0,"",'Détail des projets'!C33) -> Mercier, Industries en mécanique ltée | D33: =IF(LEN('Détail des projets'!H33)=0,"",'Détail des projets'!H33) -> 02-Saguenay--Lac-Saint-Jean | E33: =IF(LEN('Détail des projets'!L33)=0,"",'Détail des projets'!L33) -> 8393.22 | F33: 0 | G33: À la fin du projet (suite au dernier versement) | H33: 0 | I33: QC-Québec | J33: Oui | K33: 0 | L33: non | M33: non | N33: Non | O33: Oui | P33: 0 | Q33: 0 | R33: 0 | S33: 0 | T33: 0 | U33: 0
B34: =IF(LEN('Détail des projets'!B34)=0,"",'Détail des projets'!B34) -> Audit des installations vapeur/condensat et des utilités thermiques | C34: =IF(LEN('Détail des projets'!C34)=0,"",'Détail des projets'!C34) -> Canneberges Atoka inc. | D34: =IF(LEN('Détail des projets'!H34)=0,"",'Détail des projets'!H34) -> 17-Centre-du-Québec | E34: =IF(LEN('Détail des projets'!L34)=0,"",'Détail des projets'!L34) -> 41325 | F34: 0 | G34: À la fin du projet (suite au dernier versement) | H34: 0 | I34: QC-Québec | J34: Oui | K34: 0 | L34: non | M34: non | N34: Non | O34: Oui | P34: 0 | Q34: 0 | R34: 0 | S34: 0 | T34: 0 | U34: 0
B35: =IF(LEN('Détail des projets'!B35)=0,"",'Détail des projets'!B35) -> Étude pour la réduction de la consommation d'énergie et d'émission de GES | C35: =IF(LEN('Détail des projets'!C35)=0,"",'Détail des projets'!C35) -> Fortier 2000 ltée | D35: =IF(LEN('Détail des projets'!H35)=0,"",'Détail des projets'!H35) -> 12-Chaudière-Appalaches | E35: =IF(LEN('Détail des projets'!L35)=0,"",'Détail des projets'!L35) -> 8875 | F35: 0 | G35: À la fin du projet (suite au dernier versement) | H35: 0 | I35: QC-Québec | J35: Oui | K35: 0 | L35: non | M35: non | N35: Non | O35: Oui | P35: 0 | Q35: 0 | R35: 0 | S35: 0 | T35: 0 | U35: 0
B36: =IF(LEN('Détail des projets'!B36)=0,"",'Détail des projets'!B36) -> Étude IP - Phase II | C36: =IF(LEN('Détail des projets'!C36)=0,"",'Détail des projets'!C36) -> Entreprise Greenfield Global Québec | D36: =IF(LEN('Détail des projets'!H36)=0,"",'Détail des projets'!H36) -> 16-Montérégie | E36: =IF(LEN('Détail des projets'!L36)=0,"",'Détail des projets'!L36) -> 88018.5 | F36: 0 | G36: À la fin du projet (suite au dernier versement) | H36: 0 | I36: QC-Québec | J36: Oui | K36: 0 | L36: non | M36: non | N36: Non | O36: Oui | P36: 0 | Q36: 0 | R36: 0 | S36: 0 | T36: 0 | U36: 0
B37: =IF(LEN('Détail des projets'!B37)=0,"",'Détail des projets'!B37) -> Étude en intégration énergétique par analyse de pincement | C37: =IF(LEN('Détail des projets'!C37)=0,"",'Détail des projets'!C37) -> Technocell inc. | D37: =IF(LEN('Détail des projets'!H37)=0,"",'Détail des projets'!H37) -> 17-Centre-du-Québec | E37: =IF(LEN('Détail des projets'!L37)=0,"",'Détail des projets'!L37) -> 46287.19 | F37: 0 | G37: À la fin du projet (suite au dernier versement) | H37: 0 | I37: QC-Québec | J37: Oui | K37: 0 | L37: non | M37: non | N37: Non | O37: Oui | P37: 0 | Q37: 0 | R37: 0 | S37: 0 | T37: 0 | U37: 0
B38: =IF(LEN('Détail des projets'!B38)=0,"",'Détail des projets'!B38) -> Étude écoénergétique à la teinturerie Cansew | C38: =IF(LEN('Détail des projets'!C38)=0,"",'Détail des projets'!C38) -> Cansew inc. | D38: =IF(LEN('Détail des projets'!H38)=0,"",'Détail des projets'!H38) -> 06-Montréal | E38: =IF(LEN('Détail des projets'!L38)=0,"",'Détail des projets'!L38) -> 10384 | F38: 0 | G38: À la fin du projet (suite au dernier versement) | H38: 0 | I38: QC-Québec | J38: Oui | K38: 0 | L38: non | M38: non | N38: Non | O38: Oui | P38: 0 | Q38: 0 | R38: 0 | S38: 0 | T38: 0 | U38: 0
B39: =IF(LEN('Détail des projets'!B39)=0,"",'Détail des projets'!B39) -> Étude d’efficacité énergétique des procédés et utilités | C39: =IF(LEN('Détail des projets'!C39)=0,"",'Détail des projets'!C39) -> Les Ingrédients Alimentaires BSA inc. | D39: =IF(LEN('Détail des projets'!H39)=0,"",'Détail des projets'!H39) -> 06-Montréal | E39: =IF(LEN('Détail des projets'!L39)=0,"",'Détail des projets'!L39) -> 9288 | F39: 0 | G39: À la fin du projet (suite au dernier versement) | H39: 0 | I39: QC-Québec | J39: Oui | K39: 0 | L39: non | M39: non | N39: Non | O39: Oui | P39: 0 | Q39: 0 | R39: 0 | S39: 0 | T39: 0 | U39: 0
B40: =IF(LEN('Détail des projets'!B40)=0,"",'Détail des projets'!B40) -> Conversion à l'hydrogène des fours du Centre de Coulée de Baie-Comeau | C40: =IF(LEN('Détail des projets'!C40)=0,"",'Détail des projets'!C40) -> Alcoa Canada Cie | D40: =IF(LEN('Détail des projets'!H40)=0,"",'Détail des projets'!H40) -> 09-Côte-Nord | E40: =IF(LEN('Détail des projets'!L40)=0,"",'Détail des projets'!L40) -> 27461.09 | F40: 0 | G40: À la fin du projet (suite au dernier versement) | H40: 0 | I40: QC-Québec | J40: Oui | K40: 0 | L40: non | M40: non | N40: Non | O40: Oui | P40: 0 | Q40: 0 | R40: 0 | S40: 0 | T40: 0 | U40: 0
B41: =IF(LEN('Détail des projets'!B41)=0,"",'Détail des projets'!B41) -> Étude d’efficacité énergétique | C41: =IF(LEN('Détail des projets'!C41)=0,"",'Détail des projets'!C41) -> Fonderie Poitras ltée | D41: =IF(LEN('Détail des projets'!H41)=0,"",'Détail des projets'!H41) -> 12-Chaudière-Appalaches | E41: =IF(LEN('Détail des projets'!L41)=0,"",'Détail des projets'!L41) -> 25000 | F41: 0 | G41: À la fin du projet (suite au dernier versement) | H41: 0 | I41: QC-Québec | J41: Oui | K41: 0 | L41: non | M41: non | N41: Non | O41: Oui | P41: 0 | Q41: 0 | R41: 0 | S41: 0 | T41: 0 | U41: 0
B42: =IF(LEN('Détail des projets'!B42)=0,"",'Détail des projets'!B42) -> Analyse énergétique et potentiel de récupération | C42: =IF(LEN('Détail des projets'!C42)=0,"",'Détail des projets'!C42) -> La Fromagerie Polyethnique inc. | D42: =IF(LEN('Détail des projets'!H42)=0,"",'Détail des projets'!H42) -> 16-Montérégie | E42: =IF(LEN('Détail des projets'!L42)=0,"",'Détail des projets'!L42) -> 23909.13 | F42: 0 | G42: À la fin du projet (suite au dernier versement) | H42: 0 | I42: QC-Québec | J42: Oui | K42: 0 | L42: non | M42: non | N42: Non | O42: Oui | P42: 0 | Q42: 0 | R42: 0 | S42: 0 | T42: 0 | U42: 0
B43: =IF(LEN('Détail des projets'!B43)=0,"",'Détail des projets'!B43) -> Étude de faisabilité - remplacement de la chaudière et mesures d'efficacité énergétique | C43: =IF(LEN('Détail des projets'!C43)=0,"",'Détail des projets'!C43) -> Boulangerie St-Méthode inc. | D43: =IF(LEN('Détail des projets'!H43)=0,"",'Détail des projets'!H43) -> 12-Chaudière-Appalaches | E43: =IF(LEN('Détail des projets'!L43)=0,"",'Détail des projets'!L43) -> 10195.48 | F43: 0 | G43: À la fin du projet (suite au dernier versement) | H43: 0 | I43: QC-Québec | J43: Oui | K43: 0 | L43: non | M43: non | N43: Non | O43: Oui | P43: 0 | Q43: 0 | R43: 0 | S43: 0 | T43: 0 | U43: 0
B44: =IF(LEN('Détail des projets'!B44)=0,"",'Détail des projets'!B44) -> Étude énergétique de récupération de chaleur du système de refroidissement | C44: =IF(LEN('Détail des projets'!C44)=0,"",'Détail des projets'!C44) -> Les Plastiques Balcan | D44: =IF(LEN('Détail des projets'!H44)=0,"",'Détail des projets'!H44) -> 06-Montréal | E44: =IF(LEN('Détail des projets'!L44)=0,"",'Détail des projets'!L44) -> 6247.5 | F44: 0 | G44: À la fin du projet (suite au dernier versement) | H44: 0 | I44: QC-Québec | J44: Oui | K44: 0 | L44: non | M44: non | N44: Non | O44: Oui | P44: 0 | Q44: 0 | R44: 0 | S44: 0 | T44: 0 | U44: 0
B45: =IF(LEN('Détail des projets'!B45)=0,"",'Détail des projets'!B45) -> Implantation d'un système de chauffage de serre | C45: =IF(LEN('Détail des projets'!C45)=0,"",'Détail des projets'!C45) -> Entreprise Gendron-Benoit | D45: =IF(LEN('Détail des projets'!H45)=0,"",'Détail des projets'!H45) -> 05-Estrie | E45: =IF(LEN('Détail des projets'!L45)=0,"",'Détail des projets'!L45) -> 4462.5 | F45: 0 | G45: À la fin du projet (suite au dernier versement) | H45: 0 | I45: QC-Québec | J45: Oui | K45: 0 | L45: non | M45: non | N45: Non | O45: Oui | P45: 0 | Q45: 0 | R45: 0 | S45: 0 | T45: 0 | U45: 0
B46: =IF(LEN('Détail des projets'!B46)=0,"",'Détail des projets'!B46) -> Analyse des opportunités de réduction des GES de 2021 | C46: =IF(LEN('Détail des projets'!C46)=0,"",'Détail des projets'!C46) -> Groupe Canam inc. | D46: =IF(LEN('Détail des projets'!H46)=0,"",'Détail des projets'!H46) -> 16-Montérégie | E46: =IF(LEN('Détail des projets'!L46)=0,"",'Détail des projets'!L46) -> 10352.58 | F46: 0 | G46: À la fin du projet (suite au dernier versement) | H46: 0 | I46: QC-Québec | J46: Oui | K46: 0 | L46: non | M46: non | N46: Non | O46: Oui | P46: 0 | Q46: 0 | R46: 0 | S46: 0 | T46: 0 | U46: 0
B47: =IF(LEN('Détail des projets'!B47)=0,"",'Détail des projets'!B47) -> Opportunités de réduction de coûts et de GES - MdFQ - Lac Bloom | C47: =IF(LEN('Détail des projets'!C47)=0,"",'Détail des projets'!C47) -> Minerai de fer Québec inc. | D47: =IF(LEN('Détail des projets'!H47)=0,"",'Détail des projets'!H47) -> 09-Côte-Nord | E47: =IF(LEN('Détail des projets'!L47)=0,"",'Détail des projets'!L47) -> 31170 | F47: 0 | G47: À la fin du projet (suite au dernier versement) | H47: 0 | I47: QC-Québec | J47: Oui | K47: 0 | L47: non | M47: non | N47: Non | O47: Oui | P47: 0 | Q47: 0 | R47: 0 | S47: 0 | T47: 0 | U47: 0
B48: =IF(LEN('Détail des projets'!B48)=0,"",'Détail des projets'!B48) -> Étude pour une boucle d’eau de chauffage par géothermie et efficacité énergétique en serre | C48: =IF(LEN('Détail des projets'!C48)=0,"",'Détail des projets'!C48) -> L'Abri Végétal | D48: =IF(LEN('Détail des projets'!H48)=0,"",'Détail des projets'!H48) -> 05-Estrie | E48: =IF(LEN('Détail des projets'!L48)=0,"",'Détail des projets'!L48) -> 25000 | F48: 0 | G48: À la fin du projet (suite au dernier versement) | H48: 0 | I48: QC-Québec | J48: Oui | K48: 0 | L48: non | M48: non | N48: Non | O48: Oui | P48: 0 | Q48: 0 | R48: 0 | S48: 0 | T48: 0 | U48: 0
B49: =IF(LEN('Détail des projets'!B49)=0,"",'Détail des projets'!B49) -> Amélioration de la fiabilité des bassins | C49: =IF(LEN('Détail des projets'!C49)=0,"",'Détail des projets'!C49) -> Sonaca Montréal inc. | D49: =IF(LEN('Détail des projets'!H49)=0,"",'Détail des projets'!H49) -> 15-Laurentides | E49: =IF(LEN('Détail des projets'!L49)=0,"",'Détail des projets'!L49) -> 12146.75 | F49: 0 | G49: À la fin du projet (suite au dernier versement) | H49: 0 | I49: QC-Québec | J49: Oui | K49: 0 | L49: non | M49: non | N49: Non | O49: Oui | P49: 0 | Q49: 0 | R49: 0 | S49: 0 | T49: 0 | U49: 0
B50: =IF(LEN('Détail des projets'!B50)=0,"",'Détail des projets'!B50) -> Étude d'intégration de procédés | C50: =IF(LEN('Détail des projets'!C50)=0,"",'Détail des projets'!C50) -> Alcyon sel de mer inc. | D50: =IF(LEN('Détail des projets'!H50)=0,"",'Détail des projets'!H50) -> 11-Gaspésie--Îles-de-la-Madeleine | E50: =IF(LEN('Détail des projets'!L50)=0,"",'Détail des projets'!L50) -> 27984 | F50: 0 | G50: À la fin du projet (suite au dernier versement) | H50: 0 | I50: QC-Québec | J50: Oui | K50: 0 | L50: non | M50: non | N50: Non | O50: Oui | P50: 0 | Q50: 0 | R50: 0 | S50: 0 | T50: 0 | U50: 0
B51: =IF(LEN('Détail des projets'!B51)=0,"",'Détail des projets'!B51) ->  | C51: =IF(LEN('Détail des projets'!C51)=0,"",'Détail des projets'!C51) ->  | D51: =IF(LEN('Détail des projets'!H51)=0,"",'Détail des projets'!H51) ->  | E51: =IF(LEN('Détail des projets'!L51)=0,"",'Détail des projets'!L51) -> 
B52: =IF(LEN('Détail des projets'!B52)=0,"",'Détail des projets'!B52) -> Économies d'énergie - Les Machineries Pronovost inc. | C52: =IF(LEN('Détail des projets'!C52)=0,"",'Détail des projets'!C52) -> Les Machineries Pronovost inc. | D52: =IF(LEN('Détail des projets'!H52)=0,"",'Détail des projets'!H52) -> 04-Mauricie | E52: =IF(LEN('Détail des projets'!L52)=0,"",'Détail des projets'!L52) -> 206330.83 | F52: 224.1164236 | G52: À la fin du projet (suite au dernier versement) | H52: 38.54627926 | I52: QC-Québec | J52: Oui | K52: 23.88405037 | L52: oui | M52: non | N52: Non | O52: Oui | P52: 0 | Q52: 0 | R52: 0 | S52: 0 | T52: 0 | U52: 0
B53: =IF(LEN('Détail des projets'!B53)=0,"",'Détail des projets'!B53) -> Efficacité et conversion énergétiques chez Séchoirs St-Élisabeth | C53: =IF(LEN('Détail des projets'!C53)=0,"",'Détail des projets'!C53) -> Séchoirs St-Élisabeth (9200-4746 Québec inc.) | D53: =IF(LEN('Détail des projets'!H53)=0,"",'Détail des projets'!H53) -> 14-Lanaudière | E53: =IF(LEN('Détail des projets'!L53)=0,"",'Détail des projets'!L53) -> 1066729.24 | F53: 853.3833882 | G53: À la fin du projet (suite au dernier versement) | H53: 62.50000028 | I53: QC-Québec | J53: Oui | K53: 20 | L53: oui | M53: non | N53: Non | O53: Oui | P53: 0 | Q53: 0 | R53: 0 | S53: 0 | T53: 0 | U53: 0
B54: =IF(LEN('Détail des projets'!B54)=0,"",'Détail des projets'!B54) -> Construction d’une ligne électrique en remplacement de deux génératrices pour 9246-7984 Québec inc. | C54: =IF(LEN('Détail des projets'!C54)=0,"",'Détail des projets'!C54) -> 9246-7984 Québec inc. | D54: =IF(LEN('Détail des projets'!H54)=0,"",'Détail des projets'!H54) -> 17-Centre-du-Québec | E54: =IF(LEN('Détail des projets'!L54)=0,"",'Détail des projets'!L54) -> 14707.03 | F54: 11.76562696 | G54: À la fin du projet (suite au dernier versement) | H54: 49.9999874 | I54: QC-Québec | J54: Oui | K54: 25 | L54: non | M54: oui | N54: Non | O54: Oui | P54: 0 | Q54: 0 | R54: 0 | S54: 0 | T54: 0 | U54: 0
B55: =IF(LEN('Détail des projets'!B55)=0,"",'Détail des projets'!B55) -> Ventilation de l'entrepôt de maintenance de Kerry Ste-Claire | C55: =IF(LEN('Détail des projets'!C55)=0,"",'Détail des projets'!C55) -> Kerry (Canada) inc. | D55: =IF(LEN('Détail des projets'!H55)=0,"",'Détail des projets'!H55) -> 12-Chaudière-Appalaches | E55: =IF(LEN('Détail des projets'!L55)=0,"",'Détail des projets'!L55) -> 35117.42 | F55: 52.62587288 | G55: À la fin du projet (suite au dernier versement) | H55: 26.69213304 | I55: QC-Québec | J55: Oui | K55: 25 | L55: non | M55: oui | N55: Non | O55: Oui | P55: 0 | Q55: 0 | R55: 0 | S55: 0 | T55: 0 | U55: 0
B56: =IF(LEN('Détail des projets'!B56)=0,"",'Détail des projets'!B56) -> Construction Agropod Verchères - Phase 3 | C56: =IF(LEN('Détail des projets'!C56)=0,"",'Détail des projets'!C56) -> 9444-0609 Québec inc. | D56: =IF(LEN('Détail des projets'!H56)=0,"",'Détail des projets'!H56) -> 16-Montérégie | E56: =IF(LEN('Détail des projets'!L56)=0,"",'Détail des projets'!L56) -> 1823040 | F56: 1624.417704 | G56: À la fin du projet (suite au dernier versement) | H56: 56.11364601 | I56: QC-Québec | J56: Oui | K56: 20 | L56: oui | M56: non | N56: Non | O56: Oui | P56: 0 | Q56: 0 | R56: 0 | S56: 0 | T56: 0 | U56: 0
B57: =IF(LEN('Détail des projets'!B57)=0,"",'Détail des projets'!B57) -> Agropod Partnership inc. | C57: =IF(LEN('Détail des projets'!C57)=0,"",'Détail des projets'!C57) -> Agropod Partnership inc. | D57: =IF(LEN('Détail des projets'!H57)=0,"",'Détail des projets'!H57) -> 16-Montérégie | E57: =IF(LEN('Détail des projets'!L57)=0,"",'Détail des projets'!L57) -> 2011961.17 | F57: 1609.568936 | G57: À la fin du projet (suite au dernier versement) | H57: 62.49999999 | I57: QC-Québec | J57: Oui | K57: 20 | L57: oui | M57: non | N57: Non | O57: Oui | P57: 0 | Q57: 0 | R57: 0 | S57: 0 | T57: 0 | U57: 0
B58: =IF(LEN('Détail des projets'!B58)=0,"",'Détail des projets'!B58) -> Rideaux d'air - Agrimétal inc. | C58: =IF(LEN('Détail des projets'!C58)=0,"",'Détail des projets'!C58) -> Agrimétal inc. | D58: =IF(LEN('Détail des projets'!H58)=0,"",'Détail des projets'!H58) -> 17-Centre-du-Québec | E58: =IF(LEN('Détail des projets'!L58)=0,"",'Détail des projets'!L58) -> 23681.19 | F58: 18.9449455 | G58: À la fin du projet (suite au dernier versement) | H58: 83.33336191 | I58: QC-Québec | J58: Oui | K58: 15 | L58: oui | M58: non | N58: Non | O58: Oui | P58: 0 | Q58: 0 | R58: 0 | S58: 0 | T58: 0 | U58: 0
B59: =IF(LEN('Détail des projets'!B59)=0,"",'Détail des projets'!B59) -> Récupération de chaleur pour la réduction de la consommation du propane | C59: =IF(LEN('Détail des projets'!C59)=0,"",'Détail des projets'!C59) -> Ouellet Canada inc | D59: =IF(LEN('Détail des projets'!H59)=0,"",'Détail des projets'!H59) -> 12-Chaudière-Appalaches | E59: =IF(LEN('Détail des projets'!L59)=0,"",'Détail des projets'!L59) -> 1022434.28 | F59: 817.9474226 | G59: À la fin du projet (suite au dernier versement) | H59: 50.00000009 | I59: QC-Québec | J59: Oui | K59: 25 | L59: oui | M59: non | N59: Non | O59: Oui | P59: 0 | Q59: 0 | R59: 0 | S59: 0 | T59: 0 | U59: 0
B60: =IF(LEN('Détail des projets'!B60)=0,"",'Détail des projets'!B60) -> Optimisation du système de traitement des COV des ateliers de peinture du bâtiment 318 | C60: =IF(LEN('Détail des projets'!C60)=0,"",'Détail des projets'!C60) -> Bombardier inc. | D60: =IF(LEN('Détail des projets'!H60)=0,"",'Détail des projets'!H60) -> 06-Montréal | E60: =IF(LEN('Détail des projets'!L60)=0,"",'Détail des projets'!L60) -> 140856.37 | F60: 281.7127266 | G60: À la fin du projet (suite au dernier versement) | H60: 20.00000095 | I60: QC-Québec | J60: Oui | K60: 25 | L60: oui | M60: non | N60: Non | O60: Oui | P60: 0 | Q60: 0 | R60: 0 | S60: 0 | T60: 0 | U60: 0
B61: =IF(LEN('Détail des projets'!B61)=0,"",'Détail des projets'!B61) -> Nouveau bâtiment de serre intérieure | C61: =IF(LEN('Détail des projets'!C61)=0,"",'Détail des projets'!C61) -> PharmaflorX inc. | D61: =IF(LEN('Détail des projets'!H61)=0,"",'Détail des projets'!H61) -> 07-Outaouais | E61: =IF(LEN('Détail des projets'!L61)=0,"",'Détail des projets'!L61) -> 1311196.694 | F61: 2145.335555 | G61: À la fin du projet (suite au dernier versement) | H61: 24.44739595 | I61: QC-Québec | J61: Oui | K61: 25 | L61: oui | M61: non | N61: Non | O61: Oui | P61: 0 | Q61: 0 | R61: 0 | S61: 0 | T61: 0 | U61: 0
B62: =IF(LEN('Détail des projets'!B62)=0,"",'Détail des projets'!B62) -> Viandes Première - Agrandissement | C62: =IF(LEN('Détail des projets'!C62)=0,"",'Détail des projets'!C62) -> 4496663 Canada inc. | D62: =IF(LEN('Détail des projets'!H62)=0,"",'Détail des projets'!H62) -> 16-Montérégie | E62: =IF(LEN('Détail des projets'!L62)=0,"",'Détail des projets'!L62) -> 260790.1177 | F62: 208.6319396 | G62: À la fin du projet (suite au dernier versement) | H62: 41.66669752 | I62: QC-Québec | J62: Oui | K62: 30 | L62: oui | M62: non | N62: Non | O62: Oui | P62: 0 | Q62: 0 | R62: 0 | S62: 0 | T62: 0 | U62: 0
B63: =IF(LEN('Détail des projets'!B63)=0,"",'Détail des projets'!B63) -> Implantation d’un séchoir électrique sur rail | C63: =IF(LEN('Détail des projets'!C63)=0,"",'Détail des projets'!C63) -> Bois LIB inc. | D63: =IF(LEN('Détail des projets'!H63)=0,"",'Détail des projets'!H63) -> 17-Centre-du-Québec | E63: =IF(LEN('Détail des projets'!L63)=0,"",'Détail des projets'!L63) -> 1135106.75 | F63: 1206.6744 | G63: À la fin du projet (suite au dernier versement) | H63: 37.62760692 | I63: QC-Québec | J63: Oui | K63: 25 | L63: oui | M63: oui | N63: Non | O63: Oui | P63: 0 | Q63: 0 | R63: 0 | S63: 0 | T63: 0 | U63: 0
B64: =IF(LEN('Détail des projets'!B64)=0,"",'Détail des projets'!B64) -> Serre agricole, efficacité énergétique et conversion à la biomasse résiduelle | C64: =IF(LEN('Détail des projets'!C64)=0,"",'Détail des projets'!C64) -> Fraîcheur Urbaine | D64: =IF(LEN('Détail des projets'!H64)=0,"",'Détail des projets'!H64) -> 05-Estrie | E64: =IF(LEN('Détail des projets'!L64)=0,"",'Détail des projets'!L64) -> 22576.0777 | F64: 18.06152483 | G64: À la fin du projet (suite au dernier versement) | H64: 62.49770689 | I64: QC-Québec | J64: Oui | K64: 20 | L64: oui | M64: non | N64: Non | O64: Oui | P64: 0 | Q64: 0 | R64: 0 | S64: 0 | T64: 0 | U64: 0
B65: =IF(LEN('Détail des projets'!B65)=0,"",'Détail des projets'!B65) -> Installation de thermopompes pour le chauffage | C65: =IF(LEN('Détail des projets'!C65)=0,"",'Détail des projets'!C65) -> GEA Houle, une division de GEA Farm Technologies Canada | D65: =IF(LEN('Détail des projets'!H65)=0,"",'Détail des projets'!H65) -> 17-Centre-du-Québec | E65: =IF(LEN('Détail des projets'!L65)=0,"",'Détail des projets'!L65) -> 248750 | F65: 227.036588 | G65: À la fin du projet (suite au dernier versement) | H65: 43.8255353 | I65: QC-Québec | J65: Oui | K65: 25 | L65: non | M65: oui | N65: Non | O65: Oui | P65: 0 | Q65: 0 | R65: 0 | S65: 0 | T65: 0 | U65: 0
B66: =IF(LEN('Détail des projets'!B66)=0,"",'Détail des projets'!B66) -> Amélioration de l'efficacité énergétique | C66: =IF(LEN('Détail des projets'!C66)=0,"",'Détail des projets'!C66) -> Société en commandite Papier Masson WB | D66: =IF(LEN('Détail des projets'!H66)=0,"",'Détail des projets'!H66) -> 07-Outaouais | E66: =IF(LEN('Détail des projets'!L66)=0,"",'Détail des projets'!L66) -> 4146363.08 | F66: 9452.948115 | G66: À la fin du projet (suite au dernier versement) | H66: 17.5452696 | I66: QC-Québec | J66: Oui | K66: 25 | L66: oui | M66: non | N66: Non | O66: Oui | P66: 0 | Q66: 0 | R66: 0 | S66: 0 | T66: 0 | U66: 0
B67: =IF(LEN('Détail des projets'!B67)=0,"",'Détail des projets'!B67) -> Serre agricole de micropousses – Efficacité énergétique | C67: =IF(LEN('Détail des projets'!C67)=0,"",'Détail des projets'!C67) -> Les Jardiniers du Chef | D67: =IF(LEN('Détail des projets'!H67)=0,"",'Détail des projets'!H67) -> 15-Laurentides | E67: =IF(LEN('Détail des projets'!L67)=0,"",'Détail des projets'!L67) -> 31750.02 | F67: 25.40001808 | G67: À la fin du projet (suite au dernier versement) | H67: 49.99999591 | I67: QC-Québec | J67: Oui | K67: 25 | L67: oui | M67: non | N67: Non | O67: Oui | P67: 0 | Q67: 0 | R67: 0 | S67: 0 | T67: 0 | U67: 0
B68: =IF(LEN('Détail des projets'!B68)=0,"",'Détail des projets'!B68) -> Électrification d'une cannebergière, phase II | C68: =IF(LEN('Détail des projets'!C68)=0,"",'Détail des projets'!C68) -> Les Canneberges Dion inc. | D68: =IF(LEN('Détail des projets'!H68)=0,"",'Détail des projets'!H68) -> 17-Centre-du-Québec | E68: =IF(LEN('Détail des projets'!L68)=0,"",'Détail des projets'!L68) -> 244625.29 | F68: 195.7002313 | G68: À la fin du projet (suite au dernier versement) | H68: 50.00000018 | I68: QC-Québec | J68: Oui | K68: 25 | L68: non | M68: oui | N68: Non | O68: Oui | P68: 0 | Q68: 0 | R68: 0 | S68: 0 | T68: 0 | U68: 0
B69: =IF(LEN('Détail des projets'!B69)=0,"",'Détail des projets'!B69) -> Agrandissement de 3 hectares, efficacité énergétique et chauffage à la biomasse | C69: =IF(LEN('Détail des projets'!C69)=0,"",'Détail des projets'!C69) -> 9328-3810 Québec inc. | D69: =IF(LEN('Détail des projets'!H69)=0,"",'Détail des projets'!H69) -> 15-Laurentides | E69: =IF(LEN('Détail des projets'!L69)=0,"",'Détail des projets'!L69) -> 2209804.46 | F69: 4419.608922 | G69: À la fin du projet (suite au dernier versement) | H69: 26.77258701 | I69: QC-Québec | J69: Oui | K69: 18.6758194 | L69: oui | M69: oui | N69: Non | O69: Oui | P69: 0 | Q69: 0 | R69: 0 | S69: 0 | T69: 0 | U69: 0
B70: =IF(LEN('Détail des projets'!B70)=0,"",'Détail des projets'!B70) -> Échangeur de chaleur | C70: =IF(LEN('Détail des projets'!C70)=0,"",'Détail des projets'!C70) -> Soprema inc. | D70: =IF(LEN('Détail des projets'!H70)=0,"",'Détail des projets'!H70) -> 17-Centre-du-Québec | E70: =IF(LEN('Détail des projets'!L70)=0,"",'Détail des projets'!L70) -> 294750 | F70: 235.7137208 | G70: À la fin du projet (suite au dernier versement) | H70: 50.01830168 | I70: QC-Québec | J70: Oui | K70: 25 | L70: oui | M70: non | N70: Non | O70: Oui | P70: 0 | Q70: 0 | R70: 0 | S70: 0 | T70: 0 | U70: 0
B71: =IF(LEN('Détail des projets'!B71)=0,"",'Détail des projets'!B71) -> Remplacement de deux échangeurs de chaleur | C71: =IF(LEN('Détail des projets'!C71)=0,"",'Détail des projets'!C71) -> Société en commandite FF Soucy WB | D71: =IF(LEN('Détail des projets'!H71)=0,"",'Détail des projets'!H71) -> 01-Bas-Saint-Laurent | E71: =IF(LEN('Détail des projets'!L71)=0,"",'Détail des projets'!L71) -> 67198.8 | F71: 254.2910099 | G71: À la fin du projet (suite au dernier versement) | H71: 13.21297203 | I71: QC-Québec | J71: Oui | K71: 20 | L71: oui | M71: non | N71: Non | O71: Oui | P71: 0 | Q71: 0 | R71: 0 | S71: 0 | T71: 0 | U71: 0
B72: =IF(LEN('Détail des projets'!B72)=0,"",'Détail des projets'!B72) -> Écrans thermiques - Phase 3 | C72: =IF(LEN('Détail des projets'!C72)=0,"",'Détail des projets'!C72) -> Serres Toundra inc. | D72: =IF(LEN('Détail des projets'!H72)=0,"",'Détail des projets'!H72) -> 02-Saguenay--Lac-Saint-Jean | E72: =IF(LEN('Détail des projets'!L72)=0,"",'Détail des projets'!L72) -> 1904919.31 | F72: 6591.832678 | G72: À la fin du projet (suite au dernier versement) | H72: 19.26544967 | I72: QC-Québec | J72: Oui | K72: 15 | L72: oui | M72: non | N72: Non | O72: Oui | P72: 0 | Q72: 0 | R72: 0 | S72: 0 | T72: 0 | U72: 0
B73: =IF(LEN('Détail des projets'!B73)=0,"",'Détail des projets'!B73) -> Valorisation de rejets thermiques industriels - phase 3 | C73: =IF(LEN('Détail des projets'!C73)=0,"",'Détail des projets'!C73) -> Serres Toundra inc. | D73: =IF(LEN('Détail des projets'!H73)=0,"",'Détail des projets'!H73) -> 02-Saguenay--Lac-Saint-Jean | E73: =IF(LEN('Détail des projets'!L73)=0,"",'Détail des projets'!L73) -> 3441707.25 | F73: 7083.647673 | G73: À la fin du projet (suite au dernier versement) | H73: 32.39110139 | I73: QC-Québec | J73: Oui | K73: 15 | L73: oui | M73: non | N73: Non | O73: Oui | P73: 0 | Q73: 0 | R73: 0 | S73: 0 | T73: 0 | U73: 0
B74: =IF(LEN('Détail des projets'!B74)=0,"",'Détail des projets'!B74) -> Acériculture-Évaporateur électrique | C74: =IF(LEN('Détail des projets'!C74)=0,"",'Détail des projets'!C74) -> 9071-0567 Québec inc. | D74: =IF(LEN('Détail des projets'!H74)=0,"",'Détail des projets'!H74) -> 12-Chaudière-Appalaches | E74: =IF(LEN('Détail des projets'!L74)=0,"",'Détail des projets'!L74) -> 28839.67 | F74: 21.97307904 | G74: À la fin du projet (suite au dernier versement) | H74: 65.62500856 | I74: QC-Québec | J74: Oui | K74: 20 | L74: oui | M74: non | N74: Non | O74: Oui | P74: 0 | Q74: 0 | R74: 0 | S74: 0 | T74: 0 | U74: 0
B75: =IF(LEN('Détail des projets'!B75)=0,"",'Détail des projets'!B75) -> Système Thermo PVT, chauffage de l’eau de lavage avec récupération de chaleur sur le procédé de refroidissement du séchoir de canneberges | C75: =IF(LEN('Détail des projets'!C75)=0,"",'Détail des projets'!C75) -> Fruit d'Or inc. | D75: =IF(LEN('Détail des projets'!H75)=0,"",'Détail des projets'!H75) -> 17-Centre-du-Québec | E75: =IF(LEN('Détail des projets'!L75)=0,"",'Détail des projets'!L75) -> 146244.19 | F75: 348.20046 | G75: À la fin du projet (suite au dernier versement) | H75: 16.79999963 | I75: QC-Québec | J75: Oui | K75: 25 | L75: non | M75: oui | N75: Non | O75: Oui | P75: 0 | Q75: 0 | R75: 0 | S75: 0 | T75: 0 | U75: 0
B76: =IF(LEN('Détail des projets'!B76)=0,"",'Détail des projets'!B76) -> Brûleurs régénératifs Laterrière | C76: =IF(LEN('Détail des projets'!C76)=0,"",'Détail des projets'!C76) -> Rio Tinto Aluminium | D76: =IF(LEN('Détail des projets'!H76)=0,"",'Détail des projets'!H76) -> 02-Saguenay--Lac-Saint-Jean | E76: =IF(LEN('Détail des projets'!L76)=0,"",'Détail des projets'!L76) -> 302310.56 | F76: 1143.321998 | G76: À la fin du projet (suite au dernier versement) | H76: 13.2207095 | I76: QC-Québec | J76: Oui | K76: 20 | L76: oui | M76: non | N76: Non | O76: Oui | P76: 0 | Q76: 0 | R76: 0 | S76: 0 | T76: 0 | U76: 0
B77: =IF(LEN('Détail des projets'!B77)=0,"",'Détail des projets'!B77) -> Deux murs solaires et un rideau d'air | C77: =IF(LEN('Détail des projets'!C77)=0,"",'Détail des projets'!C77) -> ABB Électrification Canada SRI | D77: =IF(LEN('Détail des projets'!H77)=0,"",'Détail des projets'!H77) -> 06-Montréal | E77: =IF(LEN('Détail des projets'!L77)=0,"",'Détail des projets'!L77) -> 60808.99 | F77: 48.64718725 | G77: À la fin du projet (suite au dernier versement) | H77: 51.89745819 | I77: QC-Québec | J77: Oui | K77: 24.08596039 | L77: oui | M77: non | N77: Non | O77: Oui | P77: 0 | Q77: 0 | R77: 0 | S77: 0 | T77: 0 | U77: 0
B78: =IF(LEN('Détail des projets'!B78)=0,"",'Détail des projets'!B78) -> Mur solaire et rideau d'air | C78: =IF(LEN('Détail des projets'!C78)=0,"",'Détail des projets'!C78) -> ABB Électrification Canada SRI | D78: =IF(LEN('Détail des projets'!H78)=0,"",'Détail des projets'!H78) -> 06-Montréal | E78: =IF(LEN('Détail des projets'!L78)=0,"",'Détail des projets'!L78) -> 30572 | F78: 25.34224236 | G78: À la fin du projet (suite au dernier versement) | H78: 48.25460915 | I78: QC-Québec | J78: Oui | K78: 25 | L78: oui | M78: non | N78: Non | O78: Oui | P78: 0 | Q78: 0 | R78: 0 | S78: 0 | T78: 0 | U78: 0
B79: =IF(LEN('Détail des projets'!B79)=0,"",'Détail des projets'!B79) -> Remplacement d'un concasseur diesel par un nouveau concasseur électrique | C79: =IF(LEN('Détail des projets'!C79)=0,"",'Détail des projets'!C79) -> Bellemare abrasifs & minéraux | D79: =IF(LEN('Détail des projets'!H79)=0,"",'Détail des projets'!H79) -> 04-Mauricie | E79: =IF(LEN('Détail des projets'!L79)=0,"",'Détail des projets'!L79) -> 182780.28 | F79: 139.26117 | G79: À la fin du projet (suite au dernier versement) | H79: 52.49999838 | I79: QC-Québec | J79: Oui | K79: 25 | L79: oui | M79: non | N79: Non | O79: Oui | P79: 0 | Q79: 0 | R79: 0 | S79: 0 | T79: 0 | U79: 0
B80: =IF(LEN('Détail des projets'!B80)=0,"",'Détail des projets'!B80) -> Remplacement d'un convoyeur empileur au diesel par un convoyeur électrique | C80: =IF(LEN('Détail des projets'!C80)=0,"",'Détail des projets'!C80) -> Bellemare abrasifs & minéraux | D80: =IF(LEN('Détail des projets'!H80)=0,"",'Détail des projets'!H80) -> 04-Mauricie | E80: =IF(LEN('Détail des projets'!L80)=0,"",'Détail des projets'!L80) -> 67811.3 | F80: 51.6657498 | G80: À la fin du projet (suite au dernier versement) | H80: 52.50000262 | I80: QC-Québec | J80: Oui | K80: 25 | L80: oui | M80: non | N80: Non | O80: Oui | P80: 0 | Q80: 0 | R80: 0 | S80: 0 | T80: 0 | U80: 0
B81: =IF(LEN('Détail des projets'!B81)=0,"",'Détail des projets'!B81) -> Remplacement d'un tamiseur rotatif Laprade diesel par un tamiseur rotatif Laprade électrique | C81: =IF(LEN('Détail des projets'!C81)=0,"",'Détail des projets'!C81) -> Bellemare abrasifs & minéraux | D81: =IF(LEN('Détail des projets'!H81)=0,"",'Détail des projets'!H81) -> 04-Mauricie | E81: =IF(LEN('Détail des projets'!L81)=0,"",'Détail des projets'!L81) -> 75129.15 | F81: 57.2412558 | G81: À la fin du projet (suite au dernier versement) | H81: 52.50000123 | I81: QC-Québec | J81: Oui | K81: 25 | L81: oui | M81: non | N81: Non | O81: Oui | P81: 0 | Q81: 0 | R81: 0 | S81: 0 | T81: 0 | U81: 0
B82: =IF(LEN('Détail des projets'!B82)=0,"",'Détail des projets'!B82) -> Remplacement d'un tamiseur McCloskey diesel par un tamiseur bivi-TEC électrique | C82: =IF(LEN('Détail des projets'!C82)=0,"",'Détail des projets'!C82) -> Bellemare abrasifs & minéraux | D82: =IF(LEN('Détail des projets'!H82)=0,"",'Détail des projets'!H82) -> 04-Mauricie | E82: =IF(LEN('Détail des projets'!L82)=0,"",'Détail des projets'!L82) -> 136112.04 | F82: 103.7044116 | G82: À la fin du projet (suite au dernier versement) | H82: 65.62499989 | I82: QC-Québec | J82: Oui | K82: 20 | L82: oui | M82: non | N82: Non | O82: Oui | P82: 0 | Q82: 0 | R82: 0 | S82: 0 | T82: 0 | U82: 0
B83: =IF(LEN('Détail des projets'!B83)=0,"",'Détail des projets'!B83) -> Remplacement d'un tamiseur Powerscreen diesel par un tamiseur Midwestern électrique | C83: =IF(LEN('Détail des projets'!C83)=0,"",'Détail des projets'!C83) -> Bellemare abrasifs & minéraux | D83: =IF(LEN('Détail des projets'!H83)=0,"",'Détail des projets'!H83) -> 04-Mauricie | E83: =IF(LEN('Détail des projets'!L83)=0,"",'Détail des projets'!L83) -> 43899.08 | F83: 33.446916 | G83: À la fin du projet (suite au dernier versement) | H83: 52.50000329 | I83: QC-Québec | J83: Oui | K83: 25 | L83: oui | M83: non | N83: Non | O83: Oui | P83: 0 | Q83: 0 | R83: 0 | S83: 0 | T83: 0 | U83: 0
B84: =IF(LEN('Détail des projets'!B84)=0,"",'Détail des projets'!B84) -> Remplacement tamiseur rotatif Vermeer diesel par tamiseur rotatif Vermeer électrique | C84: =IF(LEN('Détail des projets'!C84)=0,"",'Détail des projets'!C84) -> Bellemare abrasifs & minéraux | D84: =IF(LEN('Détail des projets'!H84)=0,"",'Détail des projets'!H84) -> 04-Mauricie | E84: =IF(LEN('Détail des projets'!L84)=0,"",'Détail des projets'!L84) -> 215435.9 | F84: 164.141643 | G84: À la fin du projet (suite au dernier versement) | H84: 52.49999843 | I84: QC-Québec | J84: Oui | K84: 25 | L84: oui | M84: non | N84: Non | O84: Oui | P84: 0 | Q84: 0 | R84: 0 | S84: 0 | T84: 0 | U84: 0
B85: =IF(LEN('Détail des projets'!B85)=0,"",'Détail des projets'!B85) -> Récupération de chaleur sur les refroidisseurs | C85: =IF(LEN('Détail des projets'!C85)=0,"",'Détail des projets'!C85) -> GSK Vaccins | D85: =IF(LEN('Détail des projets'!H85)=0,"",'Détail des projets'!H85) -> 03-Capitale-Nationale | E85: =IF(LEN('Détail des projets'!L85)=0,"",'Détail des projets'!L85) -> 548076.5 | F85: 3373.338526 | G85: À la fin du projet (suite au dernier versement) | H85: 6.498920826 | I85: QC-Québec | J85: Oui | K85: 25 | L85: oui | M85: non | N85: Non | O85: Oui | P85: 0 | Q85: 0 | R85: 0 | S85: 0 | T85: 0 | U85: 0
B86: =IF(LEN('Détail des projets'!B86)=0,"",'Détail des projets'!B86) -> Installation d'échangeurs de chaleur | C86: =IF(LEN('Détail des projets'!C86)=0,"",'Détail des projets'!C86) -> Volailles St-Hugues inc. | D86: =IF(LEN('Détail des projets'!H86)=0,"",'Détail des projets'!H86) -> 16-Montérégie | E86: =IF(LEN('Détail des projets'!L86)=0,"",'Détail des projets'!L86) -> 53416.15 | F86: 40.69801472 | G86: À la fin du projet (suite au dernier versement) | H86: 131.250014 | I86: QC-Québec | J86: Oui | K86: 10 | L86: oui | M86: non | N86: Non | O86: Oui | P86: 0 | Q86: 0 | R86: 0 | S86: 0 | T86: 0 | U86: 0
B87: =IF(LEN('Détail des projets'!B87)=0,"",'Détail des projets'!B87) -> Acériculture-Évaporateur électrique | C87: =IF(LEN('Détail des projets'!C87)=0,"",'Détail des projets'!C87) -> B.M. Les Hauteurs inc. | D87: =IF(LEN('Détail des projets'!H87)=0,"",'Détail des projets'!H87) -> 01-Bas-Saint-Laurent | E87: =IF(LEN('Détail des projets'!L87)=0,"",'Détail des projets'!L87) -> 48923.41 | F87: 37.27497802 | G87: À la fin du projet (suite au dernier versement) | H87: 65.6250018 | I87: QC-Québec | J87: Oui | K87: 20 | L87: oui | M87: non | N87: Non | O87: Oui | P87: 0 | Q87: 0 | R87: 0 | S87: 0 | T87: 0 | U87: 0
B88: =IF(LEN('Détail des projets'!B88)=0,"",'Détail des projets'!B88) -> Serre agricole de culture mixte – Efficacité énergétique | C88: =IF(LEN('Détail des projets'!C88)=0,"",'Détail des projets'!C88) -> Coop de travailleurs en serres Belle-de-Jour | D88: =IF(LEN('Détail des projets'!H88)=0,"",'Détail des projets'!H88) -> 02-Saguenay--Lac-Saint-Jean | E88: =IF(LEN('Détail des projets'!L88)=0,"",'Détail des projets'!L88) -> 48309.33 | F88: 38.6474635 | G88: À la fin du projet (suite au dernier versement) | H88: 62.5000008 | I88: QC-Québec | J88: Oui | K88: 20 | L88: oui | M88: non | N88: Non | O88: Oui | P88: 0 | Q88: 0 | R88: 0 | S88: 0 | T88: 0 | U88: 0
B89: =IF(LEN('Détail des projets'!B89)=0,"",'Détail des projets'!B89) -> Électrification d’un deuxième séchoir sur rail | C89: =IF(LEN('Détail des projets'!C89)=0,"",'Détail des projets'!C89) -> Damabois division Cap-Chat inc. | D89: =IF(LEN('Détail des projets'!H89)=0,"",'Détail des projets'!H89) -> 11-Gaspésie--Îles-de-la-Madeleine | E89: =IF(LEN('Détail des projets'!L89)=0,"",'Détail des projets'!L89) -> 1005090.53 | F89: 917.6556734 | G89: À la fin du projet (suite au dernier versement) | H89: 43.8112272 | I89: QC-Québec | J89: Oui | K89: 25 | L89: oui | M89: oui | N89: Non | O89: Oui | P89: 0 | Q89: 0 | R89: 0 | S89: 0 | T89: 0 | U89: 0
B90: =IF(LEN('Détail des projets'!B90)=0,"",'Détail des projets'!B90) -> Acériculture-Évaporateur électrique | C90: =IF(LEN('Détail des projets'!C90)=0,"",'Détail des projets'!C90) -> Les érablières Lalanne inc. | D90: =IF(LEN('Détail des projets'!H90)=0,"",'Détail des projets'!H90) -> 05-Estrie | E90: =IF(LEN('Détail des projets'!L90)=0,"",'Détail des projets'!L90) -> 53345.73 | F90: 40.64436746 | G90: À la fin du projet (suite au dernier versement) | H90: 65.62499719 | I90: QC-Québec | J90: Oui | K90: 20 | L90: oui | M90: non | N90: Non | O90: Oui | P90: 0 | Q90: 0 | R90: 0 | S90: 0 | T90: 0 | U90: 0
B91: =IF(LEN('Détail des projets'!B91)=0,"",'Détail des projets'!B91) -> Électrification du chauffage des unités air make-up | C91: =IF(LEN('Détail des projets'!C91)=0,"",'Détail des projets'!C91) -> Structures CPI inc. | D91: =IF(LEN('Détail des projets'!H91)=0,"",'Détail des projets'!H91) -> 02-Saguenay--Lac-Saint-Jean | E91: =IF(LEN('Détail des projets'!L91)=0,"",'Détail des projets'!L91) -> 463896.91 | F91: 579.9849605 | G91: À la fin du projet (suite au dernier versement) | H91: 31.99371995 | I91: QC-Québec | J91: Oui | K91: 25 | L91: non | M91: oui | N91: Non | O91: Oui | P91: 0 | Q91: 0 | R91: 0 | S91: 0 | T91: 0 | U91: 0
B92: =IF(LEN('Détail des projets'!B92)=0,"",'Détail des projets'!B92) -> Économie d'énergie | C92: =IF(LEN('Détail des projets'!C92)=0,"",'Détail des projets'!C92) -> Quali-T-Groupe ULC | D92: =IF(LEN('Détail des projets'!H92)=0,"",'Détail des projets'!H92) -> 05-Estrie | E92: =IF(LEN('Détail des projets'!L92)=0,"",'Détail des projets'!L92) -> 622769.25 | F92: 570.8678844 | G92: À la fin du projet (suite au dernier versement) | H92: 54.54582987 | I92: QC-Québec | J92: Oui | K92: 20 | L92: oui | M92: non | N92: Non | O92: Oui | P92: 0 | Q92: 0 | R92: 0 | S92: 0 | T92: 0 | U92: 0
B93: =IF(LEN('Détail des projets'!B93)=0,"",'Détail des projets'!B93) -> Conversion à la biomasse résiduelle et implantation d’écrans thermiques en serres | C93: =IF(LEN('Détail des projets'!C93)=0,"",'Détail des projets'!C93) -> 9354-1704 Québec inc. (Les serres Stéphane Bertrand inc.) | D93: =IF(LEN('Détail des projets'!H93)=0,"",'Détail des projets'!H93) -> 14-Lanaudière | E93: =IF(LEN('Détail des projets'!L93)=0,"",'Détail des projets'!L93) -> 2263558.52 | F93: 4527.117048 | G93: À la fin du projet (suite au dernier versement) | H93: 25 | I93: QC-Québec | J93: Oui | K93: 20 | L93: oui | M93: oui | N93: Non | O93: Oui | P93: 0 | Q93: 0 | R93: 0 | S93: 0 | T93: 0 | U93: 0
B94: =IF(LEN('Détail des projets'!B94)=0,"",'Détail des projets'!B94) -> Rideaux d'air | C94: =IF(LEN('Détail des projets'!C94)=0,"",'Détail des projets'!C94) -> Industries Machinex inc. | D94: =IF(LEN('Détail des projets'!H94)=0,"",'Détail des projets'!H94) -> 17-Centre-du-Québec | E94: =IF(LEN('Détail des projets'!L94)=0,"",'Détail des projets'!L94) -> 58770.87 | F94: 47.01669814 | G94: À la fin du projet (suite au dernier versement) | H94: 83.33332953 | I94: QC-Québec | J94: Oui | K94: 15 | L94: oui | M94: non | N94: Non | O94: Oui | P94: 0 | Q94: 0 | R94: 0 | S94: 0 | T94: 0 | U94: 0
B95: =IF(LEN('Détail des projets'!B95)=0,"",'Détail des projets'!B95) -> Acériculture-Évaporateur électrique | C95: =IF(LEN('Détail des projets'!C95)=0,"",'Détail des projets'!C95) -> Ferme Pascal Binette inc. | D95: =IF(LEN('Détail des projets'!H95)=0,"",'Détail des projets'!H95) -> 17-Centre-du-Québec | E95: =IF(LEN('Détail des projets'!L95)=0,"",'Détail des projets'!L95) -> 65784.36 | F95: 52.62749168 | G95: À la fin du projet (suite au dernier versement) | H95: 62.49999563 | I95: QC-Québec | J95: Oui | K95: 20 | L95: oui | M95: non | N95: Non | O95: Oui | P95: 0 | Q95: 0 | R95: 0 | S95: 0 | T95: 0 | U95: 0
B96: =IF(LEN('Détail des projets'!B96)=0,"",'Détail des projets'!B96) -> Optimisation énergétique des bassins de galvanisation | C96: =IF(LEN('Détail des projets'!C96)=0,"",'Détail des projets'!C96) -> ArcelorMittal Produits longs Canada s.e.n.c. | D96: =IF(LEN('Détail des projets'!H96)=0,"",'Détail des projets'!H96) -> 06-Montréal | E96: =IF(LEN('Détail des projets'!L96)=0,"",'Détail des projets'!L96) -> 202239.05 | F96: 481.5215418 | G96: À la fin du projet (suite au dernier versement) | H96: 16.8000002 | I96: QC-Québec | J96: Oui | K96: 25 | L96: oui | M96: non | N96: Non | O96: Oui | P96: 0 | Q96: 0 | R96: 0 | S96: 0 | T96: 0 | U96: 0
B97: =IF(LEN('Détail des projets'!B97)=0,"",'Détail des projets'!B97) -> Implantation d'une unité de traitement d'air efficace | C97: =IF(LEN('Détail des projets'!C97)=0,"",'Détail des projets'!C97) -> Agropod Limitée | D97: =IF(LEN('Détail des projets'!H97)=0,"",'Détail des projets'!H97) -> 16-Montérégie | E97: =IF(LEN('Détail des projets'!L97)=0,"",'Détail des projets'!L97) -> 1771200 | F97: 1564.715977 | G97: À la fin du projet (suite au dernier versement) | H97: 56.5981311 | I97: QC-Québec | J97: Oui | K97: 20 | L97: oui | M97: non | N97: Non | O97: Oui | P97: 0 | Q97: 0 | R97: 0 | S97: 0 | T97: 0 | U97: 0
B98: =IF(LEN('Détail des projets'!B98)=0,"",'Détail des projets'!B98) -> Construction d'une nouvelle usine pour les produits pour la peau à base de lait de chèvre | C98: =IF(LEN('Détail des projets'!C98)=0,"",'Détail des projets'!C98) -> Bopack inc. | D98: =IF(LEN('Détail des projets'!H98)=0,"",'Détail des projets'!H98) -> 17-Centre-du-Québec | E98: =IF(LEN('Détail des projets'!L98)=0,"",'Détail des projets'!L98) -> 54350 | F98: 52.20433857 | G98: À la fin du projet (suite au dernier versement) | H98: 52.05506045 | I98: QC-Québec | J98: Oui | K98: 20 | L98: oui | M98: non | N98: Non | O98: Oui | P98: 0 | Q98: 0 | R98: 0 | S98: 0 | T98: 0 | U98: 0
B99: =IF(LEN('Détail des projets'!B99)=0,"",'Détail des projets'!B99) -> Conversion électrique de chariots élévateurs | C99: =IF(LEN('Détail des projets'!C99)=0,"",'Détail des projets'!C99) -> Boa-Franc, S.E.N.C. | D99: =IF(LEN('Détail des projets'!H99)=0,"",'Détail des projets'!H99) -> 12-Chaudière-Appalaches | E99: =IF(LEN('Détail des projets'!L99)=0,"",'Détail des projets'!L99) -> 117115.79 | F99: 89.23107725 | G99: À la fin du projet (suite au dernier versement) | H99: 87.50000083 | I99: QC-Québec | J99: Oui | K99: 15 | L99: non | M99: oui | N99: Non | O99: Oui | P99: 0 | Q99: 0 | R99: 0 | S99: 0 | T99: 0 | U99: 0
B100: =IF(LEN('Détail des projets'!B100)=0,"",'Détail des projets'!B100) -> Remplacement de chariots élévateurs | C100: =IF(LEN('Détail des projets'!C100)=0,"",'Détail des projets'!C100) -> Boa-Franc, S.E.N.C. | D100: =IF(LEN('Détail des projets'!H100)=0,"",'Détail des projets'!H100) -> 12-Chaudière-Appalaches | E100: =IF(LEN('Détail des projets'!L100)=0,"",'Détail des projets'!L100) -> 158272.82 | F100: 150.7360203 | G100: À la fin du projet (suite au dernier versement) | H100: 52.49999957 | I100: QC-Québec | J100: Oui | K100: 20 | L100: non | M100: oui | N100: Non | O100: Oui | P100: 0 | Q100: 0 | R100: 0 | S100: 0 | T100: 0 | U100: 0
B101: =IF(LEN('Détail des projets'!B101)=0,"",'Détail des projets'!B101) -> Mur solaire | C101: =IF(LEN('Détail des projets'!C101)=0,"",'Détail des projets'!C101) -> Boa-Franc, S.E.N.C. | D101: =IF(LEN('Détail des projets'!H101)=0,"",'Détail des projets'!H101) -> 12-Chaudière-Appalaches | E101: =IF(LEN('Détail des projets'!L101)=0,"",'Détail des projets'!L101) -> 53448 | F101: 55.78406232 | G101: À la fin du projet (suite au dernier versement) | H101: 38.32492492 | I101: QC-Québec | J101: Oui | K101: 25 | L101: oui | M101: non | N101: Non | O101: Oui | P101: 0 | Q101: 0 | R101: 0 | S101: 0 | T101: 0 | U101: 0
B102: =IF(LEN('Détail des projets'!B102)=0,"",'Détail des projets'!B102) -> Mur solaire | C102: =IF(LEN('Détail des projets'!C102)=0,"",'Détail des projets'!C102) -> Soprema inc. | D102: =IF(LEN('Détail des projets'!H102)=0,"",'Détail des projets'!H102) -> 17-Centre-du-Québec | E102: =IF(LEN('Détail des projets'!L102)=0,"",'Détail des projets'!L102) -> 12449 | F102: 49.66644416 | G102: À la fin du projet (suite au dernier versement) | H102: 10.02608519 | I102: QC-Québec | J102: Oui | K102: 25 | L102: oui | M102: non | N102: Non | O102: Oui | P102: 0 | Q102: 0 | R102: 0 | S102: 0 | T102: 0 | U102: 0
B103: =IF(LEN('Détail des projets'!B103)=0,"",'Détail des projets'!B103) -> Construction d'une usine de cannabis | C103: =IF(LEN('Détail des projets'!C103)=0,"",'Détail des projets'!C103) -> Ono Cannabis inc. | D103: =IF(LEN('Détail des projets'!H103)=0,"",'Détail des projets'!H103) -> 12-Chaudière-Appalaches | E103: =IF(LEN('Détail des projets'!L103)=0,"",'Détail des projets'!L103) -> 887251.34 | F103: 1893.6379 | G103: À la fin du projet (suite au dernier versement) | H103: 18.74173178 | I103: QC-Québec | J103: Oui | K103: 25 | L103: oui | M103: non | N103: Non | O103: Oui | P103: 0 | Q103: 0 | R103: 0 | S103: 0 | T103: 0 | U103: 0
B104: =IF(LEN('Détail des projets'!B104)=0,"",'Détail des projets'!B104) -> Mur solaire | C104: =IF(LEN('Détail des projets'!C104)=0,"",'Détail des projets'!C104) -> Soprema inc. | D104: =IF(LEN('Détail des projets'!H104)=0,"",'Détail des projets'!H104) -> 14-Lanaudière | E104: =IF(LEN('Détail des projets'!L104)=0,"",'Détail des projets'!L104) -> 31192.56 | F104: 23.76575628 | G104: À la fin du projet (suite au dernier versement) | H104: 52.50000822 | I104: QC-Québec | J104: Oui | K104: 25 | L104: oui | M104: non | N104: Non | O104: Oui | P104: 0 | Q104: 0 | R104: 0 | S104: 0 | T104: 0 | U104: 0
B105: =IF(LEN('Détail des projets'!B105)=0,"",'Détail des projets'!B105) -> Réduction des GES par la technique de l'osmose inverse | C105: =IF(LEN('Détail des projets'!C105)=0,"",'Détail des projets'!C105) -> Fromagerie Boivin | D105: =IF(LEN('Détail des projets'!H105)=0,"",'Détail des projets'!H105) -> 02-Saguenay--Lac-Saint-Jean | E105: =IF(LEN('Détail des projets'!L105)=0,"",'Détail des projets'!L105) -> 604273.25 | F105: 2220.972465 | G105: À la fin du projet (suite au dernier versement) | H105: 27.20759756 | I105: QC-Québec | J105: Oui | K105: 10 | L105: oui | M105: non | N105: Non | O105: Oui | P105: 0 | Q105: 0 | R105: 0 | S105: 0 | T105: 0 | U105: 0
B106: =IF(LEN('Détail des projets'!B106)=0,"",'Détail des projets'!B106) -> Ajout d'échangeurs de chaleur dans des bâtiments d'élevage de volailles | C106: =IF(LEN('Détail des projets'!C106)=0,"",'Détail des projets'!C106) -> Ferme Avicole MGF inc. | D106: =IF(LEN('Détail des projets'!H106)=0,"",'Détail des projets'!H106) -> 16-Montérégie | E106: =IF(LEN('Détail des projets'!L106)=0,"",'Détail des projets'!L106) -> 184145.84 | F106: 140.3015937 | G106: À la fin du projet (suite au dernier versement) | H106: 65.62499939 | I106: QC-Québec | J106: Oui | K106: 20 | L106: oui | M106: non | N106: Non | O106: Oui | P106: 0 | Q106: 0 | R106: 0 | S106: 0 | T106: 0 | U106: 0
B107: =IF(LEN('Détail des projets'!B107)=0,"",'Détail des projets'!B107) -> Alimentation de l'usine en vapeur à faibles émissions de GES - Projet révisé | C107: =IF(LEN('Détail des projets'!C107)=0,"",'Détail des projets'!C107) -> Produits Kruger Sherbrooke Inc. | D107: =IF(LEN('Détail des projets'!H107)=0,"",'Détail des projets'!H107) -> 05-Estrie | E107: =IF(LEN('Détail des projets'!L107)=0,"",'Détail des projets'!L107) -> 5000000 | F107: 13909.35078 | G107: À la fin du projet (suite au dernier versement) | H107: 14.37881632 | I107: QC-Québec | J107: Oui | K107: 25 | L107: oui | M107: non | N107: Non | O107: Oui | P107: 0 | Q107: 0 | R107: 0 | S107: 0 | T107: 0 | U107: 0
B108: =IF(LEN('Détail des projets'!B108)=0,"",'Détail des projets'!B108) -> Économie d'énergie | C108: =IF(LEN('Détail des projets'!C108)=0,"",'Détail des projets'!C108) -> ABB Électrification Canada SRI | D108: =IF(LEN('Détail des projets'!H108)=0,"",'Détail des projets'!H108) -> 06-Montréal | E108: =IF(LEN('Détail des projets'!L108)=0,"",'Détail des projets'!L108) -> 379443.31 | F108: 337.1112612 | G108: À la fin du projet (suite au dernier versement) | H108: 51.66762658 | I108: QC-Québec | J108: Oui | K108: 21.78487778 | L108: oui | M108: non | N108: Non | O108: Oui | P108: 0 | Q108: 0 | R108: 0 | S108: 0 | T108: 0 | U108: 0
B109: =IF(LEN('Détail des projets'!B109)=0,"",'Détail des projets'!B109) -> Alimentation au procédé et cascade | C109: =IF(LEN('Détail des projets'!C109)=0,"",'Détail des projets'!C109) -> ABB Électrification Canada SRI | D109: =IF(LEN('Détail des projets'!H109)=0,"",'Détail des projets'!H109) -> 06-Montréal | E109: =IF(LEN('Détail des projets'!L109)=0,"",'Détail des projets'!L109) -> 97459.58 | F109: 111.4996329 | G109: À la fin du projet (suite au dernier versement) | H109: 40.56697734 | I109: QC-Québec | J109: Oui | K109: 21.54658508 | L109: oui | M109: non | N109: Non | O109: Oui | P109: 0 | Q109: 0 | R109: 0 | S109: 0 | T109: 0 | U109: 0
B110: =IF(LEN('Détail des projets'!B110)=0,"",'Détail des projets'!B110) -> Ajout d'échangeurs de chaleur dans des bâtiments d'élevage de volailles | C110: =IF(LEN('Détail des projets'!C110)=0,"",'Détail des projets'!C110) -> Les Élevages Avico inc. | D110: =IF(LEN('Détail des projets'!H110)=0,"",'Détail des projets'!H110) -> 16-Montérégie | E110: =IF(LEN('Détail des projets'!L110)=0,"",'Détail des projets'!L110) -> 114267.07 | F110: 87.0606255 | G110: À la fin du projet (suite au dernier versement) | H110: 65.62499944 | I110: QC-Québec | J110: Oui | K110: 20 | L110: oui | M110: non | N110: Non | O110: Oui | P110: 0 | Q110: 0 | R110: 0 | S110: 0 | T110: 0 | U110: 0
B111: =IF(LEN('Détail des projets'!B111)=0,"",'Détail des projets'!B111) -> Ajout d'échangeurs de chaleur dans des bâtiments d'élevage de volailles | C111: =IF(LEN('Détail des projets'!C111)=0,"",'Détail des projets'!C111) -> Ferme Gilles Brodeur inc. | D111: =IF(LEN('Détail des projets'!H111)=0,"",'Détail des projets'!H111) -> 05-Estrie | E111: =IF(LEN('Détail des projets'!L111)=0,"",'Détail des projets'!L111) -> 189318.26 | F111: 164.2598498 | G111: À la fin du projet (suite au dernier versement) | H111: 57.62767354 | I111: QC-Québec | J111: Oui | K111: 20 | L111: oui | M111: non | N111: Non | O111: Oui | P111: 0 | Q111: 0 | R111: 0 | S111: 0 | T111: 0 | U111: 0
B112: =IF(LEN('Détail des projets'!B112)=0,"",'Détail des projets'!B112) -> Remplacement d'une génératrice au diesel pour la production de granulats par une entrée électrique | C112: =IF(LEN('Détail des projets'!C112)=0,"",'Détail des projets'!C112) -> Pavage Sartigan ltée | D112: =IF(LEN('Détail des projets'!H112)=0,"",'Détail des projets'!H112) -> 12-Chaudière-Appalaches | E112: =IF(LEN('Détail des projets'!L112)=0,"",'Détail des projets'!L112) -> 514310.84 | F112: 570.3503514 | G112: À la fin du projet (suite au dernier versement) | H112: 30.058182 | I112: QC-Québec | J112: Oui | K112: 30 | L112: non | M112: oui | N112: Non | O112: Oui | P112: 0 | Q112: 0 | R112: 0 | S112: 0 | T112: 0 | U112: 0
B113: =IF(LEN('Détail des projets'!B113)=0,"",'Détail des projets'!B113) -> Conversion électrique des systèmes de pompage (diesel) pour l'irrigation des petits fruits | C113: =IF(LEN('Détail des projets'!C113)=0,"",'Détail des projets'!C113) -> Les Fraises de l'Île d'Orléans inc. | D113: =IF(LEN('Détail des projets'!H113)=0,"",'Détail des projets'!H113) -> 03-Capitale-Nationale | E113: =IF(LEN('Détail des projets'!L113)=0,"",'Détail des projets'!L113) -> 17878.69 | F113: 14.3029488 | G113: À la fin du projet (suite au dernier versement) | H113: 50.00001118 | I113: QC-Québec | J113: Oui | K113: 25 | L113: oui | M113: non | N113: Non | O113: Oui | P113: 0 | Q113: 0 | R113: 0 | S113: 0 | T113: 0 | U113: 0
B114: =IF(LEN('Détail des projets'!B114)=0,"",'Détail des projets'!B114) -> Acériculture-Évaporateur électrique | C114: =IF(LEN('Détail des projets'!C114)=0,"",'Détail des projets'!C114) -> Érablière Mont Yamaska 2009 inc. | D114: =IF(LEN('Détail des projets'!H114)=0,"",'Détail des projets'!H114) -> 16-Montérégie | E114: =IF(LEN('Détail des projets'!L114)=0,"",'Détail des projets'!L114) -> 67299.72 | F114: 53.83977628 | G114: À la fin du projet (suite au dernier versement) | H114: 62.49999967 | I114: QC-Québec | J114: Oui | K114: 20 | L114: oui | M114: non | N114: Non | O114: Oui | P114: 0 | Q114: 0 | R114: 0 | S114: 0 | T114: 0 | U114: 0
B115: =IF(LEN('Détail des projets'!B115)=0,"",'Détail des projets'!B115) -> Serre agricole de culture mixte – Efficacité énergétique - Écrans thermiques | C115: =IF(LEN('Détail des projets'!C115)=0,"",'Détail des projets'!C115) -> Maurice Bélanger paysagiste inc. | D115: =IF(LEN('Détail des projets'!H115)=0,"",'Détail des projets'!H115) -> 01-Bas-Saint-Laurent | E115: =IF(LEN('Détail des projets'!L115)=0,"",'Détail des projets'!L115) -> 17954.22 | F115: 14.36337857 | G115: À la fin du projet (suite au dernier versement) | H115: 62.49998883 | I115: QC-Québec | J115: Oui | K115: 20 | L115: oui | M115: non | N115: Non | O115: Oui | P115: 0 | Q115: 0 | R115: 0 | S115: 0 | T115: 0 | U115: 0
B116: =IF(LEN('Détail des projets'!B116)=0,"",'Détail des projets'!B116) -> Mur solaire | C116: =IF(LEN('Détail des projets'!C116)=0,"",'Détail des projets'!C116) -> Acier Rayco (2016) inc. | D116: =IF(LEN('Détail des projets'!H116)=0,"",'Détail des projets'!H116) -> 04-Mauricie | E116: =IF(LEN('Détail des projets'!L116)=0,"",'Détail des projets'!L116) -> 16609.18 | F116: 13.28734385 | G116: À la fin du projet (suite au dernier versement) | H116: 50.00000057 | I116: QC-Québec | J116: Oui | K116: 25 | L116: oui | M116: non | N116: Non | O116: Oui | P116: 0 | Q116: 0 | R116: 0 | S116: 0 | T116: 0 | U116: 0
B117: =IF(LEN('Détail des projets'!B117)=0,"",'Détail des projets'!B117) -> Serre-Conversion chauffage-CII- électrique | C117: =IF(LEN('Détail des projets'!C117)=0,"",'Détail des projets'!C117) -> La Boîte à Légumes Inc. | D117: =IF(LEN('Détail des projets'!H117)=0,"",'Détail des projets'!H117) -> 05-Estrie | E117: =IF(LEN('Détail des projets'!L117)=0,"",'Détail des projets'!L117) -> 53010 | F117: 98.88606747 | G117: À la fin du projet (suite au dernier versement) | H117: 26.80357373 | I117: QC-Québec | J117: Oui | K117: 20 | L117: oui | M117: non | N117: Non | O117: Oui | P117: 0 | Q117: 0 | R117: 0 | S117: 0 | T117: 0 | U117: 0
B118: =IF(LEN('Détail des projets'!B118)=0,"",'Détail des projets'!B118) -> Installation d'un Flu-Ace et de trappes à vapeur Venturi | C118: =IF(LEN('Détail des projets'!C118)=0,"",'Détail des projets'!C118) -> Société en commandite Stadacona WB | D118: =IF(LEN('Détail des projets'!H118)=0,"",'Détail des projets'!H118) -> 03-Capitale-Nationale | E118: =IF(LEN('Détail des projets'!L118)=0,"",'Détail des projets'!L118) -> 3700585.55 | F118: 8556.405317 | G118: À la fin du projet (suite au dernier versement) | H118: 15.85294696 | I118: QC-Québec | J118: Oui | K118: 27.28155327 | L118: oui | M118: non | N118: Non | O118: Oui | P118: 0 | Q118: 0 | R118: 0 | S118: 0 | T118: 0 | U118: 0
B119: =IF(LEN('Détail des projets'!B119)=0,"",'Détail des projets'!B119) -> Optimisation du réseau de vapeur et remplacement de la turbine à vapeur | C119: =IF(LEN('Détail des projets'!C119)=0,"",'Détail des projets'!C119) -> Société en commandite Stadacona WB | D119: =IF(LEN('Détail des projets'!H119)=0,"",'Détail des projets'!H119) -> 03-Capitale-Nationale | E119: =IF(LEN('Détail des projets'!L119)=0,"",'Détail des projets'!L119) -> 905941 | F119: 3768.614472 | G119: À la fin du projet (suite au dernier versement) | H119: 16.02606664 | I119: QC-Québec | J119: Oui | K119: 15 | L119: oui | M119: oui | N119: Non | O119: Oui | P119: 0 | Q119: 0 | R119: 0 | S119: 0 | T119: 0 | U119: 0
B120: =IF(LEN('Détail des projets'!B120)=0,"",'Détail des projets'!B120) -> Économie d'énergie | C120: =IF(LEN('Détail des projets'!C120)=0,"",'Détail des projets'!C120) -> Manac inc. | D120: =IF(LEN('Détail des projets'!H120)=0,"",'Détail des projets'!H120) -> 12-Chaudière-Appalaches | E120: =IF(LEN('Détail des projets'!L120)=0,"",'Détail des projets'!L120) -> 285344.63 | F120: 245.208504 | G120: À la fin du projet (suite au dernier versement) | H120: 48.72249973 | I120: QC-Québec | J120: Oui | K120: 23.88386536 | L120: oui | M120: non | N120: Non | O120: Oui | P120: 0 | Q120: 0 | R120: 0 | S120: 0 | T120: 0 | U120: 0
B121: =IF(LEN('Détail des projets'!B121)=0,"",'Détail des projets'!B121) -> Économie d'énergie | C121: =IF(LEN('Détail des projets'!C121)=0,"",'Détail des projets'!C121) -> Manac inc. | D121: =IF(LEN('Détail des projets'!H121)=0,"",'Détail des projets'!H121) -> 12-Chaudière-Appalaches | E121: =IF(LEN('Détail des projets'!L121)=0,"",'Détail des projets'!L121) -> 291880.49 | F121: 239.0652956 | G121: À la fin du projet (suite au dernier versement) | H121: 48.83694879 | I121: QC-Québec | J121: Oui | K121: 25 | L121: oui | M121: non | N121: Non | O121: Oui | P121: 0 | Q121: 0 | R121: 0 | S121: 0 | T121: 0 | U121: 0
B122: =IF(LEN('Détail des projets'!B122)=0,"",'Détail des projets'!B122) -> Serre-Conversion chauffage-CII- électrique | C122: =IF(LEN('Détail des projets'!C122)=0,"",'Détail des projets'!C122) -> Ferme Cabru inc. | D122: =IF(LEN('Détail des projets'!H122)=0,"",'Détail des projets'!H122) -> 16-Montérégie | E122: =IF(LEN('Détail des projets'!L122)=0,"",'Détail des projets'!L122) -> 51212.91 | F122: 39.74756787 | G122: À la fin du projet (suite au dernier versement) | H122: 64.42269646 | I122: QC-Québec | J122: Oui | K122: 20 | L122: oui | M122: non | N122: Non | O122: Oui | P122: 0 | Q122: 0 | R122: 0 | S122: 0 | T122: 0 | U122: 0
B123: =IF(LEN('Détail des projets'!B123)=0,"",'Détail des projets'!B123) -> Construction Agropod Verchères | C123: =IF(LEN('Détail des projets'!C123)=0,"",'Détail des projets'!C123) -> Agropod Services inc. | D123: =IF(LEN('Détail des projets'!H123)=0,"",'Détail des projets'!H123) -> 16-Montérégie | E123: =IF(LEN('Détail des projets'!L123)=0,"",'Détail des projets'!L123) -> 1913913 | F123: 1565.904838 | G123: À la fin du projet (suite au dernier versement) | H123: 61.11204697 | I123: QC-Québec | J123: Oui | K123: 20 | L123: oui | M123: non | N123: Non | O123: Oui | P123: 0 | Q123: 0 | R123: 0 | S123: 0 | T123: 0 | U123: 0
B124: =IF(LEN('Détail des projets'!B124)=0,"",'Détail des projets'!B124) -> Conversion du chauffage à la géothermie | C124: =IF(LEN('Détail des projets'!C124)=0,"",'Détail des projets'!C124) -> Les Jardins de l'Écoumène inc. | D124: =IF(LEN('Détail des projets'!H124)=0,"",'Détail des projets'!H124) -> 14-Lanaudière | E124: =IF(LEN('Détail des projets'!L124)=0,"",'Détail des projets'!L124) -> 28821.39 | F124: 28.42077094 | G124: À la fin du projet (suite au dernier versement) | H124: 40.56383982 | I124: QC-Québec | J124: Oui | K124: 25 | L124: non | M124: oui | N124: Non | O124: Oui | P124: 0 | Q124: 0 | R124: 0 | S124: 0 | T124: 0 | U124: 0
B125: =IF(LEN('Détail des projets'!B125)=0,"",'Détail des projets'!B125) -> Chauffage solaire sur l'agrandissement de l'usine Matritech | C125: =IF(LEN('Détail des projets'!C125)=0,"",'Détail des projets'!C125) -> Gestion immeubles Cardin inc. | D125: =IF(LEN('Détail des projets'!H125)=0,"",'Détail des projets'!H125) -> 17-Centre-du-Québec | E125: =IF(LEN('Détail des projets'!L125)=0,"",'Détail des projets'!L125) -> 134107.39 | F125: 107.2859133 | G125: À la fin du projet (suite au dernier versement) | H125: 49.99999938 | I125: QC-Québec | J125: Oui | K125: 25 | L125: oui | M125: non | N125: Non | O125: Oui | P125: 0 | Q125: 0 | R125: 0 | S125: 0 | T125: 0 | U125: 0
B126: =IF(LEN('Détail des projets'!B126)=0,"",'Détail des projets'!B126) -> Serre-Conversion chauffage-CII- électrique | C126: =IF(LEN('Détail des projets'!C126)=0,"",'Détail des projets'!C126) -> La cigale et la fourmi! | D126: =IF(LEN('Détail des projets'!H126)=0,"",'Détail des projets'!H126) -> 11-Gaspésie--Îles-de-la-Madeleine | E126: =IF(LEN('Détail des projets'!L126)=0,"",'Détail des projets'!L126) -> 16948.46 | F126: 54.60361347 | G126: À la fin du projet (suite au dernier versement) | H126: 15.51954067 | I126: QC-Québec | J126: Oui | K126: 20 | L126: oui | M126: non | N126: Non | O126: Oui | P126: 0 | Q126: 0 | R126: 0 | S126: 0 | T126: 0 | U126: 0
B127: =IF(LEN('Détail des projets'!B127)=0,"",'Détail des projets'!B127) -> Boucle de récupération de chaleur au glycol pour chauffage et préchauffage divers | C127: =IF(LEN('Détail des projets'!C127)=0,"",'Détail des projets'!C127) -> 9416-8382 Québec inc. | D127: =IF(LEN('Détail des projets'!H127)=0,"",'Détail des projets'!H127) -> 05-Estrie | E127: =IF(LEN('Détail des projets'!L127)=0,"",'Détail des projets'!L127) -> 1063486.74 | F127: 2126.973482 | G127: À la fin du projet (suite au dernier versement) | H127: 25.01 | I127: QC-Québec | J127: Oui | K127: 20 | L127: oui | M127: non | N127: Non | O127: Oui | P127: 0 | Q127: 0 | R127: 0 | S127: 0 | T127: 0 | U127: 0
B128: =IF(LEN('Détail des projets'!B128)=0,"",'Détail des projets'!B128) -> Remplacement de deux séchoirs à grains | C128: =IF(LEN('Détail des projets'!C128)=0,"",'Détail des projets'!C128) -> Ferme du Cordon inc. | D128: =IF(LEN('Détail des projets'!H128)=0,"",'Détail des projets'!H128) -> 17-Centre-du-Québec | E128: =IF(LEN('Détail des projets'!L128)=0,"",'Détail des projets'!L128) -> 42130.1 | F128: 33.70407606 | G128: À la fin du projet (suite au dernier versement) | H128: 50.00000584 | I128: QC-Québec | J128: Oui | K128: 25 | L128: oui | M128: non | N128: Non | O128: Oui | P128: 0 | Q128: 0 | R128: 0 | S128: 0 | T128: 0 | U128: 0
B129: =IF(LEN('Détail des projets'!B129)=0,"",'Détail des projets'!B129) -> Plan de séchage de grains | C129: =IF(LEN('Détail des projets'!C129)=0,"",'Détail des projets'!C129) -> Ferme Maquille inc. | D129: =IF(LEN('Détail des projets'!H129)=0,"",'Détail des projets'!H129) -> 17-Centre-du-Québec | E129: =IF(LEN('Détail des projets'!L129)=0,"",'Détail des projets'!L129) -> 92061.3 | F129: 73.6490367 | G129: À la fin du projet (suite au dernier versement) | H129: 50.00000224 | I129: QC-Québec | J129: Oui | K129: 25 | L129: oui | M129: non | N129: Non | O129: Oui | P129: 0 | Q129: 0 | R129: 0 | S129: 0 | T129: 0 | U129: 0
B130: =IF(LEN('Détail des projets'!B130)=0,"",'Détail des projets'!B130) -> Implantation de deux séchoirs fixes électriques | C130: =IF(LEN('Détail des projets'!C130)=0,"",'Détail des projets'!C130) -> Normand Sioui | D130: =IF(LEN('Détail des projets'!H130)=0,"",'Détail des projets'!H130) -> 03-Capitale-Nationale | E130: =IF(LEN('Détail des projets'!L130)=0,"",'Détail des projets'!L130) -> 688530.71 | F130: 550.8245658 | G130: À la fin du projet (suite au dernier versement) | H130: 50.0000002 | I130: QC-Québec | J130: Oui | K130: 25 | L130: non | M130: oui | N130: Non | O130: Oui | P130: 0 | Q130: 0 | R130: 0 | S130: 0 | T130: 0 | U130: 0
B131: =IF(LEN('Détail des projets'!B131)=0,"",'Détail des projets'!B131) -> Cannasher - Récupération de chaleur du procédé | C131: =IF(LEN('Détail des projets'!C131)=0,"",'Détail des projets'!C131) -> TPC3 investissements inc. | D131: =IF(LEN('Détail des projets'!H131)=0,"",'Détail des projets'!H131) -> 05-Estrie | E131: =IF(LEN('Détail des projets'!L131)=0,"",'Détail des projets'!L131) -> 2193140.6 | F131: 1754.512478 | G131: À la fin du projet (suite au dernier versement) | H131: 50.00000006 | I131: QC-Québec | J131: Oui | K131: 25 | L131: oui | M131: non | N131: Non | O131: Oui | P131: 0 | Q131: 0 | R131: 0 | S131: 0 | T131: 0 | U131: 0
B132: =IF(LEN('Détail des projets'!B132)=0,"",'Détail des projets'!B132) -> Conversion électrique des systèmes de pompage (diesel) pour l'irrigation des petits fruits | C132: =IF(LEN('Détail des projets'!C132)=0,"",'Détail des projets'!C132) -> Les Fraises de l'Île d'Orléans inc. | D132: =IF(LEN('Détail des projets'!H132)=0,"",'Détail des projets'!H132) -> 03-Capitale-Nationale | E132: =IF(LEN('Détail des projets'!L132)=0,"",'Détail des projets'!L132) -> 20326.53 | F132: 16.26122548 | G132: À la fin du projet (suite au dernier versement) | H132: 49.99999544 | I132: QC-Québec | J132: Oui | K132: 25 | L132: oui | M132: non | N132: Non | O132: Oui | P132: 0 | Q132: 0 | R132: 0 | S132: 0 | T132: 0 | U132: 0
B133: =IF(LEN('Détail des projets'!B133)=0,"",'Détail des projets'!B133) -> Ajout d'une chaudière électrique de 1250 kW pour utilisation hors-pointe | C133: =IF(LEN('Détail des projets'!C133)=0,"",'Détail des projets'!C133) -> Bernard Breton inc. | D133: =IF(LEN('Détail des projets'!H133)=0,"",'Détail des projets'!H133) -> 12-Chaudière-Appalaches | E133: =IF(LEN('Détail des projets'!L133)=0,"",'Détail des projets'!L133) -> 394770 | F133: 384.041149 | G133: À la fin du projet (suite au dernier versement) | H133: 41.1174689 | I133: QC-Québec | J133: Oui | K133: 25 | L133: non | M133: oui | N133: Non | O133: Oui | P133: 0 | Q133: 0 | R133: 0 | S133: 0 | T133: 0 | U133: 0
B134: =IF(LEN('Détail des projets'!B134)=0,"",'Détail des projets'!B134) -> Construction d'un complexe de serres et implantation de mesures d’efficacité énergétique | C134: =IF(LEN('Détail des projets'!C134)=0,"",'Détail des projets'!C134) -> Marie-Josée Daguerre, Louis Vaillancourt S.E.N.C. | D134: =IF(LEN('Détail des projets'!H134)=0,"",'Détail des projets'!H134) -> 15-Laurentides | E134: =IF(LEN('Détail des projets'!L134)=0,"",'Détail des projets'!L134) -> 633125 | F134: 582.1897804 | G134: À la fin du projet (suite au dernier versement) | H134: 58.82078418 | I134: QC-Québec | J134: Oui | K134: 18.48817635 | L134: oui | M134: oui | N134: Non | O134: Oui | P134: 0 | Q134: 0 | R134: 0 | S134: 0 | T134: 0 | U134: 0
B135: =IF(LEN('Détail des projets'!B135)=0,"",'Détail des projets'!B135) -> Acériculture-Évaporateur électrique | C135: =IF(LEN('Détail des projets'!C135)=0,"",'Détail des projets'!C135) -> Érablière Maxime Caron inc. | D135: =IF(LEN('Détail des projets'!H135)=0,"",'Détail des projets'!H135) -> 12-Chaudière-Appalaches | E135: =IF(LEN('Détail des projets'!L135)=0,"",'Détail des projets'!L135) -> 69176.06 | F135: 55.34084977 | G135: À la fin du projet (suite au dernier versement) | H135: 62.499998 | I135: QC-Québec | J135: Oui | K135: 20 | L135: oui | M135: non | N135: Non | O135: Oui | P135: 0 | Q135: 0 | R135: 0 | S135: 0 | T135: 0 | U135: 0
B136: =IF(LEN('Détail des projets'!B136)=0,"",'Détail des projets'!B136) -> Remplacement du brûleur Hauck | C136: =IF(LEN('Détail des projets'!C136)=0,"",'Détail des projets'!C136) -> Les Pavages des Monts | D136: =IF(LEN('Détail des projets'!H136)=0,"",'Détail des projets'!H136) -> 01-Bas-Saint-Laurent | E136: =IF(LEN('Détail des projets'!L136)=0,"",'Détail des projets'!L136) -> 58557.69 | F136: 46.84615404 | G136: À la fin du projet (suite au dernier versement) | H136: 62.49999728 | I136: QC-Québec | J136: Oui | K136: 20 | L136: oui | M136: non | N136: Non | O136: Oui | P136: 0 | Q136: 0 | R136: 0 | S136: 0 | T136: 0 | U136: 0
B137: =IF(LEN('Détail des projets'!B137)=0,"",'Détail des projets'!B137) -> Installation d'un nouveau séchoir à grains | C137: =IF(LEN('Détail des projets'!C137)=0,"",'Détail des projets'!C137) -> R.S. Jeanson & Fils inc. | D137: =IF(LEN('Détail des projets'!H137)=0,"",'Détail des projets'!H137) -> 16-Montérégie | E137: =IF(LEN('Détail des projets'!L137)=0,"",'Détail des projets'!L137) -> 109195.08 | F137: 87.35606428 | G137: À la fin du projet (suite au dernier versement) | H137: 49.99999984 | I137: QC-Québec | J137: Oui | K137: 25 | L137: oui | M137: non | N137: Non | O137: Oui | P137: 0 | Q137: 0 | R137: 0 | S137: 0 | T137: 0 | U137: 0
B138: =IF(LEN('Détail des projets'!B138)=0,"",'Détail des projets'!B138) -> Remplacement du préchauffeur no 3 | C138: =IF(LEN('Détail des projets'!C138)=0,"",'Détail des projets'!C138) -> La Cie matériaux de construction BP Canada | D138: =IF(LEN('Détail des projets'!H138)=0,"",'Détail des projets'!H138) -> 06-Montréal | E138: =IF(LEN('Détail des projets'!L138)=0,"",'Détail des projets'!L138) -> 525889 | F138: 1051.778776 | G138: À la fin du projet (suite au dernier versement) | H138: 19.99998524 | I138: QC-Québec | J138: Oui | K138: 25 | L138: oui | M138: non | N138: Non | O138: Oui | P138: 0 | Q138: 0 | R138: 0 | S138: 0 | T138: 0 | U138: 0
B139: =IF(LEN('Détail des projets'!B139)=0,"",'Détail des projets'!B139) -> Installation d'un séchoir à grains | C139: =IF(LEN('Détail des projets'!C139)=0,"",'Détail des projets'!C139) -> Ferme L.A.B.D. inc. | D139: =IF(LEN('Détail des projets'!H139)=0,"",'Détail des projets'!H139) -> 12-Chaudière-Appalaches | E139: =IF(LEN('Détail des projets'!L139)=0,"",'Détail des projets'!L139) -> 32917.22 | F139: 26.33377313 | G139: À la fin du projet (suite au dernier versement) | H139: 50.00000545 | I139: QC-Québec | J139: Oui | K139: 25 | L139: oui | M139: non | N139: Non | O139: Oui | P139: 0 | Q139: 0 | R139: 0 | S139: 0 | T139: 0 | U139: 0
B140: =IF(LEN('Détail des projets'!B140)=0,"",'Détail des projets'!B140) -> Implantation de deux séchoirs électriques | C140: =IF(LEN('Détail des projets'!C140)=0,"",'Détail des projets'!C140) -> Arbec, Bois d'œuvre inc. | D140: =IF(LEN('Détail des projets'!H140)=0,"",'Détail des projets'!H140) -> 04-Mauricie | E140: =IF(LEN('Détail des projets'!L140)=0,"",'Détail des projets'!L140) -> 3663000 | F140: 8053.746309 | G140: À la fin du projet (suite au dernier versement) | H140: 18.19277568 | I140: QC-Québec | J140: Oui | K140: 25 | L140: oui | M140: non | N140: Non | O140: Oui | P140: 0 | Q140: 0 | R140: 0 | S140: 0 | T140: 0 | U140: 0
B141: =IF(LEN('Détail des projets'!B141)=0,"",'Détail des projets'!B141) -> Serre-Conversion chauffage-CII- électrique | C141: =IF(LEN('Détail des projets'!C141)=0,"",'Détail des projets'!C141) -> Ferme la Bourrasque | D141: =IF(LEN('Détail des projets'!H141)=0,"",'Détail des projets'!H141) -> 16-Montérégie | E141: =IF(LEN('Détail des projets'!L141)=0,"",'Détail des projets'!L141) -> 56550 | F141: 89.42517391 | G141: À la fin du projet (suite au dernier versement) | H141: 31.61861338 | I141: QC-Québec | J141: Oui | K141: 20 | L141: oui | M141: non | N141: Non | O141: Oui | P141: 0 | Q141: 0 | R141: 0 | S141: 0 | T141: 0 | U141: 0
B142: =IF(LEN('Détail des projets'!B142)=0,"",'Détail des projets'!B142) -> Serre-Conversion chauffage-CII- électrique | C142: =IF(LEN('Détail des projets'!C142)=0,"",'Détail des projets'!C142) -> Ferme la Bourrasque | D142: =IF(LEN('Détail des projets'!H142)=0,"",'Détail des projets'!H142) -> 16-Montérégie | E142: =IF(LEN('Détail des projets'!L142)=0,"",'Détail des projets'!L142) -> 52200 | F142: 68.87246468 | G142: À la fin du projet (suite au dernier versement) | H142: 37.89613181 | I142: QC-Québec | J142: Oui | K142: 20 | L142: oui | M142: non | N142: Non | O142: Oui | P142: 0 | Q142: 0 | R142: 0 | S142: 0 | T142: 0 | U142: 0
B143: =IF(LEN('Détail des projets'!B143)=0,"",'Détail des projets'!B143) -> Récupération de chaleur avec thermopompe pour le chauffage de l'eau de procédé | C143: =IF(LEN('Détail des projets'!C143)=0,"",'Détail des projets'!C143) -> Spécialités Lassonde inc. | D143: =IF(LEN('Détail des projets'!H143)=0,"",'Détail des projets'!H143) -> 16-Montérégie | E143: =IF(LEN('Détail des projets'!L143)=0,"",'Détail des projets'!L143) -> 534465.01 | F143: 427.5720092 | G143: À la fin du projet (suite au dernier versement) | H143: 49.99999986 | I143: QC-Québec | J143: Oui | K143: 25 | L143: oui | M143: non | N143: Non | O143: Oui | P143: 0 | Q143: 0 | R143: 0 | S143: 0 | T143: 0 | U143: 0
B144: =IF(LEN('Détail des projets'!B144)=0,"",'Détail des projets'!B144) -> Ajout d'échangeurs de chaleur dans des bâtiments d'élevage de volailles | C144: =IF(LEN('Détail des projets'!C144)=0,"",'Détail des projets'!C144) -> Ferme Daniel Brodeur (1981) inc. | D144: =IF(LEN('Détail des projets'!H144)=0,"",'Détail des projets'!H144) -> 05-Estrie | E144: =IF(LEN('Détail des projets'!L144)=0,"",'Détail des projets'!L144) -> 158612.42 | F144: 127.8499359 | G144: À la fin du projet (suite au dernier versement) | H144: 62.03069985 | I144: QC-Québec | J144: Oui | K144: 20 | L144: oui | M144: non | N144: Non | O144: Oui | P144: 0 | Q144: 0 | R144: 0 | S144: 0 | T144: 0 | U144: 0
B145: =IF(LEN('Détail des projets'!B145)=0,"",'Détail des projets'!B145) -> Implantation d'un séchoir électrique | C145: =IF(LEN('Détail des projets'!C145)=0,"",'Détail des projets'!C145) -> Produits Forestiers Petit-Paris inc. | D145: =IF(LEN('Détail des projets'!H145)=0,"",'Détail des projets'!H145) -> 02-Saguenay--Lac-Saint-Jean | E145: =IF(LEN('Détail des projets'!L145)=0,"",'Détail des projets'!L145) -> 1476512.97 | F145: 2460.85495 | G145: À la fin du projet (suite au dernier versement) | H145: 24 | I145: QC-Québec | J145: Oui | K145: 25 | L145: non | M145: oui | N145: Non | O145: Oui | P145: 0 | Q145: 0 | R145: 0 | S145: 0 | T145: 0 | U145: 0
B146: =IF(LEN('Détail des projets'!B146)=0,"",'Détail des projets'!B146) -> Implantation d'un chauffage électrique | C146: =IF(LEN('Détail des projets'!C146)=0,"",'Détail des projets'!C146) -> Produits Forestiers Petit-Paris inc. | D146: =IF(LEN('Détail des projets'!H146)=0,"",'Détail des projets'!H146) -> 02-Saguenay--Lac-Saint-Jean | E146: =IF(LEN('Détail des projets'!L146)=0,"",'Détail des projets'!L146) -> 120415.88 | F146: 238.1798468 | G146: À la fin du projet (suite au dernier versement) | H146: 20.22268158 | I146: QC-Québec | J146: Oui | K146: 25 | L146: non | M146: oui | N146: Non | O146: Oui | P146: 0 | Q146: 0 | R146: 0 | S146: 0 | T146: 0 | U146: 0
B147: =IF(LEN('Détail des projets'!B147)=0,"",'Détail des projets'!B147) -> Nouvelle usine de filtration des résidus - Mine LaRonde | C147: =IF(LEN('Détail des projets'!C147)=0,"",'Détail des projets'!C147) -> Mines Agnico Eagle limitée | D147: =IF(LEN('Détail des projets'!H147)=0,"",'Détail des projets'!H147) -> 08-Abitibi-Témiscamingue | E147: =IF(LEN('Détail des projets'!L147)=0,"",'Détail des projets'!L147) -> 139000 | F147: 378.3872228 | G147: À la fin du projet (suite au dernier versement) | H147: 14.69394225 | I147: QC-Québec | J147: Oui | K147: 25 | L147: oui | M147: non | N147: Non | O147: Oui | P147: 0 | Q147: 0 | R147: 0 | S147: 0 | T147: 0 | U147: 0
B148: =IF(LEN('Détail des projets'!B148)=0,"",'Détail des projets'!B148) -> Électrification d'une cannebergière | C148: =IF(LEN('Détail des projets'!C148)=0,"",'Détail des projets'!C148) -> Canneberges Dénitoine | D148: =IF(LEN('Détail des projets'!H148)=0,"",'Détail des projets'!H148) -> 17-Centre-du-Québec | E148: =IF(LEN('Détail des projets'!L148)=0,"",'Détail des projets'!L148) -> 551662.42 | F148: 505.4517215 | G148: À la fin du projet (suite au dernier versement) | H148: 54.57122773 | I148: QC-Québec | J148: Oui | K148: 20 | L148: non | M148: oui | N148: Non | O148: Oui | P148: 0 | Q148: 0 | R148: 0 | S148: 0 | T148: 0 | U148: 0
B149: =IF(LEN('Détail des projets'!B149)=0,"",'Détail des projets'!B149) -> Serre agricole de culture ornementale – Efficacité énergétique | C149: =IF(LEN('Détail des projets'!C149)=0,"",'Détail des projets'!C149) -> Les Serres Jacques Barbe inc. | D149: =IF(LEN('Détail des projets'!H149)=0,"",'Détail des projets'!H149) -> 15-Laurentides | E149: =IF(LEN('Détail des projets'!L149)=0,"",'Détail des projets'!L149) -> 350534.99 | F149: 280.427989 | G149: À la fin du projet (suite au dernier versement) | H149: 62.5 | I149: QC-Québec | J149: Oui | K149: 20 | L149: oui | M149: non | N149: Non | O149: Oui | P149: 0 | Q149: 0 | R149: 0 | S149: 0 | T149: 0 | U149: 0
B150: =IF(LEN('Détail des projets'!B150)=0,"",'Détail des projets'!B150) -> Acériculture-Évaporateur électrique | C150: =IF(LEN('Détail des projets'!C150)=0,"",'Détail des projets'!C150) -> Érablière SFKL S.E.N.C. | D150: =IF(LEN('Détail des projets'!H150)=0,"",'Détail des projets'!H150) -> 12-Chaudière-Appalaches | E150: =IF(LEN('Détail des projets'!L150)=0,"",'Détail des projets'!L150) -> 17074.32 | F150: 13.65945281 | G150: À la fin du projet (suite au dernier versement) | H150: 62.5 | I150: QC-Québec | J150: Oui | K150: 20 | L150: oui | M150: non | N150: Non | O150: Oui | P150: 0 | Q150: 0 | R150: 0 | S150: 0 | T150: 0 | U150: 0
B151: =IF(LEN('Détail des projets'!B151)=0,"",'Détail des projets'!B151) -> Acériculture-Évaporateur électrique | C151: =IF(LEN('Détail des projets'!C151)=0,"",'Détail des projets'!C151) -> Érablière Léonard (2017) inc. | D151: =IF(LEN('Détail des projets'!H151)=0,"",'Détail des projets'!H151) -> 15-Laurentides | E151: =IF(LEN('Détail des projets'!L151)=0,"",'Détail des projets'!L151) -> 54857 | F151: 43.88559724 | G151: À la fin du projet (suite au dernier versement) | H151: 62.50000392 | I151: QC-Québec | J151: Oui | K151: 20 | L151: oui | M151: non | N151: Non | O151: Oui | P151: 0 | Q151: 0 | R151: 0 | S151: 0 | T151: 0 | U151: 0
B152: =IF(LEN('Détail des projets'!B152)=0,"",'Détail des projets'!B152) -> Électrification des séchoirs à bois | C152: =IF(LEN('Détail des projets'!C152)=0,"",'Détail des projets'!C152) -> Arbec, Bois d'œuvre inc. | D152: =IF(LEN('Détail des projets'!H152)=0,"",'Détail des projets'!H152) -> 02-Saguenay--Lac-Saint-Jean | E152: =IF(LEN('Détail des projets'!L152)=0,"",'Détail des projets'!L152) -> 2013436.58 | F152: 4026.873155 | G152: À la fin du projet (suite au dernier versement) | H152: 20.00000003 | I152: QC-Québec | J152: Oui | K152: 25 | L152: non | M152: oui | N152: Non | O152: Oui | P152: 0 | Q152: 0 | R152: 0 | S152: 0 | T152: 0 | U152: 0
B153: =IF(LEN('Détail des projets'!B153)=0,"",'Détail des projets'!B153) -> Installation d’un échangeur pour la ventilation de l'usine | C153: =IF(LEN('Détail des projets'!C153)=0,"",'Détail des projets'!C153) -> Robert Bernard (TRM) ltée | D153: =IF(LEN('Détail des projets'!H153)=0,"",'Détail des projets'!H153) -> 05-Estrie | E153: =IF(LEN('Détail des projets'!L153)=0,"",'Détail des projets'!L153) -> 452593.69 | F153: 362.0749528 | G153: À la fin du projet (suite au dernier versement) | H153: 49.9999999 | I153: QC-Québec | J153: Oui | K153: 25 | L153: oui | M153: non | N153: Non | O153: Oui | P153: 0 | Q153: 0 | R153: 0 | S153: 0 | T153: 0 | U153: 0
B154: =IF(LEN('Détail des projets'!B154)=0,"",'Détail des projets'!B154) -> Une ligne électrique pour éviter l'utilisation d'une génératrice à l'Érablière Dany Michaud | C154: =IF(LEN('Détail des projets'!C154)=0,"",'Détail des projets'!C154) -> Dany Michaud | D154: =IF(LEN('Détail des projets'!H154)=0,"",'Détail des projets'!H154) -> 01-Bas-Saint-Laurent | E154: =IF(LEN('Détail des projets'!L154)=0,"",'Détail des projets'!L154) -> 11709.42 | F154: 9.367539251 | G154: À la fin du projet (suite au dernier versement) | H154: 31.24998915 | I154: QC-Québec | J154: Oui | K154: 40 | L154: non | M154: oui | N154: Non | O154: Oui | P154: 0 | Q154: 0 | R154: 0 | S154: 0 | T154: 0 | U154: 0
B155: =IF(LEN('Détail des projets'!B155)=0,"",'Détail des projets'!B155) -> Conversion du pompage diesel vers l'électricité | C155: =IF(LEN('Détail des projets'!C155)=0,"",'Détail des projets'!C155) -> Gazonnière Alexander inc. | D155: =IF(LEN('Détail des projets'!H155)=0,"",'Détail des projets'!H155) -> 14-Lanaudière | E155: =IF(LEN('Détail des projets'!L155)=0,"",'Détail des projets'!L155) -> 85169.66 | F155: 68.1357285 | G155: À la fin du projet (suite au dernier versement) | H155: 62.49999954 | I155: QC-Québec | J155: Oui | K155: 20 | L155: non | M155: oui | N155: Non | O155: Oui | P155: 0 | Q155: 0 | R155: 0 | S155: 0 | T155: 0 | U155: 0
B156: =IF(LEN('Détail des projets'!B156)=0,"",'Détail des projets'!B156) -> Isocanmed – Récupération de chaleur du procédé | C156: =IF(LEN('Détail des projets'!C156)=0,"",'Détail des projets'!C156) -> Isocanmed inc. | D156: =IF(LEN('Détail des projets'!H156)=0,"",'Détail des projets'!H156) -> 04-Mauricie | E156: =IF(LEN('Détail des projets'!L156)=0,"",'Détail des projets'!L156) -> 1907106.75 | F156: 1525.685402 | G156: À la fin du projet (suite au dernier versement) | H156: 49.99999993 | I156: QC-Québec | J156: Oui | K156: 25 | L156: oui | M156: non | N156: Non | O156: Oui | P156: 0 | Q156: 0 | R156: 0 | S156: 0 | T156: 0 | U156: 0
B157: =IF(LEN('Détail des projets'!B157)=0,"",'Détail des projets'!B157) -> Phase 3 - Projet d’agrandissement et d’efficacité énergétique | C157: =IF(LEN('Détail des projets'!C157)=0,"",'Détail des projets'!C157) -> Les Serres Coulombe inc. | D157: =IF(LEN('Détail des projets'!H157)=0,"",'Détail des projets'!H157) -> 14-Lanaudière | E157: =IF(LEN('Détail des projets'!L157)=0,"",'Détail des projets'!L157) -> 161754.82 | F157: 189.1118987 | G157: À la fin du projet (suite au dernier versement) | H157: 49.52014441 | I157: QC-Québec | J157: Oui | K157: 17.27255058 | L157: oui | M157: non | N157: Non | O157: Oui | P157: 0 | Q157: 0 | R157: 0 | S157: 0 | T157: 0 | U157: 0
B158: =IF(LEN('Détail des projets'!B158)=0,"",'Détail des projets'!B158) -> Phase 4 - Projet d’agrandissement et d’efficacité énergétique | C158: =IF(LEN('Détail des projets'!C158)=0,"",'Détail des projets'!C158) -> 12809672 Canada inc. | D158: =IF(LEN('Détail des projets'!H158)=0,"",'Détail des projets'!H158) -> 14-Lanaudière | E158: =IF(LEN('Détail des projets'!L158)=0,"",'Détail des projets'!L158) -> 283880.74 | F158: 403.8372941 | G158: À la fin du projet (suite au dernier versement) | H158: 40.54593697 | I158: QC-Québec | J158: Oui | K158: 17.33732796 | L158: oui | M158: non | N158: Non | O158: Oui | P158: 0 | Q158: 0 | R158: 0 | S158: 0 | T158: 0 | U158: 0
B159: =IF(LEN('Détail des projets'!B159)=0,"",'Détail des projets'!B159) -> Acériculture-Évaporateur électrique | C159: =IF(LEN('Détail des projets'!C159)=0,"",'Détail des projets'!C159) -> 9274-6544 Québec inc. | D159: =IF(LEN('Détail des projets'!H159)=0,"",'Détail des projets'!H159) -> 01-Bas-Saint-Laurent | E159: =IF(LEN('Détail des projets'!L159)=0,"",'Détail des projets'!L159) -> 100000 | F159: 85.51247468 | G159: À la fin du projet (suite au dernier versement) | H159: 58.47100109 | I159: QC-Québec | J159: Oui | K159: 20 | L159: oui | M159: non | N159: Non | O159: Oui | P159: 0 | Q159: 0 | R159: 0 | S159: 0 | T159: 0 | U159: 0
B160: =IF(LEN('Détail des projets'!B160)=0,"",'Détail des projets'!B160) -> Beaulieu Canada - Nouvelle centrale thermique | C160: =IF(LEN('Détail des projets'!C160)=0,"",'Détail des projets'!C160) -> Beaulieu Canada | D160: =IF(LEN('Détail des projets'!H160)=0,"",'Détail des projets'!H160) -> 16-Montérégie | E160: =IF(LEN('Détail des projets'!L160)=0,"",'Détail des projets'!L160) -> 1587139.6 | F160: 3174.279207 | G160: À la fin du projet (suite au dernier versement) | H160: 19.99999996 | I160: QC-Québec | J160: Oui | K160: 25 | L160: oui | M160: non | N160: Non | O160: Oui | P160: 0 | Q160: 0 | R160: 0 | S160: 0 | T160: 0 | U160: 0
B161: =IF(LEN('Détail des projets'!B161)=0,"",'Détail des projets'!B161) -> Acériculture-Évaporateur électrique | C161: =IF(LEN('Détail des projets'!C161)=0,"",'Détail des projets'!C161) -> La Coulée LRP | D161: =IF(LEN('Détail des projets'!H161)=0,"",'Détail des projets'!H161) -> 05-Estrie | E161: =IF(LEN('Détail des projets'!L161)=0,"",'Détail des projets'!L161) -> 100000 | F161: 97.43497218 | G161: À la fin du projet (suite au dernier versement) | H161: 51.31627677 | I161: QC-Québec | J161: Oui | K161: 20 | L161: oui | M161: non | N161: Non | O161: Oui | P161: 0 | Q161: 0 | R161: 0 | S161: 0 | T161: 0 | U161: 0
B162: =IF(LEN('Détail des projets'!B162)=0,"",'Détail des projets'!B162) -> Construction d'une ligne électrique aérienne au champ 2326 | C162: =IF(LEN('Détail des projets'!C162)=0,"",'Détail des projets'!C162) -> Cultures H. Dolbec inc. | D162: =IF(LEN('Détail des projets'!H162)=0,"",'Détail des projets'!H162) -> 03-Capitale-Nationale | E162: =IF(LEN('Détail des projets'!L162)=0,"",'Détail des projets'!L162) -> 111261.97 | F162: 89.00957874 | G162: À la fin du projet (suite au dernier versement) | H162: 49.99999846 | I162: QC-Québec | J162: Oui | K162: 25 | L162: non | M162: oui | N162: Non | O162: Oui | P162: 0 | Q162: 0 | R162: 0 | S162: 0 | T162: 0 | U162: 0
B163: =IF(LEN('Détail des projets'!B163)=0,"",'Détail des projets'!B163) -> Conversion de la bouilloire au gaz naturel | C163: =IF(LEN('Détail des projets'!C163)=0,"",'Détail des projets'!C163) -> Béton Provincial Div. Granby ltée | D163: =IF(LEN('Détail des projets'!H163)=0,"",'Détail des projets'!H163) -> 05-Estrie | E163: =IF(LEN('Détail des projets'!L163)=0,"",'Détail des projets'!L163) -> 24995.55 | F163: 28.52497879 | G163: À la fin du projet (suite au dernier versement) | H163: 43.81344187 | I163: QC-Québec | J163: Oui | K163: 20 | L163: non | M163: oui | N163: Non | O163: Oui | P163: 0 | Q163: 0 | R163: 0 | S163: 0 | T163: 0 | U163: 0
B164: =IF(LEN('Détail des projets'!B164)=0,"",'Détail des projets'!B164) -> Ajout d'échangeurs de chaleur dans des bâtiments d'élevage de volailles | C164: =IF(LEN('Détail des projets'!C164)=0,"",'Détail des projets'!C164) -> Ferme Handschin inc. | D164: =IF(LEN('Détail des projets'!H164)=0,"",'Détail des projets'!H164) -> 16-Montérégie | E164: =IF(LEN('Détail des projets'!L164)=0,"",'Détail des projets'!L164) -> 105935.6 | F164: 84.74848005 | G164: À la fin du projet (suite au dernier versement) | H164: 62.49999996 | I164: QC-Québec | J164: Oui | K164: 20 | L164: oui | M164: non | N164: Non | O164: Oui | P164: 0 | Q164: 0 | R164: 0 | S164: 0 | T164: 0 | U164: 0
B165: =IF(LEN('Détail des projets'!B165)=0,"",'Détail des projets'!B165) -> Optimisation énergétique des presses | C165: =IF(LEN('Détail des projets'!C165)=0,"",'Détail des projets'!C165) -> Formica Canada inc. | D165: =IF(LEN('Détail des projets'!H165)=0,"",'Détail des projets'!H165) -> 16-Montérégie | E165: =IF(LEN('Détail des projets'!L165)=0,"",'Détail des projets'!L165) -> 749311.68 | F165: 1665.137067 | G165: À la fin du projet (suite au dernier versement) | H165: 29.99999999 | I165: QC-Québec | J165: Oui | K165: 15 | L165: oui | M165: non | N165: Non | O165: Oui | P165: 0 | Q165: 0 | R165: 0 | S165: 0 | T165: 0 | U165: 0
B166: =IF(LEN('Détail des projets'!B166)=0,"",'Détail des projets'!B166) -> Chauffage de l'accumulateur par récupération de l'énergie dans l'évacuation du traiteur 5 | C166: =IF(LEN('Détail des projets'!C166)=0,"",'Détail des projets'!C166) -> Formica Canada inc. | D166: =IF(LEN('Détail des projets'!H166)=0,"",'Détail des projets'!H166) -> 16-Montérégie | E166: =IF(LEN('Détail des projets'!L166)=0,"",'Détail des projets'!L166) -> 371210.76 | F166: 742.4215192 | G166: À la fin du projet (suite au dernier versement) | H166: 33.33333337 | I166: QC-Québec | J166: Oui | K166: 15 | L166: oui | M166: non | N166: Non | O166: Oui | P166: 0 | Q166: 0 | R166: 0 | S166: 0 | T166: 0 | U166: 0
B167: =IF(LEN('Détail des projets'!B167)=0,"",'Détail des projets'!B167) -> Chauffage de l'accumulateur par récupération de l'énergie des fumées des chaudières | C167: =IF(LEN('Détail des projets'!C167)=0,"",'Détail des projets'!C167) -> Formica Canada inc. | D167: =IF(LEN('Détail des projets'!H167)=0,"",'Détail des projets'!H167) -> 16-Montérégie | E167: =IF(LEN('Détail des projets'!L167)=0,"",'Détail des projets'!L167) -> 224155.54 | F167: 448.3110748 | G167: À la fin du projet (suite au dernier versement) | H167: 33.33333372 | I167: QC-Québec | J167: Oui | K167: 15 | L167: oui | M167: non | N167: Non | O167: Oui | P167: 0 | Q167: 0 | R167: 0 | S167: 0 | T167: 0 | U167: 0
B168: =IF(LEN('Détail des projets'!B168)=0,"",'Détail des projets'!B168) -> Récupération de l'énergie dans l'évacuation du traiteur 6 | C168: =IF(LEN('Détail des projets'!C168)=0,"",'Détail des projets'!C168) -> Formica Canada inc. | D168: =IF(LEN('Détail des projets'!H168)=0,"",'Détail des projets'!H168) -> 16-Montérégie | E168: =IF(LEN('Détail des projets'!L168)=0,"",'Détail des projets'!L168) -> 351308.66 | F168: 702.6173255 | G168: À la fin du projet (suite au dernier versement) | H168: 33.33333307 | I168: QC-Québec | J168: Oui | K168: 15 | L168: oui | M168: non | N168: Non | O168: Oui | P168: 0 | Q168: 0 | R168: 0 | S168: 0 | T168: 0 | U168: 0
B169: =IF(LEN('Détail des projets'!B169)=0,"",'Détail des projets'!B169) -> Implantation - Projet d'amélioration de l'efficacité des réseaux de chauffage (Site Expo) | C169: =IF(LEN('Détail des projets'!C169)=0,"",'Détail des projets'!C169) -> Canadian Royalties inc. | D169: =IF(LEN('Détail des projets'!H169)=0,"",'Détail des projets'!H169) -> 06-Montréal | E169: =IF(LEN('Détail des projets'!L169)=0,"",'Détail des projets'!L169) -> 468660.12 | F169: 1023.245856 | G169: À la fin du projet (suite au dernier versement) | H169: 45.80132108 | I169: QC-Québec | J169: Oui | K169: 10 | L169: oui | M169: non | N169: Non | O169: Oui | P169: 0 | Q169: 0 | R169: 0 | S169: 0 | T169: 0 | U169: 0
B170: =IF(LEN('Détail des projets'!B170)=0,"",'Détail des projets'!B170) -> Chauffage de la ventilation du garage H1 | C170: =IF(LEN('Détail des projets'!C170)=0,"",'Détail des projets'!C170) -> Canadian Royalties inc. | D170: =IF(LEN('Détail des projets'!H170)=0,"",'Détail des projets'!H170) -> 06-Montréal | E170: =IF(LEN('Détail des projets'!L170)=0,"",'Détail des projets'!L170) -> 147512.26 | F170: 480.0173632 | G170: À la fin du projet (suite au dernier versement) | H170: 12.29224368 | I170: QC-Québec | J170: Oui | K170: 25 | L170: oui | M170: non | N170: Non | O170: Oui | P170: 0 | Q170: 0 | R170: 0 | S170: 0 | T170: 0 | U170: 0
B171: =IF(LEN('Détail des projets'!B171)=0,"",'Détail des projets'!B171) -> Serre agricole de tomates - Efficacité énergétique | C171: =IF(LEN('Détail des projets'!C171)=0,"",'Détail des projets'!C171) -> TOMATÉ! Inc. | D171: =IF(LEN('Détail des projets'!H171)=0,"",'Détail des projets'!H171) -> 16-Montérégie | E171: =IF(LEN('Détail des projets'!L171)=0,"",'Détail des projets'!L171) -> 349278.59 | F171: 279.4228707 | G171: À la fin du projet (suite au dernier versement) | H171: 64.39869994 | I171: QC-Québec | J171: Oui | K171: 19.41032982 | L171: oui | M171: non | N171: Non | O171: Oui | P171: 0 | Q171: 0 | R171: 0 | S171: 0 | T171: 0 | U171: 0
B172: =IF(LEN('Détail des projets'!B172)=0,"",'Détail des projets'!B172) -> Acériculture-Évaporateur électrique | C172: =IF(LEN('Détail des projets'!C172)=0,"",'Détail des projets'!C172) -> Érablière Nadeau & Fils inc. | D172: =IF(LEN('Détail des projets'!H172)=0,"",'Détail des projets'!H172) -> 12-Chaudière-Appalaches | E172: =IF(LEN('Détail des projets'!L172)=0,"",'Détail des projets'!L172) -> 52541.53 | F172: 42.03322556 | G172: À la fin du projet (suite au dernier versement) | H172: 62.49999768 | I172: QC-Québec | J172: Oui | K172: 20 | L172: oui | M172: non | N172: Non | O172: Oui | P172: 0 | Q172: 0 | R172: 0 | S172: 0 | T172: 0 | U172: 0
B173: =IF(LEN('Détail des projets'!B173)=0,"",'Détail des projets'!B173) -> Nouveau AMU et échangeur de chaleur pour l'apport d'air frais | C173: =IF(LEN('Détail des projets'!C173)=0,"",'Détail des projets'!C173) -> Ani-Mat inc. | D173: =IF(LEN('Détail des projets'!H173)=0,"",'Détail des projets'!H173) -> 05-Estrie | E173: =IF(LEN('Détail des projets'!L173)=0,"",'Détail des projets'!L173) -> 312375 | F173: 307.8697572 | G173: À la fin du projet (suite au dernier versement) | H173: 40.58534399 | I173: QC-Québec | J173: Oui | K173: 25 | L173: oui | M173: non | N173: Non | O173: Oui | P173: 0 | Q173: 0 | R173: 0 | S173: 0 | T173: 0 | U173: 0
B174: =IF(LEN('Détail des projets'!B174)=0,"",'Détail des projets'!B174) -> Installation d’un échangeur de chaleur de 30 000 CFM pour la ventilation du secteur maturation | C174: =IF(LEN('Détail des projets'!C174)=0,"",'Détail des projets'!C174) -> Domfoam inc. | D174: =IF(LEN('Détail des projets'!H174)=0,"",'Détail des projets'!H174) -> 06-Montréal | E174: =IF(LEN('Détail des projets'!L174)=0,"",'Détail des projets'!L174) -> 604008.52 | F174: 483.2068152 | G174: À la fin du projet (suite au dernier versement) | H174: 50.00000008 | I174: QC-Québec | J174: Oui | K174: 25 | L174: oui | M174: non | N174: Non | O174: Oui | P174: 0 | Q174: 0 | R174: 0 | S174: 0 | T174: 0 | U174: 0
B175: =IF(LEN('Détail des projets'!B175)=0,"",'Détail des projets'!B175) -> Récupération de chaleur des compresseurs et du dépoussiéreur avec un nouveau contrôleur central | C175: =IF(LEN('Détail des projets'!C175)=0,"",'Détail des projets'!C175) -> Elopak Canada inc. | D175: =IF(LEN('Détail des projets'!H175)=0,"",'Détail des projets'!H175) -> 15-Laurentides | E175: =IF(LEN('Détail des projets'!L175)=0,"",'Détail des projets'!L175) -> 401195.01 | F175: 1077.956579 | G175: À la fin du projet (suite au dernier versement) | H175: 14.88724195 | I175: QC-Québec | J175: Oui | K175: 25 | L175: oui | M175: oui | N175: Non | O175: Oui | P175: 0 | Q175: 0 | R175: 0 | S175: 0 | T175: 0 | U175: 0
B176: =IF(LEN('Détail des projets'!B176)=0,"",'Détail des projets'!B176) -> Conversion d'un système de pompage | C176: =IF(LEN('Détail des projets'!C176)=0,"",'Détail des projets'!C176) -> Ferme L.M. Drainville & Fils inc. | D176: =IF(LEN('Détail des projets'!H176)=0,"",'Détail des projets'!H176) -> 14-Lanaudière | E176: =IF(LEN('Détail des projets'!L176)=0,"",'Détail des projets'!L176) -> 27091.52 | F176: 21.67321471 | G176: À la fin du projet (suite au dernier versement) | H176: 50.00000297 | I176: QC-Québec | J176: Oui | K176: 25 | L176: non | M176: oui | N176: Non | O176: Oui | P176: 0 | Q176: 0 | R176: 0 | S176: 0 | T176: 0 | U176: 0
B177: =IF(LEN('Détail des projets'!B177)=0,"",'Détail des projets'!B177) -> Pl5 - Conversion du chauffage des bassins par une chaudière électrique | C177: =IF(LEN('Détail des projets'!C177)=0,"",'Détail des projets'!C177) -> Pratt & Whitney Canada Cie. | D177: =IF(LEN('Détail des projets'!H177)=0,"",'Détail des projets'!H177) -> 16-Montérégie | E177: =IF(LEN('Détail des projets'!L177)=0,"",'Détail des projets'!L177) -> 1309415 | F177: 2640.941506 | G177: À la fin du projet (suite au dernier versement) | H177: 19.83254831 | I177: QC-Québec | J177: Oui | K177: 25 | L177: oui | M177: oui | N177: Non | O177: Oui | P177: 0 | Q177: 0 | R177: 0 | S177: 0 | T177: 0 | U177: 0
B178: =IF(LEN('Détail des projets'!B178)=0,"",'Détail des projets'!B178) -> Chauffage solaire avec collecteur à faible émissivité | C178: =IF(LEN('Détail des projets'!C178)=0,"",'Détail des projets'!C178) -> BHS Composites inc. | D178: =IF(LEN('Détail des projets'!H178)=0,"",'Détail des projets'!H178) -> 05-Estrie | E178: =IF(LEN('Détail des projets'!L178)=0,"",'Détail des projets'!L178) -> 80072.15 | F178: 64.0577198 | G178: À la fin du projet (suite au dernier versement) | H178: 50.00000016 | I178: QC-Québec | J178: Oui | K178: 25 | L178: oui | M178: non | N178: Non | O178: Oui | P178: 0 | Q178: 0 | R178: 0 | S178: 0 | T178: 0 | U178: 0
B179: =IF(LEN('Détail des projets'!B179)=0,"",'Détail des projets'!B179) -> Électrification d'une cannebergière | C179: =IF(LEN('Détail des projets'!C179)=0,"",'Détail des projets'!C179) -> Atocas St-Louis inc. | D179: =IF(LEN('Détail des projets'!H179)=0,"",'Détail des projets'!H179) -> 17-Centre-du-Québec | E179: =IF(LEN('Détail des projets'!L179)=0,"",'Détail des projets'!L179) -> 469402.94 | F179: 375.5223501 | G179: À la fin du projet (suite au dernier versement) | H179: 62.50000031 | I179: QC-Québec | J179: Oui | K179: 20 | L179: non | M179: oui | N179: Non | O179: Oui | P179: 0 | Q179: 0 | R179: 0 | S179: 0 | T179: 0 | U179: 0
B180: =IF(LEN('Détail des projets'!B180)=0,"",'Détail des projets'!B180) -> Électrification d'une cannebergière | C180: =IF(LEN('Détail des projets'!C180)=0,"",'Détail des projets'!C180) -> Atocas Blandford inc. | D180: =IF(LEN('Détail des projets'!H180)=0,"",'Détail des projets'!H180) -> 17-Centre-du-Québec | E180: =IF(LEN('Détail des projets'!L180)=0,"",'Détail des projets'!L180) -> 306571.26 | F180: 245.2570072 | G180: À la fin du projet (suite au dernier versement) | H180: 62.5000002 | I180: QC-Québec | J180: Oui | K180: 20 | L180: non | M180: oui | N180: Non | O180: Oui | P180: 0 | Q180: 0 | R180: 0 | S180: 0 | T180: 0 | U180: 0
B181: =IF(LEN('Détail des projets'!B181)=0,"",'Détail des projets'!B181) -> Électrification d'une cannebergière | C181: =IF(LEN('Détail des projets'!C181)=0,"",'Détail des projets'!C181) -> Les Bassins Rouges S.E.N.C. | D181: =IF(LEN('Détail des projets'!H181)=0,"",'Détail des projets'!H181) -> 17-Centre-du-Québec | E181: =IF(LEN('Détail des projets'!L181)=0,"",'Détail des projets'!L181) -> 1004221.41 | F181: 803.3771293 | G181: À la fin du projet (suite au dernier versement) | H181: 62.4999999 | I181: QC-Québec | J181: Oui | K181: 20 | L181: non | M181: oui | N181: Non | O181: Oui | P181: 0 | Q181: 0 | R181: 0 | S181: 0 | T181: 0 | U181: 0
B182: =IF(LEN('Détail des projets'!B182)=0,"",'Détail des projets'!B182) -> Remplacement d’un séchoir à grains par un séchoir écoénergétique | C182: =IF(LEN('Détail des projets'!C182)=0,"",'Détail des projets'!C182) -> Les Élévateurs D.P. inc. | D182: =IF(LEN('Détail des projets'!H182)=0,"",'Détail des projets'!H182) -> 16-Montérégie | E182: =IF(LEN('Détail des projets'!L182)=0,"",'Détail des projets'!L182) -> 405681.8 | F182: 324.5454368 | G182: À la fin du projet (suite au dernier versement) | H182: 50.00000049 | I182: QC-Québec | J182: Oui | K182: 25 | L182: oui | M182: non | N182: Non | O182: Oui | P182: 0 | Q182: 0 | R182: 0 | S182: 0 | T182: 0 | U182: 0
B183: =IF(LEN('Détail des projets'!B183)=0,"",'Détail des projets'!B183) -> Remplacement des séchoirs à grains de la Ferme Porclair | C183: =IF(LEN('Détail des projets'!C183)=0,"",'Détail des projets'!C183) -> Ferme Porclair S.E.N.C. | D183: =IF(LEN('Détail des projets'!H183)=0,"",'Détail des projets'!H183) -> 17-Centre-du-Québec | E183: =IF(LEN('Détail des projets'!L183)=0,"",'Détail des projets'!L183) -> 49047.04 | F183: 39.23763378 | G183: À la fin du projet (suite au dernier versement) | H183: 41.66666478 | I183: QC-Québec | J183: Oui | K183: 30 | L183: oui | M183: non | N183: Non | O183: Oui | P183: 0 | Q183: 0 | R183: 0 | S183: 0 | T183: 0 | U183: 0
B184: =IF(LEN('Détail des projets'!B184)=0,"",'Détail des projets'!B184) -> Projet d'efficacité énergétique | C184: =IF(LEN('Détail des projets'!C184)=0,"",'Détail des projets'!C184) -> Boulangerie WF | D184: =IF(LEN('Détail des projets'!H184)=0,"",'Détail des projets'!H184) -> 16-Montérégie | E184: =IF(LEN('Détail des projets'!L184)=0,"",'Détail des projets'!L184) -> 339639.56 | F184: 679.2791098 | G184: À la fin du projet (suite au dernier versement) | H184: 21.81444804 | I184: QC-Québec | J184: Oui | K184: 22.92058945 | L184: oui | M184: non | N184: Non | O184: Oui | P184: 0 | Q184: 0 | R184: 0 | S184: 0 | T184: 0 | U184: 0
B185: =IF(LEN('Détail des projets'!B185)=0,"",'Détail des projets'!B185) -> Optimisation de la centrale d’enrobés bitumineux par vis de préchauffage du GBR | C185: =IF(LEN('Détail des projets'!C185)=0,"",'Détail des projets'!C185) -> P. Baillargeon ltée | D185: =IF(LEN('Détail des projets'!H185)=0,"",'Détail des projets'!H185) -> 16-Montérégie | E185: =IF(LEN('Détail des projets'!L185)=0,"",'Détail des projets'!L185) -> 126668.49 | F185: 101.334794 | G185: À la fin du projet (suite au dernier versement) | H185: 62.49999877 | I185: QC-Québec | J185: Oui | K185: 20 | L185: oui | M185: non | N185: Non | O185: Oui | P185: 0 | Q185: 0 | R185: 0 | S185: 0 | T185: 0 | U185: 0
B186: =IF(LEN('Détail des projets'!B186)=0,"",'Détail des projets'!B186) -> Serre de plants : efficacité énergétique | C186: =IF(LEN('Détail des projets'!C186)=0,"",'Détail des projets'!C186) -> Ferme aux petits oignons inc. | D186: =IF(LEN('Détail des projets'!H186)=0,"",'Détail des projets'!H186) -> 15-Laurentides | E186: =IF(LEN('Détail des projets'!L186)=0,"",'Détail des projets'!L186) -> 172271.36 | F186: 137.817087 | G186: À la fin du projet (suite au dernier versement) | H186: 50.00000036 | I186: QC-Québec | J186: Oui | K186: 25 | L186: non | M186: oui | N186: Non | O186: Oui | P186: 0 | Q186: 0 | R186: 0 | S186: 0 | T186: 0 | U186: 0
B187: =IF(LEN('Détail des projets'!B187)=0,"",'Détail des projets'!B187) -> Optimisation des fours de trempe | C187: =IF(LEN('Détail des projets'!C187)=0,"",'Détail des projets'!C187) -> Les Traitements d'acier S.T. inc. | D187: =IF(LEN('Détail des projets'!H187)=0,"",'Détail des projets'!H187) -> 04-Mauricie | E187: =IF(LEN('Détail des projets'!L187)=0,"",'Détail des projets'!L187) -> 338823.19 | F187: 271.0585488 | G187: À la fin du projet (suite au dernier versement) | H187: 50.00000059 | I187: QC-Québec | J187: Oui | K187: 25 | L187: oui | M187: non | N187: Non | O187: Oui | P187: 0 | Q187: 0 | R187: 0 | S187: 0 | T187: 0 | U187: 0
B188: =IF(LEN('Détail des projets'!B188)=0,"",'Détail des projets'!B188) -> Conversion au gaz naturel | C188: =IF(LEN('Détail des projets'!C188)=0,"",'Détail des projets'!C188) -> Produits Hevea inc. | D188: =IF(LEN('Détail des projets'!H188)=0,"",'Détail des projets'!H188) -> 05-Estrie | E188: =IF(LEN('Détail des projets'!L188)=0,"",'Détail des projets'!L188) -> 132741.16 | F188: 115.4722228 | G188: À la fin du projet (suite au dernier versement) | H188: 48.86097411 | I188: QC-Québec | J188: Oui | K188: 23.526968 | L188: non | M188: oui | N188: Non | O188: Oui | P188: 0 | Q188: 0 | R188: 0 | S188: 0 | T188: 0 | U188: 0
B189: =IF(LEN('Détail des projets'!B189)=0,"",'Détail des projets'!B189) -> Mur solaire et rideaux d'air | C189: =IF(LEN('Détail des projets'!C189)=0,"",'Détail des projets'!C189) -> Emballages Mitchel-Lincoln ltée | D189: =IF(LEN('Détail des projets'!H189)=0,"",'Détail des projets'!H189) -> 16-Montérégie | E189: =IF(LEN('Détail des projets'!L189)=0,"",'Détail des projets'!L189) -> 96340.99 | F189: 192.6819777 | G189: À la fin du projet (suite au dernier versement) | H189: 24.02387679 | I189: QC-Québec | J189: Oui | K189: 20.81262779 | L189: oui | M189: non | N189: Non | O189: Oui | P189: 0 | Q189: 0 | R189: 0 | S189: 0 | T189: 0 | U189: 0
B190: =IF(LEN('Détail des projets'!B190)=0,"",'Détail des projets'!B190) -> Construction d’une ligne électrique | C190: =IF(LEN('Détail des projets'!C190)=0,"",'Détail des projets'!C190) -> Érablière des Sept Lacs inc. | D190: =IF(LEN('Détail des projets'!H190)=0,"",'Détail des projets'!H190) -> 01-Bas-Saint-Laurent | E190: =IF(LEN('Détail des projets'!L190)=0,"",'Détail des projets'!L190) -> 24852.33 | F190: 19.88186161 | G190: À la fin du projet (suite au dernier versement) | H190: 50.00000602 | I190: QC-Québec | J190: Oui | K190: 25 | L190: non | M190: oui | N190: Non | O190: Oui | P190: 0 | Q190: 0 | R190: 0 | S190: 0 | T190: 0 | U190: 0
B191: =IF(LEN('Détail des projets'!B191)=0,"",'Détail des projets'!B191) -> Intégration de thermopompe | C191: =IF(LEN('Détail des projets'!C191)=0,"",'Détail des projets'!C191) -> Laboratoires Abbott Cie | D191: =IF(LEN('Détail des projets'!H191)=0,"",'Détail des projets'!H191) -> 17-Centre-du-Québec | E191: =IF(LEN('Détail des projets'!L191)=0,"",'Détail des projets'!L191) -> 1240419.36 | F191: 2480.838718 | G191: À la fin du projet (suite au dernier versement) | H191: 20.00000002 | I191: QC-Québec | J191: Oui | K191: 25 | L191: oui | M191: non | N191: Non | O191: Oui | P191: 0 | Q191: 0 | R191: 0 | S191: 0 | T191: 0 | U191: 0
B192: =IF(LEN('Détail des projets'!B192)=0,"",'Détail des projets'!B192) -> ESA-3000 : réduction des émissions de GES dans le poulailler de Ferme Sylvain Proulx inc. | C192: =IF(LEN('Détail des projets'!C192)=0,"",'Détail des projets'!C192) -> Ferme Sylvain Proulx inc. | D192: =IF(LEN('Détail des projets'!H192)=0,"",'Détail des projets'!H192) -> 16-Montérégie | E192: =IF(LEN('Détail des projets'!L192)=0,"",'Détail des projets'!L192) -> 38073.19 | F192: 30.45854859 | G192: À la fin du projet (suite au dernier versement) | H192: 50.0000056 | I192: QC-Québec | J192: Oui | K192: 25 | L192: oui | M192: non | N192: Non | O192: Oui | P192: 0 | Q192: 0 | R192: 0 | S192: 0 | T192: 0 | U192: 0
B193: =IF(LEN('Détail des projets'!B193)=0,"",'Détail des projets'!B193) -> ESA-3000 : réduction des émissions de GES dans le poulailler De la comté SENC | C193: =IF(LEN('Détail des projets'!C193)=0,"",'Détail des projets'!C193) -> De La Comté s.e.n.c. | D193: =IF(LEN('Détail des projets'!H193)=0,"",'Détail des projets'!H193) -> 05-Estrie | E193: =IF(LEN('Détail des projets'!L193)=0,"",'Détail des projets'!L193) -> 59088.57 | F193: 47.27085533 | G193: À la fin du projet (suite au dernier versement) | H193: 50.00000071 | I193: QC-Québec | J193: Oui | K193: 25 | L193: oui | M193: non | N193: Non | O193: Oui | P193: 0 | Q193: 0 | R193: 0 | S193: 0 | T193: 0 | U193: 0
B194: =IF(LEN('Détail des projets'!B194)=0,"",'Détail des projets'!B194) -> Projet LPI | C194: =IF(LEN('Détail des projets'!C194)=0,"",'Détail des projets'!C194) -> Chimie ParaChem S.E.C. | D194: =IF(LEN('Détail des projets'!H194)=0,"",'Détail des projets'!H194) -> 06-Montréal | E194: =IF(LEN('Détail des projets'!L194)=0,"",'Détail des projets'!L194) -> 5000000 | F194: 11872.23802 | G194: À la fin du projet (suite au dernier versement) | H194: 16.84602344 | I194: QC-Québec | J194: Oui | K194: 25 | L194: oui | M194: non | N194: Non | O194: Oui | P194: 0 | Q194: 0 | R194: 0 | S194: 0 | T194: 0 | U194: 0
B195: =IF(LEN('Détail des projets'!B195)=0,"",'Détail des projets'!B195) -> Serre-Conversion chauffage-CII- électrique | C195: =IF(LEN('Détail des projets'!C195)=0,"",'Détail des projets'!C195) -> Ferme Juniper (2017) inc. | D195: =IF(LEN('Détail des projets'!H195)=0,"",'Détail des projets'!H195) -> 07-Outaouais | E195: =IF(LEN('Détail des projets'!L195)=0,"",'Détail des projets'!L195) -> 33750 | F195: 66.40003358 | G195: À la fin du projet (suite au dernier versement) | H195: 25.41414377 | I195: QC-Québec | J195: Oui | K195: 20 | L195: oui | M195: non | N195: Non | O195: Oui | P195: 0 | Q195: 0 | R195: 0 | S195: 0 | T195: 0 | U195: 0
B196: =IF(LEN('Détail des projets'!B196)=0,"",'Détail des projets'!B196) -> Implantation et électrification de nos chariots élévateurs | C196: =IF(LEN('Détail des projets'!C196)=0,"",'Détail des projets'!C196) -> Métal Bernard inc. | D196: =IF(LEN('Détail des projets'!H196)=0,"",'Détail des projets'!H196) -> 12-Chaudière-Appalaches | E196: =IF(LEN('Détail des projets'!L196)=0,"",'Détail des projets'!L196) -> 69382.89 | F196: 55.506312 | G196: À la fin du projet (suite au dernier versement) | H196: 50 | I196: QC-Québec | J196: Oui | K196: 25 | L196: non | M196: oui | N196: Non | O196: Oui | P196: 0 | Q196: 0 | R196: 0 | S196: 0 | T196: 0 | U196: 0
B197: =IF(LEN('Détail des projets'!B197)=0,"",'Détail des projets'!B197) -> Construction d'un bâtiment d'élevage avec échangeurs de chaleur | C197: =IF(LEN('Détail des projets'!C197)=0,"",'Détail des projets'!C197) -> Ferme Porc Saint SENC | D197: =IF(LEN('Détail des projets'!H197)=0,"",'Détail des projets'!H197) -> 05-Estrie | E197: =IF(LEN('Détail des projets'!L197)=0,"",'Détail des projets'!L197) -> 45809.97 | F197: 36.64797878 | G197: À la fin du projet (suite au dernier versement) | H197: 62.49999526 | I197: QC-Québec | J197: Oui | K197: 20 | L197: oui | M197: non | N197: Non | O197: Oui | P197: 0 | Q197: 0 | R197: 0 | S197: 0 | T197: 0 | U197: 0
B198: =IF(LEN('Détail des projets'!B198)=0,"",'Détail des projets'!B198) -> Conversion d'un système de pompage | C198: =IF(LEN('Détail des projets'!C198)=0,"",'Détail des projets'!C198) -> Gosselin G2 inc. | D198: =IF(LEN('Détail des projets'!H198)=0,"",'Détail des projets'!H198) -> 14-Lanaudière | E198: =IF(LEN('Détail des projets'!L198)=0,"",'Détail des projets'!L198) -> 38062.5 | F198: 31.30255125 | G198: À la fin du projet (suite au dernier versement) | H198: 48.63820804 | I198: QC-Québec | J198: Oui | K198: 25 | L198: non | M198: oui | N198: Non | O198: Oui | P198: 0 | Q198: 0 | R198: 0 | S198: 0 | T198: 0 | U198: 0
B199: =IF(LEN('Détail des projets'!B199)=0,"",'Détail des projets'!B199) -> Optimisation de la centrale d’enrobés bitumineux par vis de préchauffage du GBR | C199: =IF(LEN('Détail des projets'!C199)=0,"",'Détail des projets'!C199) -> Usine d'asphalte Ali inc. | D199: =IF(LEN('Détail des projets'!H199)=0,"",'Détail des projets'!H199) -> 16-Montérégie | E199: =IF(LEN('Détail des projets'!L199)=0,"",'Détail des projets'!L199) -> 322835.14 | F199: 645.6702792 | G199: À la fin du projet (suite au dernier versement) | H199: 20.00000002 | I199: QC-Québec | J199: Oui | K199: 25 | L199: oui | M199: non | N199: Non | O199: Oui | P199: 0 | Q199: 0 | R199: 0 | S199: 0 | T199: 0 | U199: 0
B200: =IF(LEN('Détail des projets'!B200)=0,"",'Détail des projets'!B200) -> Ajout d'échangeurs de chaleur dans un bâtiment d'élevage de volailles | C200: =IF(LEN('Détail des projets'!C200)=0,"",'Détail des projets'!C200) -> Les Fermes Meier (9032-5085 Québec inc.) | D200: =IF(LEN('Détail des projets'!H200)=0,"",'Détail des projets'!H200) -> 05-Estrie | E200: =IF(LEN('Détail des projets'!L200)=0,"",'Détail des projets'!L200) -> 55545.87 | F200: 44.43669891 | G200: À la fin du projet (suite au dernier versement) | H200: 62.49999591 | I200: QC-Québec | J200: Oui | K200: 20 | L200: oui | M200: non | N200: Non | O200: Oui | P200: 0 | Q200: 0 | R200: 0 | S200: 0 | T200: 0 | U200: 0
B201: =IF(LEN('Détail des projets'!B201)=0,"",'Détail des projets'!B201) -> Installation d'une nouvelle chaudière à vapeur | C201: =IF(LEN('Détail des projets'!C201)=0,"",'Détail des projets'!C201) -> Soylutions inc. | D201: =IF(LEN('Détail des projets'!H201)=0,"",'Détail des projets'!H201) -> 03-Capitale-Nationale | E201: =IF(LEN('Détail des projets'!L201)=0,"",'Détail des projets'!L201) -> 185978.67 | F201: 424.6038875 | G201: À la fin du projet (suite au dernier versement) | H201: 21.90025521 | I201: QC-Québec | J201: Oui | K201: 20 | L201: oui | M201: non | N201: Non | O201: Oui | P201: 0 | Q201: 0 | R201: 0 | S201: 0 | T201: 0 | U201: 0
B202: =IF(LEN('Détail des projets'!B202)=0,"",'Détail des projets'!B202) -> Projet d'économie d'énergie de Montréal Chrome | C202: =IF(LEN('Détail des projets'!C202)=0,"",'Détail des projets'!C202) -> Placage au chrome de Montréal inc. | D202: =IF(LEN('Détail des projets'!H202)=0,"",'Détail des projets'!H202) -> 06-Montréal | E202: =IF(LEN('Détail des projets'!L202)=0,"",'Détail des projets'!L202) -> 261544.56 | F202: 238.5631622 | G202: À la fin du projet (suite au dernier versement) | H202: 54.81662751 | I202: QC-Québec | J202: Oui | K202: 20 | L202: oui | M202: non | N202: Non | O202: Oui | P202: 0 | Q202: 0 | R202: 0 | S202: 0 | T202: 0 | U202: 0
B203: =IF(LEN('Détail des projets'!B203)=0,"",'Détail des projets'!B203) -> « SCORE » - Saumure et Chaufferie : optimisation des ressources énergétiques | C203: =IF(LEN('Détail des projets'!C203)=0,"",'Détail des projets'!C203) -> Axiall Canada, Inc. | D203: =IF(LEN('Détail des projets'!H203)=0,"",'Détail des projets'!H203) -> 16-Montérégie | E203: =IF(LEN('Détail des projets'!L203)=0,"",'Détail des projets'!L203) -> 388613.62 | F203: 777.227243 | G203: À la fin du projet (suite au dernier versement) | H203: 24.9999999 | I203: QC-Québec | J203: Oui | K203: 20 | L203: oui | M203: non | N203: Non | O203: Oui | P203: 0 | Q203: 0 | R203: 0 | S203: 0 | T203: 0 | U203: 0
B204: =IF(LEN('Détail des projets'!B204)=0,"",'Détail des projets'!B204) -> Infasco - Projet écoénergétique | C204: =IF(LEN('Détail des projets'!C204)=0,"",'Détail des projets'!C204) -> Ifastgroupe 2004 L.P. agissant par son commanditaire Heico 2004 Member Inc. | D204: =IF(LEN('Détail des projets'!H204)=0,"",'Détail des projets'!H204) -> 16-Montérégie | E204: =IF(LEN('Détail des projets'!L204)=0,"",'Détail des projets'!L204) -> 2118861.89 | F204: 3531.436482 | G204: À la fin du projet (suite au dernier versement) | H204: 30.35557598 | I204: QC-Québec | J204: Oui | K204: 19.76572609 | L204: oui | M204: non | N204: Non | O204: Oui | P204: 0 | Q204: 0 | R204: 0 | S204: 0 | T204: 0 | U204: 0
B205: =IF(LEN('Détail des projets'!B205)=0,"",'Détail des projets'!B205) -> Sivaco - Projet écoénergétique | C205: =IF(LEN('Détail des projets'!C205)=0,"",'Détail des projets'!C205) -> Sivaco Wire Group 2004 L.P. agissant par son commenditaire Heico 2004 Member, inc. | D205: =IF(LEN('Détail des projets'!H205)=0,"",'Détail des projets'!H205) -> 16-Montérégie | E205: =IF(LEN('Détail des projets'!L205)=0,"",'Détail des projets'!L205) -> 2228147.97 | F205: 3713.57994 | G205: À la fin du projet (suite au dernier versement) | H205: 30.00000008 | I205: QC-Québec | J205: Oui | K205: 20 | L205: oui | M205: non | N205: Non | O205: Oui | P205: 0 | Q205: 0 | R205: 0 | S205: 0 | T205: 0 | U205: 0
B206: =IF(LEN('Détail des projets'!B206)=0,"",'Détail des projets'!B206) -> Installation d'échangeurs de chaleur dans un bâtiment d'élevage de volailles | C206: =IF(LEN('Détail des projets'!C206)=0,"",'Détail des projets'!C206) -> Ferme N.C. Trottier inc. | D206: =IF(LEN('Détail des projets'!H206)=0,"",'Détail des projets'!H206) -> 17-Centre-du-Québec | E206: =IF(LEN('Détail des projets'!L206)=0,"",'Détail des projets'!L206) -> 72879.27 | F206: 58.3034148 | G206: À la fin du projet (suite au dernier versement) | H206: 62.50000129 | I206: QC-Québec | J206: Oui | K206: 20 | L206: oui | M206: non | N206: Non | O206: Oui | P206: 0 | Q206: 0 | R206: 0 | S206: 0 | T206: 0 | U206: 0
B207: =IF(LEN('Détail des projets'!B207)=0,"",'Détail des projets'!B207) -> Conversion de la chaudière au mazout no 2 vers l'électricité | C207: =IF(LEN('Détail des projets'!C207)=0,"",'Détail des projets'!C207) -> La Meunerie St-Patrice inc. | D207: =IF(LEN('Détail des projets'!H207)=0,"",'Détail des projets'!H207) -> 12-Chaudière-Appalaches | E207: =IF(LEN('Détail des projets'!L207)=0,"",'Détail des projets'!L207) -> 775042.5 | F207: 810.8458916 | G207: À la fin du projet (suite au dernier versement) | H207: 31.86147981 | I207: QC-Québec | J207: Oui | K207: 30 | L207: non | M207: oui | N207: Non | O207: Oui | P207: 0 | Q207: 0 | R207: 0 | S207: 0 | T207: 0 | U207: 0
B208: =IF(LEN('Détail des projets'!B208)=0,"",'Détail des projets'!B208) -> Chauffage de l’air du bâtiment par récupération de chaleur | C208: =IF(LEN('Détail des projets'!C208)=0,"",'Détail des projets'!C208) -> Magotteaux ltée | D208: =IF(LEN('Détail des projets'!H208)=0,"",'Détail des projets'!H208) -> 05-Estrie | E208: =IF(LEN('Détail des projets'!L208)=0,"",'Détail des projets'!L208) -> 1075950 | F208: 870.6383317 | G208: À la fin du projet (suite au dernier versement) | H208: 61.79087003 | I208: QC-Québec | J208: Oui | K208: 20 | L208: oui | M208: non | N208: Non | O208: Oui | P208: 0 | Q208: 0 | R208: 0 | S208: 0 | T208: 0 | U208: 0
B209: =IF(LEN('Détail des projets'!B209)=0,"",'Détail des projets'!B209) -> Installation de deux tamiseurs Triple-deck pour faire une ségrégation du lit de boulettes | C209: =IF(LEN('Détail des projets'!C209)=0,"",'Détail des projets'!C209) -> ArcelorMittal Exploitation Minière Canada s.e.n.c. | D209: =IF(LEN('Détail des projets'!H209)=0,"",'Détail des projets'!H209) -> 09-Côte-Nord | E209: =IF(LEN('Détail des projets'!L209)=0,"",'Détail des projets'!L209) -> 5000000 | F209: 20246.53142 | G209: À la fin du projet (suite au dernier versement) | H209: 9.878235233 | I209: QC-Québec | J209: Oui | K209: 25 | L209: oui | M209: non | N209: Non | O209: Oui | P209: 0 | Q209: 0 | R209: 0 | S209: 0 | T209: 0 | U209: 0
B210: =IF(LEN('Détail des projets'!B210)=0,"",'Détail des projets'!B210) -> Arboria | C210: =IF(LEN('Détail des projets'!C210)=0,"",'Détail des projets'!C210) -> Association Forestière de Lanaudière | D210: =IF(LEN('Détail des projets'!H210)=0,"",'Détail des projets'!H210) -> 14-Lanaudière | E210: =IF(LEN('Détail des projets'!L210)=0,"",'Détail des projets'!L210) -> 19201.43 | F210: 15.36114477 | G210: À la fin du projet (suite au dernier versement) | H210: 62.49999687 | I210: QC-Québec | J210: Oui | K210: 20 | L210: non | M210: oui | N210: Non | O210: Oui | P210: 0 | Q210: 0 | R210: 0 | S210: 0 | T210: 0 | U210: 0
B211: =IF(LEN('Détail des projets'!B211)=0,"",'Détail des projets'!B211) -> Mur solaire, récupération de chaleur de compresseur et rideaux d'air | C211: =IF(LEN('Détail des projets'!C211)=0,"",'Détail des projets'!C211) -> Boccam inc. | D211: =IF(LEN('Détail des projets'!H211)=0,"",'Détail des projets'!H211) -> 12-Chaudière-Appalaches | E211: =IF(LEN('Détail des projets'!L211)=0,"",'Détail des projets'!L211) -> 87706.81 | F211: 70.16544383 | G211: À la fin du projet (suite au dernier versement) | H211: 65.98036184 | I211: QC-Québec | J211: Oui | K211: 18.94503212 | L211: oui | M211: non | N211: Non | O211: Oui | P211: 0 | Q211: 0 | R211: 0 | S211: 0 | T211: 0 | U211: 0
B212: =IF(LEN('Détail des projets'!B212)=0,"",'Détail des projets'!B212) -> Conversion du système de chauffage à combustibles fossiles par de la géothermie | C212: =IF(LEN('Détail des projets'!C212)=0,"",'Détail des projets'!C212) -> GM Modulaire (9419-4289 Québec inc.) | D212: =IF(LEN('Détail des projets'!H212)=0,"",'Détail des projets'!H212) -> 04-Mauricie | E212: =IF(LEN('Détail des projets'!L212)=0,"",'Détail des projets'!L212) -> 84399.75 | F212: 94.44903299 | G212: À la fin du projet (suite au dernier versement) | H212: 44.68 | I212: QC-Québec | J212: Oui | K212: 20 | L212: non | M212: oui | N212: Non | O212: Oui | P212: 0 | Q212: 0 | R212: 0 | S212: 0 | T212: 0 | U212: 0
B213: =IF(LEN('Détail des projets'!B213)=0,"",'Détail des projets'!B213) -> Installation d'un séchoir à grains | C213: =IF(LEN('Détail des projets'!C213)=0,"",'Détail des projets'!C213) -> Agri-Bienco inc. | D213: =IF(LEN('Détail des projets'!H213)=0,"",'Détail des projets'!H213) -> 05-Estrie | E213: =IF(LEN('Détail des projets'!L213)=0,"",'Détail des projets'!L213) -> 74638.14 | F213: 59.71050876 | G213: À la fin du projet (suite au dernier versement) | H213: 50.00000271 | I213: QC-Québec | J213: Oui | K213: 25 | L213: oui | M213: non | N213: Non | O213: Oui | P213: 0 | Q213: 0 | R213: 0 | S213: 0 | T213: 0 | U213: 0
B214: =IF(LEN('Détail des projets'!B214)=0,"",'Détail des projets'!B214) -> Conversion chauffage-CII- électrique | C214: =IF(LEN('Détail des projets'!C214)=0,"",'Détail des projets'!C214) -> Sablière BY inc. | D214: =IF(LEN('Détail des projets'!H214)=0,"",'Détail des projets'!H214) -> 02-Saguenay--Lac-Saint-Jean | E214: =IF(LEN('Détail des projets'!L214)=0,"",'Détail des projets'!L214) -> 13822 | F214: 18.77851718 | G214: À la fin du projet (suite au dernier versement) | H214: 36.80269286 | I214: QC-Québec | J214: Oui | K214: 20 | L214: oui | M214: non | N214: Non | O214: Oui | P214: 0 | Q214: 0 | R214: 0 | S214: 0 | T214: 0 | U214: 0
B215: =IF(LEN('Détail des projets'!B215)=0,"",'Détail des projets'!B215) -> Acériculture-Évaporateur électrique | C215: =IF(LEN('Détail des projets'!C215)=0,"",'Détail des projets'!C215) -> Érablière A. F. Sénéchal inc. | D215: =IF(LEN('Détail des projets'!H215)=0,"",'Détail des projets'!H215) -> 01-Bas-Saint-Laurent | E215: =IF(LEN('Détail des projets'!L215)=0,"",'Détail des projets'!L215) -> 42326.88 | F215: 32.2490462 | G215: À la fin du projet (suite au dernier versement) | H215: 65.62 | I215: QC-Québec | J215: Oui | K215: 20 | L215: oui | M215: non | N215: Non | O215: Oui | P215: 0 | Q215: 0 | R215: 0 | S215: 0 | T215: 0 | U215: 0
... 71 more rows

Sheet Adaptation
B2: =Utilitaire!E8 -> Plan pour une économie verte 2030 | H2: Adaptation | K2: =Accueil!D65 & " - " & Accueil!D53 -> MERN (SITE) - 1.4.2.1
K3: ="Action " & Accueil!D58 -> Action en cours
B5: Conseils de rédaction : | I5: Informations en date du : | L5: =Utilitaire!G6 -> 2022-03-31
B6: - Veuillez compléter cet onglet seulement pour les projets en adaptation aux changements climatiques qui sont lancés, le cas échéant.
B22: Informations en date du : | E22: 2022-03-31
B23: Lignes de l'onglet Détail des projets | C23: Nom du projet | D23: Étape d'adaptation | E23: Secteur | F23: Aléas climatiques | G23: Commentaires et précisions | H23: Région administrative
H24: (Détail des projets) | I24: Autre(s) région(s) concernées
B25: ='Détail des projets'!A25+24 -> 25 | C25: =IF(LEN('Détail des projets'!B25)>0,'Détail des projets'!B25,"") -> Frais de gestion et de coordination de l'action | H25: =IF(LEN('Détail des projets'!H25)>0,'Détail des projets'!H25,"") -> Sans objet
B26: ='Détail des projets'!A26+24 -> 26 | C26: =IF(LEN('Détail des projets'!B26)>0,'Détail des projets'!B26,"") -> Frais de gestion et de coordination de l'action | H26: =IF(LEN('Détail des projets'!H26)>0,'Détail des projets'!H26,"") -> Sans objet
B27: 27 | C27: =IF(LEN('Détail des projets'!B27)>0,'Détail des projets'!B27,"") -> 
B28: 28 | C28: =IF(LEN('Détail des projets'!B28)>0,'Détail des projets'!B28,"") -> RSI Environnement - Étude conversion énergétique | D28: Planification de la mise en œuvre | H28: 02-Saguenay--Lac-Saint-Jean
B29: 29 | C29: =IF(LEN('Détail des projets'!B29)>0,'Détail des projets'!B29,"") -> Excavation Alain Lemay - Audit énergétique, récupération de chaleur et optimisation énergétique | D29: Planification de la mise en œuvre | H29: 17-Centre-du-Québec
B30: 30 | C30: =IF(LEN('Détail des projets'!B30)>0,'Détail des projets'!B30,"") -> Études comparatives en énergie 010501 | D30: Planification de la mise en œuvre | H30: 10-Nord-du-Québec
B31: 31 | C31: =IF(LEN('Détail des projets'!B31)>0,'Détail des projets'!B31,"") -> Étude du chauffage des serres du Parc Marie-Victorin | D31: Planification de la mise en œuvre | H31: 17-Centre-du-Québec
B32: 32 | C32: =IF(LEN('Détail des projets'!B32)>0,'Détail des projets'!B32,"") -> Analyse bilan d'air - Usine Essity | D32: Planification de la mise en œuvre | H32: 17-Centre-du-Québec
B33: 33 | C33: =IF(LEN('Détail des projets'!B33)>0,'Détail des projets'!B33,"") -> Étude en efficacité énergétique | D33: Planification de la mise en œuvre | H33: 02-Saguenay--Lac-Saint-Jean
B34: 34 | C34: =IF(LEN('Détail des projets'!B34)>0,'Détail des projets'!B34,"") -> Audit des installations vapeur/condensat et des utilités thermiques | D34: Planification de la mise en œuvre | H34: 17-Centre-du-Québec
B35: 35 | C35: =IF(LEN('Détail des projets'!B35)>0,'Détail des projets'!B35,"") -> Étude pour la réduction de la consommation d'énergie et d'émission de GES | D35: Planification de la mise en œuvre | H35: 12-Chaudière-Appalaches
B36: 36 | C36: =IF(LEN('Détail des projets'!B36)>0,'Détail des projets'!B36,"") -> Étude IP - Phase II | D36: Planification de la mise en œuvre | H36: 16-Montérégie
B37: 37 | C37: =IF(LEN('Détail des projets'!B37)>0,'Détail des projets'!B37,"") -> Étude en intégration énergétique par analyse de pincement | D37: Planification de la mise en œuvre | H37: 17-Centre-du-Québec
B38: 38 | C38: =IF(LEN('Détail des projets'!B38)>0,'Détail des projets'!B38,"") -> Étude écoénergétique à la teinturerie Cansew | D38: Planification de la mise en œuvre | H38: 06-Montréal
B39: 39 | C39: =IF(LEN('Détail des projets'!B39)>0,'Détail des projets'!B39,"") -> Étude d’efficacité énergétique des procédés et utilités | D39: Planification de la mise en œuvre | H39: 06-Montréal
B40: 40 | C40: =IF(LEN('Détail des projets'!B40)>0,'Détail des projets'!B40,"") -> Conversion à l'hydrogène des fours du Centre de Coulée de Baie-Comeau | D40: Planification de la mise en œuvre | H40: 09-Côte-Nord
B41: 41 | C41: =IF(LEN('Détail des projets'!B41)>0,'Détail des projets'!B41,"") -> Étude d’efficacité énergétique | D41: Planification de la mise en œuvre | H41: 12-Chaudière-Appalaches
B42: 42 | C42: =IF(LEN('Détail des projets'!B42)>0,'Détail des projets'!B42,"") -> Analyse énergétique et potentiel de récupération | D42: Planification de la mise en œuvre | H42: 16-Montérégie
B43: 43 | C43: =IF(LEN('Détail des projets'!B43)>0,'Détail des projets'!B43,"") -> Étude de faisabilité - remplacement de la chaudière et mesures d'efficacité énergétique | D43: Planification de la mise en œuvre | H43: 12-Chaudière-Appalaches
B44: 44 | C44: =IF(LEN('Détail des projets'!B44)>0,'Détail des projets'!B44,"") -> Étude énergétique de récupération de chaleur du système de refroidissement | D44: Planification de la mise en œuvre | H44: 06-Montréal
B45: 45 | C45: =IF(LEN('Détail des projets'!B45)>0,'Détail des projets'!B45,"") -> Implantation d'un système de chauffage de serre | D45: Planification de la mise en œuvre | H45: 05-Estrie
B46: 46 | C46: =IF(LEN('Détail des projets'!B46)>0,'Détail des projets'!B46,"") -> Analyse des opportunités de réduction des GES de 2021 | D46: Planification de la mise en œuvre | H46: 16-Montérégie
B47: 47 | C47: =IF(LEN('Détail des projets'!B47)>0,'Détail des projets'!B47,"") -> Opportunités de réduction de coûts et de GES - MdFQ - Lac Bloom | D47: Planification de la mise en œuvre | H47: 09-Côte-Nord
B48: 48 | C48: =IF(LEN('Détail des projets'!B48)>0,'Détail des projets'!B48,"") -> Étude pour une boucle d’eau de chauffage par géothermie et efficacité énergétique en serre | D48: Planification de la mise en œuvre | H48: 05-Estrie
B49: 49 | C49: =IF(LEN('Détail des projets'!B49)>0,'Détail des projets'!B49,"") -> Amélioration de la fiabilité des bassins | D49: Planification de la mise en œuvre | H49: 15-Laurentides
B50: 50 | C50: =IF(LEN('Détail des projets'!B50)>0,'Détail des projets'!B50,"") -> Étude d'intégration de procédés | D50: Planification de la mise en œuvre | H50: 11-Gaspésie--Îles-de-la-Madeleine
B51: 51 | C51: =IF(LEN('Détail des projets'!B51)>0,'Détail des projets'!B51,"") -> 
B52: 52 | C52: =IF(LEN('Détail des projets'!B52)>0,'Détail des projets'!B52,"") -> Économies d'énergie - Les Machineries Pronovost inc. | D52: Implantation de solutions | H52: 04-Mauricie
B53: 53 | C53: =IF(LEN('Détail des projets'!B53)>0,'Détail des projets'!B53,"") -> Efficacité et conversion énergétiques chez Séchoirs St-Élisabeth | D53: Implantation de solutions | H53: 14-Lanaudière
B54: 54 | C54: =IF(LEN('Détail des projets'!B54)>0,'Détail des projets'!B54,"") -> Construction d’une ligne électrique en remplacement de deux génératrices pour 9246-7984 Québec inc. | D54: Implantation de solutions | H54: 17-Centre-du-Québec
B55: 55 | C55: =IF(LEN('Détail des projets'!B55)>0,'Détail des projets'!B55,"") -> Ventilation de l'entrepôt de maintenance de Kerry Ste-Claire | D55: Implantation de solutions | H55: 12-Chaudière-Appalaches
B56: 56 | C56: =IF(LEN('Détail des projets'!B56)>0,'Détail des projets'!B56,"") -> Construction Agropod Verchères - Phase 3 | D56: Implantation de solutions | H56: 16-Montérégie
B57: 57 | C57: =IF(LEN('Détail des projets'!B57)>0,'Détail des projets'!B57,"") -> Agropod Partnership inc. | D57: Implantation de solutions | H57: 16-Montérégie
B58: 58 | C58: =IF(LEN('Détail des projets'!B58)>0,'Détail des projets'!B58,"") -> Rideaux d'air - Agrimétal inc. | D58: Implantation de solutions | H58: 17-Centre-du-Québec
B59: 59 | C59: =IF(LEN('Détail des projets'!B59)>0,'Détail des projets'!B59,"") -> Récupération de chaleur pour la réduction de la consommation du propane | D59: Implantation de solutions | H59: 12-Chaudière-Appalaches
B60: 60 | C60: =IF(LEN('Détail des projets'!B60)>0,'Détail des projets'!B60,"") -> Optimisation du système de traitement des COV des ateliers de peinture du bâtiment 318 | D60: Implantation de solutions | H60: 06-Montréal
B61: 61 | C61: =IF(LEN('Détail des projets'!B61)>0,'Détail des projets'!B61,"") -> Nouveau bâtiment de serre intérieure | D61: Implantation de solutions | H61: 07-Outaouais
B62: 62 | C62: =IF(LEN('Détail des projets'!B62)>0,'Détail des projets'!B62,"") -> Viandes Première - Agrandissement | D62: Implantation de solutions | H62: 16-Montérégie
B63: 63 | C63: =IF(LEN('Détail des projets'!B63)>0,'Détail des projets'!B63,"") -> Implantation d’un séchoir électrique sur rail | D63: Implantation de solutions | H63: 17-Centre-du-Québec
B64: 64 | C64: =IF(LEN('Détail des projets'!B64)>0,'Détail des projets'!B64,"") -> Serre agricole, efficacité énergétique et conversion à la biomasse résiduelle | D64: Implantation de solutions | H64: 05-Estrie
B65: 65 | C65: =IF(LEN('Détail des projets'!B65)>0,'Détail des projets'!B65,"") -> Installation de thermopompes pour le chauffage | D65: Implantation de solutions | H65: 17-Centre-du-Québec
B66: 66 | C66: =IF(LEN('Détail des projets'!B66)>0,'Détail des projets'!B66,"") -> Amélioration de l'efficacité énergétique | D66: Implantation de solutions | H66: 07-Outaouais
B67: 67 | C67: =IF(LEN('Détail des projets'!B67)>0,'Détail des projets'!B67,"") -> Serre agricole de micropousses – Efficacité énergétique | D67: Implantation de solutions | H67: 15-Laurentides
B68: 68 | C68: =IF(LEN('Détail des projets'!B68)>0,'Détail des projets'!B68,"") -> Électrification d'une cannebergière, phase II | D68: Implantation de solutions | H68: 17-Centre-du-Québec
B69: 69 | C69: =IF(LEN('Détail des projets'!B69)>0,'Détail des projets'!B69,"") -> Agrandissement de 3 hectares, efficacité énergétique et chauffage à la biomasse | D69: Implantation de solutions | H69: 15-Laurentides
B70: 70 | C70: =IF(LEN('Détail des projets'!B70)>0,'Détail des projets'!B70,"") -> Échangeur de chaleur | D70: Implantation de solutions | H70: 17-Centre-du-Québec
B71: 71 | C71: =IF(LEN('Détail des projets'!B71)>0,'Détail des projets'!B71,"") -> Remplacement de deux échangeurs de chaleur | D71: Implantation de solutions | H71: 01-Bas-Saint-Laurent
B72: 72 | C72: =IF(LEN('Détail des projets'!B72)>0,'Détail des projets'!B72,"") -> Écrans thermiques - Phase 3 | D72: Implantation de solutions | H72: 02-Saguenay--Lac-Saint-Jean
B73: 73 | C73: =IF(LEN('Détail des projets'!B73)>0,'Détail des projets'!B73,"") -> Valorisation de rejets thermiques industriels - phase 3 | D73: Implantation de solutions | H73: 02-Saguenay--Lac-Saint-Jean
B74: 74 | C74: =IF(LEN('Détail des projets'!B74)>0,'Détail des projets'!B74,"") -> Acériculture-Évaporateur électrique | D74: Implantation de solutions | H74: 12-Chaudière-Appalaches
B75: 75 | C75: =IF(LEN('Détail des projets'!B75)>0,'Détail des projets'!B75,"") -> Système Thermo PVT, chauffage de l’eau de lavage avec récupération de chaleur sur le procédé de refroidissement du séchoir de canneberges | D75: Implantation de solutions | H75: 17-Centre-du-Québec
B76: 76 | C76: =IF(LEN('Détail des projets'!B76)>0,'Détail des projets'!B76,"") -> Brûleurs régénératifs Laterrière | D76: Implantation de solutions | H76: 02-Saguenay--Lac-Saint-Jean
B77: 77 | C77: =IF(LEN('Détail des projets'!B77)>0,'Détail des projets'!B77,"") -> Deux murs solaires et un rideau d'air | D77: Implantation de solutions | H77: 06-Montréal
B78: 78 | C78: =IF(LEN('Détail des projets'!B78)>0,'Détail des projets'!B78,"") -> Mur solaire et rideau d'air | D78: Implantation de solutions | H78: 06-Montréal
B79: 79 | C79: =IF(LEN('Détail des projets'!B79)>0,'Détail des projets'!B79,"") -> Remplacement d'un concasseur diesel par un nouveau concasseur électrique | D79: Implantation de solutions | H79: 04-Mauricie
B80: 80 | C80: =IF(LEN('Détail des projets'!B80)>0,'Détail des projets'!B80,"") -> Remplacement d'un convoyeur empileur au diesel par un convoyeur électrique | D80: Implantation de solutions | H80: 04-Mauricie
B81: 81 | C81: =IF(LEN('Détail des projets'!B81)>0,'Détail des projets'!B81,"") -> Remplacement d'un tamiseur rotatif Laprade diesel par un tamiseur rotatif Laprade électrique | D81: Implantation de solutions | H81: 04-Mauricie
B82: 82 | C82: =IF(LEN('Détail des projets'!B82)>0,'Détail des projets'!B82,"") -> Remplacement d'un tamiseur McCloskey diesel par un tamiseur bivi-TEC électrique | D82: Implantation de solutions | H82: 04-Mauricie
B83: 83 | C83: =IF(LEN('Détail des projets'!B83)>0,'Détail des projets'!B83,"") -> Remplacement d'un tamiseur Powerscreen diesel par un tamiseur Midwestern électrique | D83: Implantation de solutions | H83: 04-Mauricie
B84: 84 | C84: =IF(LEN('Détail des projets'!B84)>0,'Détail des projets'!B84,"") -> Remplacement tamiseur rotatif Vermeer diesel par tamiseur rotatif Vermeer électrique | D84: Implantation de solutions | H84: 04-Mauricie
B85: 85 | C85: =IF(LEN('Détail des projets'!B85)>0,'Détail des projets'!B85,"") -> Récupération de chaleur sur les refroidisseurs | D85: Implantation de solutions | H85: 03-Capitale-Nationale
B86: 86 | C86: =IF(LEN('Détail des projets'!B86)>0,'Détail des projets'!B86,"") -> Installation d'échangeurs de chaleur | D86: Implantation de solutions | H86: 16-Montérégie
B87: 87 | C87: =IF(LEN('Détail des projets'!B87)>0,'Détail des projets'!B87,"") -> Acériculture-Évaporateur électrique | D87: Implantation de solutions | H87: 01-Bas-Saint-Laurent
B88: 88 | C88: =IF(LEN('Détail des projets'!B88)>0,'Détail des projets'!B88,"") -> Serre agricole de culture mixte – Efficacité énergétique | D88: Implantation de solutions | H88: 02-Saguenay--Lac-Saint-Jean
B89: 89 | C89: =IF(LEN('Détail des projets'!B89)>0,'Détail des projets'!B89,"") -> Électrification d’un deuxième séchoir sur rail | D89: Implantation de solutions | H89: 11-Gaspésie--Îles-de-la-Madeleine
B90: 90 | C90: =IF(LEN('Détail des projets'!B90)>0,'Détail des projets'!B90,"") -> Acériculture-Évaporateur électrique | D90: Implantation de solutions | H90: 05-Estrie
B91: 91 | C91: =IF(LEN('Détail des projets'!B91)>0,'Détail des projets'!B91,"") -> Électrification du chauffage des unités air make-up | D91: Implantation de solutions | H91: 02-Saguenay--Lac-Saint-Jean
B92: 92 | C92: =IF(LEN('Détail des projets'!B92)>0,'Détail des projets'!B92,"") -> Économie d'énergie | D92: Implantation de solutions | H92: 05-Estrie
B93: 93 | C93: =IF(LEN('Détail des projets'!B93)>0,'Détail des projets'!B93,"") -> Conversion à la biomasse résiduelle et implantation d’écrans thermiques en serres | D93: Implantation de solutions | H93: 14-Lanaudière
B94: 94 | C94: =IF(LEN('Détail des projets'!B94)>0,'Détail des projets'!B94,"") -> Rideaux d'air | D94: Implantation de solutions | H94: 17-Centre-du-Québec
B95: 95 | C95: =IF(LEN('Détail des projets'!B95)>0,'Détail des projets'!B95,"") -> Acériculture-Évaporateur électrique | D95: Implantation de solutions | H95: 17-Centre-du-Québec
B96: 96 | C96: =IF(LEN('Détail des projets'!B96)>0,'Détail des projets'!B96,"") -> Optimisation énergétique des bassins de galvanisation | D96: Implantation de solutions | H96: 06-Montréal
B97: 97 | C97: =IF(LEN('Détail des projets'!B97)>0,'Détail des projets'!B97,"") -> Implantation d'une unité de traitement d'air efficace | D97: Implantation de solutions | H97: 16-Montérégie
B98: 98 | C98: =IF(LEN('Détail des projets'!B98)>0,'Détail des projets'!B98,"") -> Construction d'une nouvelle usine pour les produits pour la peau à base de lait de chèvre | D98: Implantation de solutions | H98: 17-Centre-du-Québec
B99: 99 | C99: =IF(LEN('Détail des projets'!B99)>0,'Détail des projets'!B99,"") -> Conversion électrique de chariots élévateurs | D99: Implantation de solutions | H99: 12-Chaudière-Appalaches
B100: 100 | C100: =IF(LEN('Détail des projets'!B100)>0,'Détail des projets'!B100,"") -> Remplacement de chariots élévateurs | D100: Implantation de solutions | H100: 12-Chaudière-Appalaches
B101: 101 | C101: =IF(LEN('Détail des projets'!B101)>0,'Détail des projets'!B101,"") -> Mur solaire | D101: Implantation de solutions | H101: 12-Chaudière-Appalaches
B102: 102 | C102: =IF(LEN('Détail des projets'!B102)>0,'Détail des projets'!B102,"") -> Mur solaire | D102: Implantation de solutions | H102: 17-Centre-du-Québec
B103: 103 | C103: =IF(LEN('Détail des projets'!B103)>0,'Détail des projets'!B103,"") -> Construction d'une usine de cannabis | D103: Implantation de solutions | H103: 12-Chaudière-Appalaches
B104: 104 | C104: =IF(LEN('Détail des projets'!B104)>0,'Détail des projets'!B104,"") -> Mur solaire | D104: Implantation de solutions | H104: 14-Lanaudière
B105: 105 | C105: =IF(LEN('Détail des projets'!B105)>0,'Détail des projets'!B105,"") -> Réduction des GES par la technique de l'osmose inverse | D105: Implantation de solutions | H105: 02-Saguenay--Lac-Saint-Jean
B106: 106 | C106: =IF(LEN('Détail des projets'!B106)>0,'Détail des projets'!B106,"") -> Ajout d'échangeurs de chaleur dans des bâtiments d'élevage de volailles | D106: Implantation de solutions | H106: 16-Montérégie
B107: 107 | C107: =IF(LEN('Détail des projets'!B107)>0,'Détail des projets'!B107,"") -> Alimentation de l'usine en vapeur à faibles émissions de GES - Projet révisé | D107: Implantation de solutions | H107: 05-Estrie
B108: 108 | C108: =IF(LEN('Détail des projets'!B108)>0,'Détail des projets'!B108,"") -> Économie d'énergie | D108: Implantation de solutions | H108: 06-Montréal
B109: 109 | C109: =IF(LEN('Détail des projets'!B109)>0,'Détail des projets'!B109,"") -> Alimentation au procédé et cascade | D109: Implantation de solutions | H109: 06-Montréal
B110: 110 | C110: =IF(LEN('Détail des projets'!B110)>0,'Détail des projets'!B110,"") -> Ajout d'échangeurs de chaleur dans des bâtiments d'élevage de volailles | D110: Implantation de solutions | H110: 16-Montérégie
B111: 111 | C111: =IF(LEN('Détail des projets'!B111)>0,'Détail des projets'!B111,"") -> Ajout d'échangeurs de chaleur dans des bâtiments d'élevage de volailles | D111: Implantation de solutions | H111: 05-Estrie
B112: 112 | C112: =IF(LEN('Détail des projets'!B112)>0,'Détail des projets'!B112,"") -> Remplacement d'une génératrice au diesel pour la production de granulats par une entrée électrique | D112: Implantation de solutions | H112: 12-Chaudière-Appalaches
B113: 113 | C113: =IF(LEN('Détail des projets'!B113)>0,'Détail des projets'!B113,"") -> Conversion électrique des systèmes de pompage (diesel) pour l'irrigation des petits fruits | D113: Implantation de solutions | H113: 03-Capitale-Nationale
B114: 114 | C114: =IF(LEN('Détail des projets'!B114)>0,'Détail des projets'!B114,"") -> Acériculture-Évaporateur électrique | D114: Implantation de solutions | H114: 16-Montérégie
B115: 115 | C115: =IF(LEN('Détail des projets'!B115)>0,'Détail des projets'!B115,"") -> Serre agricole de culture mixte – Efficacité énergétique - Écrans thermiques | D115: Implantation de solutions | H115: 01-Bas-Saint-Laurent
B116: 116 | C116: =IF(LEN('Détail des projets'!B116)>0,'Détail des projets'!B116,"") -> Mur solaire | D116: Implantation de solutions | H116: 04-Mauricie
B117: 117 | C117: =IF(LEN('Détail des projets'!B117)>0,'Détail des projets'!B117,"") -> Serre-Conversion chauffage-CII- électrique | D117: Implantation de solutions | H117: 05-Estrie
B118: 118 | C118: =IF(LEN('Détail des projets'!B118)>0,'Détail des projets'!B118,"") -> Installation d'un Flu-Ace et de trappes à vapeur Venturi | D118: Implantation de solutions | H118: 03-Capitale-Nationale
B119: 119 | C119: =IF(LEN('Détail des projets'!B119)>0,'Détail des projets'!B119,"") -> Optimisation du réseau de vapeur et remplacement de la turbine à vapeur | D119: Implantation de solutions | H119: 03-Capitale-Nationale
B120: 120 | C120: =IF(LEN('Détail des projets'!B120)>0,'Détail des projets'!B120,"") -> Économie d'énergie | D120: Implantation de solutions | H120: 12-Chaudière-Appalaches
B121: 121 | C121: =IF(LEN('Détail des projets'!B121)>0,'Détail des projets'!B121,"") -> Économie d'énergie | D121: Implantation de solutions | H121: 12-Chaudière-Appalaches
B122: 122 | C122: =IF(LEN('Détail des projets'!B122)>0,'Détail des projets'!B122,"") -> Serre-Conversion chauffage-CII- électrique | D122: Implantation de solutions | H122: 16-Montérégie
B123: 123 | C123: =IF(LEN('Détail des projets'!B123)>0,'Détail des projets'!B123,"") -> Construction Agropod Verchères | D123: Implantation de solutions | H123: 16-Montérégie
B124: 124 | C124: =IF(LEN('Détail des projets'!B124)>0,'Détail des projets'!B124,"") -> Conversion du chauffage à la géothermie | D124: Implantation de solutions | H124: 14-Lanaudière
B125: 125 | C125: =IF(LEN('Détail des projets'!B125)>0,'Détail des projets'!B125,"") -> Chauffage solaire sur l'agrandissement de l'usine Matritech | D125: Implantation de solutions | H125: 17-Centre-du-Québec
B126: 126 | C126: =IF(LEN('Détail des projets'!B126)>0,'Détail des projets'!B126,"") -> Serre-Conversion chauffage-CII- électrique | D126: Implantation de solutions | H126: 11-Gaspésie--Îles-de-la-Madeleine
B127: 127 | C127: =IF(LEN('Détail des projets'!B127)>0,'Détail des projets'!B127,"") -> Boucle de récupération de chaleur au glycol pour chauffage et préchauffage divers | D127: Implantation de solutions | H127: 05-Estrie
B128: 128 | C128: =IF(LEN('Détail des projets'!B128)>0,'Détail des projets'!B128,"") -> Remplacement de deux séchoirs à grains | D128: Implantation de solutions | H128: 17-Centre-du-Québec
B129: 129 | C129: =IF(LEN('Détail des projets'!B129)>0,'Détail des projets'!B129,"") -> Plan de séchage de grains | D129: Implantation de solutions | H129: 17-Centre-du-Québec
B130: 130 | C130: =IF(LEN('Détail des projets'!B130)>0,'Détail des projets'!B130,"") -> Implantation de deux séchoirs fixes électriques | D130: Implantation de solutions | H130: 03-Capitale-Nationale
B131: 131 | C131: =IF(LEN('Détail des projets'!B131)>0,'Détail des projets'!B131,"") -> Cannasher - Récupération de chaleur du procédé | D131: Implantation de solutions | H131: 05-Estrie
B132: 132 | C132: =IF(LEN('Détail des projets'!B132)>0,'Détail des projets'!B132,"") -> Conversion électrique des systèmes de pompage (diesel) pour l'irrigation des petits fruits | D132: Implantation de solutions | H132: 03-Capitale-Nationale
B133: 133 | C133: =IF(LEN('Détail des projets'!B133)>0,'Détail des projets'!B133,"") -> Ajout d'une chaudière électrique de 1250 kW pour utilisation hors-pointe | D133: Implantation de solutions | H133: 12-Chaudière-Appalaches
B134: 134 | C134: =IF(LEN('Détail des projets'!B134)>0,'Détail des projets'!B134,"") -> Construction d'un complexe de serres et implantation de mesures d’efficacité énergétique | D134: Implantation de solutions | H134: 15-Laurentides
B135: 135 | C135: =IF(LEN('Détail des projets'!B135)>0,'Détail des projets'!B135,"") -> Acériculture-Évaporateur électrique | D135: Implantation de solutions | H135: 12-Chaudière-Appalaches
B136: 136 | C136: =IF(LEN('Détail des projets'!B136)>0,'Détail des projets'!B136,"") -> Remplacement du brûleur Hauck | D136: Implantation de solutions | H136: 01-Bas-Saint-Laurent
B137: 137 | C137: =IF(LEN('Détail des projets'!B137)>0,'Détail des projets'!B137,"") -> Installation d'un nouveau séchoir à grains | D137: Implantation de solutions | H137: 16-Montérégie
B138: 138 | C138: =IF(LEN('Détail des projets'!B138)>0,'Détail des projets'!B138,"") -> Remplacement du préchauffeur no 3 | D138: Implantation de solutions | H138: 06-Montréal
B139: 139 | C139: =IF(LEN('Détail des projets'!B139)>0,'Détail des projets'!B139,"") -> Installation d'un séchoir à grains | D139: Implantation de solutions | H139: 12-Chaudière-Appalaches
B140: 140 | C140: =IF(LEN('Détail des projets'!B140)>0,'Détail des projets'!B140,"") -> Implantation de deux séchoirs électriques | D140: Implantation de solutions | H140: 04-Mauricie
B141: 141 | C141: =IF(LEN('Détail des projets'!B141)>0,'Détail des projets'!B141,"") -> Serre-Conversion chauffage-CII- électrique | D141: Implantation de solutions | H141: 16-Montérégie
B142: 142 | C142: =IF(LEN('Détail des projets'!B142)>0,'Détail des projets'!B142,"") -> Serre-Conversion chauffage-CII- électrique | D142: Implantation de solutions | H142: 16-Montérégie
B143: 143 | C143: =IF(LEN('Détail des projets'!B143)>0,'Détail des projets'!B143,"") -> Récupération de chaleur avec thermopompe pour le chauffage de l'eau de procédé | D143: Implantation de solutions | H143: 16-Montérégie
B144: 144 | C144: =IF(LEN('Détail des projets'!B144)>0,'Détail des projets'!B144,"") -> Ajout d'échangeurs de chaleur dans des bâtiments d'élevage de volailles | D144: Implantation de solutions | H144: 05-Estrie
B145: 145 | C145: =IF(LEN('Détail des projets'!B145)>0,'Détail des projets'!B145,"") -> Implantation d'un séchoir électrique | D145: Implantation de solutions | H145: 02-Saguenay--Lac-Saint-Jean
B146: 146 | C146: =IF(LEN('Détail des projets'!B146)>0,'Détail des projets'!B146,"") -> Implantation d'un chauffage électrique | D146: Implantation de solutions | H146: 02-Saguenay--Lac-Saint-Jean
B147: 147 | C147: =IF(LEN('Détail des projets'!B147)>0,'Détail des projets'!B147,"") -> Nouvelle usine de filtration des résidus - Mine LaRonde | D147: Implantation de solutions | H147: 08-Abitibi-Témiscamingue
B148: 148 | C148: =IF(LEN('Détail des projets'!B148)>0,'Détail des projets'!B148,"") -> Électrification d'une cannebergière | D148: Implantation de solutions | H148: 17-Centre-du-Québec
B149: 149 | C149: =IF(LEN('Détail des projets'!B149)>0,'Détail des projets'!B149,"") -> Serre agricole de culture ornementale – Efficacité énergétique | D149: Implantation de solutions | H149: 15-Laurentides
B150: 150 | C150: =IF(LEN('Détail des projets'!B150)>0,'Détail des projets'!B150,"") -> Acériculture-Évaporateur électrique | D150: Implantation de solutions | H150: 12-Chaudière-Appalaches
B151: 151 | C151: =IF(LEN('Détail des projets'!B151)>0,'Détail des projets'!B151,"") -> Acériculture-Évaporateur électrique | D151: Implantation de solutions | H151: 15-Laurentides
B152: 152 | C152: =IF(LEN('Détail des projets'!B152)>0,'Détail des projets'!B152,"") -> Électrification des séchoirs à bois | D152: Implantation de solutions | H152: 02-Saguenay--Lac-Saint-Jean
B153: 153 | C153: =IF(LEN('Détail des projets'!B153)>0,'Détail des projets'!B153,"") -> Installation d’un échangeur pour la ventilation de l'usine | D153: Implantation de solutions | H153: 05-Estrie
B154: 154 | C154: =IF(LEN('Détail des projets'!B154)>0,'Détail des projets'!B154,"") -> Une ligne électrique pour éviter l'utilisation d'une génératrice à l'Érablière Dany Michaud | D154: Implantation de solutions | H154: 01-Bas-Saint-Laurent
B155: 155 | C155: =IF(LEN('Détail des projets'!B155)>0,'Détail des projets'!B155,"") -> Conversion du pompage diesel vers l'électricité | D155: Implantation de solutions | H155: 14-Lanaudière
B156: 156 | C156: =IF(LEN('Détail des projets'!B156)>0,'Détail des projets'!B156,"") -> Isocanmed – Récupération de chaleur du procédé | D156: Implantation de solutions | H156: 04-Mauricie
B157: 157 | C157: =IF(LEN('Détail des projets'!B157)>0,'Détail des projets'!B157,"") -> Phase 3 - Projet d’agrandissement et d’efficacité énergétique | D157: Implantation de solutions | H157: 14-Lanaudière
B158: 158 | C158: =IF(LEN('Détail des projets'!B158)>0,'Détail des projets'!B158,"") -> Phase 4 - Projet d’agrandissement et d’efficacité énergétique | D158: Implantation de solutions | H158: 14-Lanaudière
B159: 159 | C159: =IF(LEN('Détail des projets'!B159)>0,'Détail des projets'!B159,"") -> Acériculture-Évaporateur électrique | D159: Implantation de solutions | H159: 01-Bas-Saint-Laurent
B160: 160 | C160: =IF(LEN('Détail des projets'!B160)>0,'Détail des projets'!B160,"") -> Beaulieu Canada - Nouvelle centrale thermique | D160: Implantation de solutions | H160: 16-Montérégie
B161: 161 | C161: =IF(LEN('Détail des projets'!B161)>0,'Détail des projets'!B161,"") -> Acériculture-Évaporateur électrique | D161: Implantation de solutions | H161: 05-Estrie
B162: 162 | C162: =IF(LEN('Détail des projets'!B162)>0,'Détail des projets'!B162,"") -> Construction d'une ligne électrique aérienne au champ 2326 | D162: Implantation de solutions | H162: 03-Capitale-Nationale
B163: 163 | C163: =IF(LEN('Détail des projets'!B163)>0,'Détail des projets'!B163,"") -> Conversion de la bouilloire au gaz naturel | D163: Implantation de solutions | H163: 05-Estrie
B164: 164 | C164: =IF(LEN('Détail des projets'!B164)>0,'Détail des projets'!B164,"") -> Ajout d'échangeurs de chaleur dans des bâtiments d'élevage de volailles | D164: Implantation de solutions | H164: 16-Montérégie
B165: 165 | C165: =IF(LEN('Détail des projets'!B165)>0,'Détail des projets'!B165,"") -> Optimisation énergétique des presses | D165: Implantation de solutions | H165: 16-Montérégie
B166: 166 | C166: =IF(LEN('Détail des projets'!B166)>0,'Détail des projets'!B166,"") -> Chauffage de l'accumulateur par récupération de l'énergie dans l'évacuation du traiteur 5 | D166: Implantation de solutions | H166: 16-Montérégie
B167: 167 | C167: =IF(LEN('Détail des projets'!B167)>0,'Détail des projets'!B167,"") -> Chauffage de l'accumulateur par récupération de l'énergie des fumées des chaudières | D167: Implantation de solutions | H167: 16-Montérégie
B168: 168 | C168: =IF(LEN('Détail des projets'!B168)>0,'Détail des projets'!B168,"") -> Récupération de l'énergie dans l'évacuation du traiteur 6 | D168: Implantation de solutions | H168: 16-Montérégie
B169: 169 | C169: =IF(LEN('Détail des projets'!B169)>0,'Détail des projets'!B169,"") -> Implantation - Projet d'amélioration de l'efficacité des réseaux de chauffage (Site Expo) | D169: Implantation de solutions | H169: 06-Montréal
B170: 170 | C170: =IF(LEN('Détail des projets'!B170)>0,'Détail des projets'!B170,"") -> Chauffage de la ventilation du garage H1 | D170: Implantation de solutions | H170: 06-Montréal
B171: 171 | C171: =IF(LEN('Détail des projets'!B171)>0,'Détail des projets'!B171,"") -> Serre agricole de tomates - Efficacité énergétique | D171: Implantation de solutions | H171: 16-Montérégie
B172: 172 | C172: =IF(LEN('Détail des projets'!B172)>0,'Détail des projets'!B172,"") -> Acériculture-Évaporateur électrique | D172: Implantation de solutions | H172: 12-Chaudière-Appalaches
B173: 173 | C173: =IF(LEN('Détail des projets'!B173)>0,'Détail des projets'!B173,"") -> Nouveau AMU et échangeur de chaleur pour l'apport d'air frais | D173: Implantation de solutions | H173: 05-Estrie
B174: 174 | C174: =IF(LEN('Détail des projets'!B174)>0,'Détail des projets'!B174,"") -> Installation d’un échangeur de chaleur de 30 000 CFM pour la ventilation du secteur maturation | D174: Implantation de solutions | H174: 06-Montréal
B175: 175 | C175: =IF(LEN('Détail des projets'!B175)>0,'Détail des projets'!B175,"") -> Récupération de chaleur des compresseurs et du dépoussiéreur avec un nouveau contrôleur central | D175: Implantation de solutions | H175: 15-Laurentides
B176: 176 | C176: =IF(LEN('Détail des projets'!B176)>0,'Détail des projets'!B176,"") -> Conversion d'un système de pompage | D176: Implantation de solutions | H176: 14-Lanaudière
B177: 177 | C177: =IF(LEN('Détail des projets'!B177)>0,'Détail des projets'!B177,"") -> Pl5 - Conversion du chauffage des bassins par une chaudière électrique | D177: Implantation de solutions | H177: 16-Montérégie
B178: 178 | C178: =IF(LEN('Détail des projets'!B178)>0,'Détail des projets'!B178,"") -> Chauffage solaire avec collecteur à faible émissivité | D178: Implantation de solutions | H178: 05-Estrie
B179: 179 | C179: =IF(LEN('Détail des projets'!B179)>0,'Détail des projets'!B179,"") -> Électrification d'une cannebergière | D179: Implantation de solutions | H179: 17-Centre-du-Québec
B180: 180 | C180: =IF(LEN('Détail des projets'!B180)>0,'Détail des projets'!B180,"") -> Électrification d'une cannebergière | D180: Implantation de solutions | H180: 17-Centre-du-Québec
B181: 181 | C181: =IF(LEN('Détail des projets'!B181)>0,'Détail des projets'!B181,"") -> Électrification d'une cannebergière | D181: Implantation de solutions | H181: 17-Centre-du-Québec
B182: 182 | C182: =IF(LEN('Détail des projets'!B182)>0,'Détail des projets'!B182,"") -> Remplacement d’un séchoir à grains par un séchoir écoénergétique | D182: Implantation de solutions | H182: 16-Montérégie
B183: 183 | C183: =IF(LEN('Détail des projets'!B183)>0,'Détail des projets'!B183,"") -> Remplacement des séchoirs à grains de la Ferme Porclair | D183: Implantation de solutions | H183: 17-Centre-du-Québec
B184: 184 | C184: =IF(LEN('Détail des projets'!B184)>0,'Détail des projets'!B184,"") -> Projet d'efficacité énergétique | D184: Implantation de solutions | H184: 16-Montérégie
B185: 185 | C185: =IF(LEN('Détail des projets'!B185)>0,'Détail des projets'!B185,"") -> Optimisation de la centrale d’enrobés bitumineux par vis de préchauffage du GBR | D185: Implantation de solutions | H185: 16-Montérégie
B186: 186 | C186: =IF(LEN('Détail des projets'!B186)>0,'Détail des projets'!B186,"") -> Serre de plants : efficacité énergétique | D186: Implantation de solutions | H186: 15-Laurentides
B187: 187 | C187: =IF(LEN('Détail des projets'!B187)>0,'Détail des projets'!B187,"") -> Optimisation des fours de trempe | D187: Implantation de solutions | H187: 04-Mauricie
B188: 188 | C188: =IF(LEN('Détail des projets'!B188)>0,'Détail des projets'!B188,"") -> Conversion au gaz naturel | D188: Implantation de solutions | H188: 05-Estrie
B189: 189 | C189: =IF(LEN('Détail des projets'!B189)>0,'Détail des projets'!B189,"") -> Mur solaire et rideaux d'air | D189: Implantation de solutions | H189: 16-Montérégie
B190: 190 | C190: =IF(LEN('Détail des projets'!B190)>0,'Détail des projets'!B190,"") -> Construction d’une ligne électrique | D190: Implantation de solutions | H190: 01-Bas-Saint-Laurent
B191: 191 | C191: =IF(LEN('Détail des projets'!B191)>0,'Détail des projets'!B191,"") -> Intégration de thermopompe | D191: Implantation de solutions | H191: 17-Centre-du-Québec
B192: 192 | C192: =IF(LEN('Détail des projets'!B192)>0,'Détail des projets'!B192,"") -> ESA-3000 : réduction des émissions de GES dans le poulailler de Ferme Sylvain Proulx inc. | D192: Implantation de solutions | H192: 16-Montérégie
B193: 193 | C193: =IF(LEN('Détail des projets'!B193)>0,'Détail des projets'!B193,"") -> ESA-3000 : réduction des émissions de GES dans le poulailler De la comté SENC | D193: Implantation de solutions | H193: 05-Estrie
B194: 194 | C194: =IF(LEN('Détail des projets'!B194)>0,'Détail des projets'!B194,"") -> Projet LPI | D194: Implantation de solutions | H194: 06-Montréal
B195: 195 | C195: =IF(LEN('Détail des projets'!B195)>0,'Détail des projets'!B195,"") -> Serre-Conversion chauffage-CII- électrique | D195: Implantation de solutions | H195: 07-Outaouais
B196: 196 | C196: =IF(LEN('Détail des projets'!B196)>0,'Détail des projets'!B196,"") -> Implantation et électrification de nos chariots élévateurs | D196: Implantation de solutions | H196: 12-Chaudière-Appalaches
B197: 197 | C197: =IF(LEN('Détail des projets'!B197)>0,'Détail des projets'!B197,"") -> Construction d'un bâtiment d'élevage avec échangeurs de chaleur | D197: Implantation de solutions | H197: 05-Estrie
B198: 198 | C198: =IF(LEN('Détail des projets'!B198)>0,'Détail des projets'!B198,"") -> Conversion d'un système de pompage | D198: Implantation de solutions | H198: 14-Lanaudière
B199: 199 | C199: =IF(LEN('Détail des projets'!B199)>0,'Détail des projets'!B199,"") -> Optimisation de la centrale d’enrobés bitumineux par vis de préchauffage du GBR | D199: Implantation de solutions | H199: 16-Montérégie
B200: 200 | C200: =IF(LEN('Détail des projets'!B200)>0,'Détail des projets'!B200,"") -> Ajout d'échangeurs de chaleur dans un bâtiment d'élevage de volailles | D200: Implantation de solutions | H200: 05-Estrie
B201: 201 | C201: =IF(LEN('Détail des projets'!B201)>0,'Détail des projets'!B201,"") -> Installation d'une nouvelle chaudière à vapeur | D201: Implantation de solutions | H201: 03-Capitale-Nationale
B202: 202 | C202: =IF(LEN('Détail des projets'!B202)>0,'Détail des projets'!B202,"") -> Projet d'économie d'énergie de Montréal Chrome | D202: Implantation de solutions | H202: 06-Montréal
B203: 203 | C203: =IF(LEN('Détail des projets'!B203)>0,'Détail des projets'!B203,"") -> « SCORE » - Saumure et Chaufferie : optimisation des ressources énergétiques | D203: Implantation de solutions | H203: 16-Montérégie
B204: 204 | C204: =IF(LEN('Détail des projets'!B204)>0,'Détail des projets'!B204,"") -> Infasco - Projet écoénergétique | D204: Implantation de solutions | H204: 16-Montérégie
B205: 205 | C205: =IF(LEN('Détail des projets'!B205)>0,'Détail des projets'!B205,"") -> Sivaco - Projet écoénergétique | D205: Implantation de solutions | H205: 16-Montérégie
B206: 206 | C206: =IF(LEN('Détail des projets'!B206)>0,'Détail des projets'!B206,"") -> Installation d'échangeurs de chaleur dans un bâtiment d'élevage de volailles | D206: Implantation de solutions | H206: 17-Centre-du-Québec
B207: 207 | C207: =IF(LEN('Détail des projets'!B207)>0,'Détail des projets'!B207,"") -> Conversion de la chaudière au mazout no 2 vers l'électricité | D207: Implantation de solutions | H207: 12-Chaudière-Appalaches
B208: 208 | C208: =IF(LEN('Détail des projets'!B208)>0,'Détail des projets'!B208,"") -> Chauffage de l’air du bâtiment par récupération de chaleur | D208: Implantation de solutions | H208: 05-Estrie
B209: 211 | C209: =IF(LEN('Détail des projets'!B209)>0,'Détail des projets'!B209,"") -> Installation de deux tamiseurs Triple-deck pour faire une ségrégation du lit de boulettes | D209: Implantation de solutions | H209: 09-Côte-Nord
B210: 212 | C210: =IF(LEN('Détail des projets'!B210)>0,'Détail des projets'!B210,"") -> Arboria | D210: Implantation de solutions | H210: 14-Lanaudière
B211: ='Détail des projets'!A209+24 -> 209 | C211: =IF(LEN('Détail des projets'!B211)>0,'Détail des projets'!B211,"") -> Mur solaire, récupération de chaleur de compresseur et rideaux d'air | D211: Implantation de solutions | H211: 12-Chaudière-Appalaches
B212: ='Détail des projets'!A210+24 -> 210 | C212: =IF(LEN('Détail des projets'!B212)>0,'Détail des projets'!B212,"") -> Conversion du système de chauffage à combustibles fossiles par de la géothermie | D212: Implantation de solutions | H212: 04-Mauricie
B213: ='Détail des projets'!A211+24 -> 211 | C213: =IF(LEN('Détail des projets'!B213)>0,'Détail des projets'!B213,"") -> Installation d'un séchoir à grains | D213: Implantation de solutions | H213: 05-Estrie
B214: ='Détail des projets'!A212+24 -> 212 | C214: =IF(LEN('Détail des projets'!B214)>0,'Détail des projets'!B214,"") -> Conversion chauffage-CII- électrique | D214: Implantation de solutions | H214: 02-Saguenay--Lac-Saint-Jean
B215: ='Détail des projets'!A213+24 -> 213 | C215: =IF(LEN('Détail des projets'!B215)>0,'Détail des projets'!B215,"") -> Acériculture-Évaporateur électrique | D215: Implantation de solutions | H215: 01-Bas-Saint-Laurent
B216: ='Détail des projets'!A214+24 -> 214 | C216: =IF(LEN('Détail des projets'!B216)>0,'Détail des projets'!B216,"") -> Chaudière électrique no 5 | D216: Implantation de solutions | H216: 06-Montréal
B217: ='Détail des projets'!A215+24 -> 215 | C217: =IF(LEN('Détail des projets'!B217)>0,'Détail des projets'!B217,"") -> Électrification et modernisation d'un procédé de concassage | D217: Implantation de solutions | H217: 15-Laurentides
... 66 more rows

Sheet Indicateurs
B2: =Utilitaire!E8 -> Plan pour une économie verte 2030 | J2: Indicateurs | S2: =Accueil!D65 & " - " & Accueil!D53 -> MERN (SITE) - 1.4.2.1
L3: =Accueil!D58 -> en cours | S3: ="Action " & Accueil!D58 -> Action en cours
L4: =Accueil!D65 -> MERN (SITE)
B5: Conseils de rédaction : | T5: Informations en date du : | V5: =Utilitaire!G6 -> 2022-03-31
B6: - Veuillez vérifier que les indicateurs inscrits au tableau de la ligne 22 sont adéquats et que vous serez en mesure d'en fournir les résultats. - Vous pouvez nous faire part de vos commentaires en bleu dans la case réservée à cet effet. - Le cas échéant, veuillez vérifier et corriger les résultats inscrits au tableau de la ligne 69.
B7: - Pour ajouter de nouveaux indicateurs à votre fiche, veuillez nous faire parvenir une fiche indicateur remplie. Le gabarit de fiche indicateur est disponible au lien ci-contre. (Fiche indicateur)
B20: Informations en date du : | E20: 2022-03-31
B22: INDICATEURS DE PERFORMANCE
B23: Cible | C23: Unité de mesure | D23: Année prévue d'atteinte de la cible | E23: Description de l'indicateur | F23: Type d'indicateur | G23: Finalités des indicateurs | H23: 2019-2020 | I23: 2020-2021 | J23: 2021-2022 | K23: 2022-2023 | L23: 2021-2022 | M23: 2022-2023 | N23: 2023-2024 | O23: 2024-2025 | P23: 2025-2026 | Q23: 2026-2027 | R23: 2027-2028 | S23: RÉSULTAT À COMPARER AVEC LA CIBLE | T23: Pourcentage d'atteinte de la cible | U23: Pourcentage en électrification | V23: Commentaires sur les résultats
H24: Réel | I24: Réel | J24: Réel | K24: Réel | L24: Prévu | M24: Prévu | N24: Prévu | O24: Prévu | P24: Prévu | Q24: Prévu | R24: Prévu | V24: (justification des écarts à la cible)
A25: 1 | B25: 100 | C25: % | D25: 2030 | E25: Pourcentage d’avancement de l’action | F25: Minimum à atteindre | G25: Atténuation des changements climatiques | H25: =PourcentageAvancementJbf(Utilitaire!C229,'Détail des projets'!Q284,1000000*Accueil!$D$67) -> 0 | I25: =PourcentageAvancementJbf(Utilitaire!D229,'Détail des projets'!R284,1000000*Accueil!$D$67) -> 0 | J25: =PourcentageAvancementJbf(Utilitaire!E229,'Détail des projets'!S284,1000000*Accueil!$D$67) -> 0.08328869696 | T25: =IF(COUNTA(B25)=1,IF(COUNTA(S25)=1,IF(F25="Minimum à atteindre",IF(B25=0,IF(S25>0,1,0),S25/B25),IF(F25="Maximum à ne pas dépasser",IF(B25=0,IF(S25<0,1,0),IF(S25-B25>0,B25/S25,1)),IF(F25="Binaire",IF(B25=S25,1,0),""))),0),"") -> 0
A26: 2 | B26: 14730 | C26: T éq. CO2 | D26: 2023 | E26: Réduction des émissions de gaz à effet de serre (base annuelle) | F26: Minimum à atteindre | J26: 588 | S26: 588 | T26: =IF(COUNTA(B26)=1,IF(COUNTA(S26)=1,IF(F26="Minimum à atteindre",IF(B26=0,IF(S26>0,1,0),S26/B26),IF(F26="Maximum à ne pas dépasser",IF(B26=0,IF(S26<0,1,0),IF(S26-B26>0,B26/S26,1)),IF(F26="Binaire",IF(B26=S26,1,0),""))),0),"") -> 0.0399185336 | V26: La cible GES est provisoire. Une validation sera faite en fonction des directives pour la quantification des réductions d’émissions de GES liées aux actions du Plan pour une économie verte 2030 et à son plan de mise en œuvre lors du renouvellement du programme prévu à l’automne 2022.
A27: 3 | B27: 108020 | C27: T éq. CO2 | D27: 2025 | E27: Réduction des émissions de gaz à effet de serre (base annuelle) | F27: Minimum à atteindre | T27: =IF(COUNTA(B27)=1,IF(COUNTA(S27)=1,IF(F27="Minimum à atteindre",IF(B27=0,IF(S27>0,1,0),S27/B27),IF(F27="Maximum à ne pas dépasser",IF(B27=0,IF(S27<0,1,0),IF(S27-B27>0,B27/S27,1)),IF(F27="Binaire",IF(B27=S27,1,0),""))),0),"") -> 0 | V27: La cible GES est provisoire. Une validation sera faite en fonction des directives pour la quantification des réductions d’émissions de GES liées aux actions du Plan pour une économie verte 2030 et à son plan de mise en œuvre lors du renouvellement du programme prévu à l’automne 2022.
A28: 4 | B28: 491000 | C28: T éq. CO2 | D28: 2030 | E28: Réduction des émissions de gaz à effet de serre (base annuelle) | F28: Minimum à atteindre | T28: 0 | V28: La cible GES est provisoire. Une validation sera faite en fonction des directives pour la quantification des réductions d’émissions de GES liées aux actions du Plan pour une économie verte 2030 et à son plan de mise en œuvre lors du renouvellement du programme prévu à l’automne 2022.
A29: 5 | B29: 43 | C29: Étude de conversion | D29: 2023 | E29: Nombre d’étude en efficacité énergétique | F29: Minimum à atteindre | J29: 23 | S29: 23 | T29: 0.5348837209
A30: 6 | B30: 89 | C30: Étude de conversion | D30: 2025 | E30: Nombre d’étude en efficacité énergétique | F30: Minimum à atteindre | T30: 0
A31: 7 | B31: 112 | C31: Étude de conversion | D31: 2030 | E31: Nombre d’étude en efficacité énergétique | F31: Minimum à atteindre | T31: 0
A32: 8 | B32: 240 | C32: Projet de conversion | D32: 2023 | E32: Nombre de projets implantées en efficacité énergétique | F32: Minimum à atteindre | J32: 227 | S32: 227 | T32: 0.9458333333
A33: 9 | B33: 470 | C33: Projet de conversion | D33: 2025 | E33: Nombre de projets implantées en efficacité énergétique | F33: Minimum à atteindre | T33: 0
A34: 10 | B34: 585 | C34: Projet de conversion | D34: 2030 | E34: Nombre de projets implantées en efficacité énergétique | F34: Minimum à atteindre | T34: 0
A35: 11
A36: 12
A37: 13
A38: 14
A39: 15
A40: 16
A41: 17
A42: 18
A43: 19
A44: 20
A45: 21 | AR45: FALSE
B69: PRÉVISIONS DES RETOMBÉES SUR LES RÉDUCTIONS DES ÉMISSIONS DE GES
B70: Niveau de certitude | E70: Lieu | F70: 2022 | G70: 2022 | H70: 2023 | I70: 2024 | J70: 2025 | K70: 2030 | L70: 2030 | M70: 2026 | N70: 2030 | O70: 2035 | P70: 2027 | Q70: 2028 | R70: 2029 | S70: 2035 | T70: 2040 | U70: 2050 | V70: Commentaires sur les résultats
B71: Pérennité des réductions d'émissions de GES réalisées à ce jour (T éq. CO2) | E71: Au Québec
E72: Hors Québec
E73: Non distingué
B74: Développement du potentiel de réduction des émissions de GES pour le futur (T éq. CO2) | E74: Au Québec
E75: Hors Québec
E76: Non distingué
B153: ADAPTATION AUX EFFETS DES CHANGEMENTS CLIMATIQUES
B154: Solutions d'adaptation proposées | D154: Lignes concernées de l'onglet Détail des projets | E154: Étape | F154: Ajustements | I154: Risques | K154: Effets des changements climatiques | M154: Région | S154: Échelle humaine | V154: Échelle environnementale
F155: La solution agit sur : | I155: afin de protéger : | K155: de : | S155: (estimation du nombre de personnes desservies) | V155: (estimation du nombre d'espèces desservies)
B292: Ajouter une ligne

Sheet Commentaires (hidden)
B2: =Utilitaire!E8 -> Plan pour une économie verte 2030 | T2: COF
T3: Frais
B4: Commentaires | G4: =Accueil!D65 & " - " & Accueil!D53 -> MERN (SITE) - 1.4.2.1 | T4: Détail des projets
G5: ="Action " & Accueil!D58 -> Action en cours | T5: Détail des projets (GES)
B6: Conseils de rédaction : | G6: Informations en date du : | O6: =Utilitaire!G6 -> 2022-03-31 | T6: Bilan GES
B7: - Veuillez inscrire ici tout commentaire pertinent. - Veuillez inscrire en bleu les commentaires que vous souhaitez ne pas publier. | T7: Indicateurs
T8: Toutes-Autre
T12: 2013-2014
T13: 2014-2015
T14: 2015-2016
T15: 2016-2017
T16: 2017-2018
T17: 2018-2019
T18: 2019-2020
T19: 2020-2021
B20: Informations en date du : | E20: 2022-03-31 | T20: 2021-2022
T21: 2022-2023
T22: 2023-2024
B24: Commentaires | M24: Section concernée | O24: Date | Q24: Nom du commentateur | R24: Courriel du commentateur

Sheet Évaluation (hidden)
B2: =Utilitaire!E8 -> Plan pour une économie verte 2030 | H2: Conseils de rédaction : - Cet onglet sera pour usage interne seulement, il ne sera pas publié.
B3: ="Action " & Accueil!D58 -> Action en cours
B4: =Accueil!D55 -> 1.4.2.1a | C4: =Accueil!E55 -> Appuyer la réalisation de projets en efficacité énergétique et en conversion énergétique - Programme ÉcoPerformance Industrie - Standard
B5: Ministère porteur: | C5: =Accueil!$D$65 -> MERN (SITE)
B6: Évaluation
B38: Production d'un rapport d'évaluation complet prévu dans le cadre de cette action :
B40: Liste des livrables
B41: Titre du document | D41: Date du document | F41: Type de document | I41: Date prévue de transmission au CGFV | K41: Date réelle de transmission au CGFV | M41: Référence | N41: Commentaires
I42: 2021-01-01 | K42: 2021-01-01
B146: Ajouter une ligne
B204: Évaluation de l'action par rapport au Plan pour une économie verte 2030
C209: Début : | D209: =Accueil!$D$68 -> 2021-04-01 | I209: Fin : | J209: =Accueil!$K$68 -> 2025-12-31
B210: Résultats attendus : | C210: =IF(LEN(Description!C51)>0,Description!C51,"") -> Les résultats directs attendus sont l'économie d'énergie, la réduction des émissions de GES, des investissements importants dans le secteur industriel, la création d'emplois et une amélioration soutenue de la performance du secteur industriel au Québec. Les autres avantages ou co-bénéfices attendus de l'action sont de faire appel à des énergies renouvelables ou moins émettrices en carbone, d'améliorer les procédés industriels, de permettre de faire des choix de procédés et d'équipements plus performants lors de nouveaux projets. Également, l'action permet de transformer le marché et de dynamiser les interventions dans le secteur industriel. Plusieurs analyses permettront aux entreprises de se conscientiser sur leur consommation énergétique et de prendre action pour améliorer leur performance.
B211: Résultats obtenus (Cibles, indicateurs et description) : | C211: =IF(COUNTA(Indicateurs!B25:B45)=0,0,AVERAGE(Indicateurs!$T$25:$T$45)) -> 0.1520635588 | D211: =IF(LEN(Description!C52)>0,Description!C52,"") -> Du 1er avril 2021 au 31 mars 2022, 23 dossiers d’analyse et 227 projets d’implantation ont été acceptés par le ministre, pour une réduction annuelle potentielle de 196 789 tCO2é, nécessitant des investissements de 236,5 M$ grâce à des aides financières de 104,8 M$ pour un coût moyen de l’aide financière de 25.37 $/t sur la durée de vie des équipements (21 ans). Ces investissements entraîneraient la création de 3 310 emplois.
D212: =IF(LEN(Description!C53)>0,Description!C53,"") -> 
B217: Type d'évaluation :
B218: Est-ce que les résultats obtenus dans le cadre de l'action sont satisfaisants?
B219: Quelles sont les améliorations possibles pour le futur?
B220: Quels sont les forces et les points positifs de l'action?
B221: Quelle est votre recommandation quant à la poursuite de cette action?
B222: Autres commentaires

Sheet Validation (hidden)
B2: =Utilitaire!E8 -> Plan pour une économie verte 2030 | F2: =Accueil!D65 & " - " & Accueil!D53 -> MERN (SITE) - 1.4.2.1 | J2: Détail des projets
G3: ="Action " & Accueil!D58 -> Action en cours
B5: Conseils de rédaction | E5: Informations en date du: | G5: =Utilitaire!G6 -> 2022-03-31
B6: - Veuillez faire les vérifications requises.
B11: Votre appréciation de la fiche de suivi et suggestions pour les prochains exercices
B17: Grille de validation de la fiche de suivi
B18: Onglet Accueil | G18: Commentaires
B19: Vérifier que toutes les cases sont remplies.
B20: Vérifier, s'il y a lieu, que le nom du programme est inscrit.
B21: Onglet Administration | G21: Commentaires
B22: Vérifier que le tableau de la ligne 25 est complété.
B23: Vérifiez que la liste des livrables convient et, le cas échéant, transmettez les documents requis au BECC.
B24: Onglet Description | G24: Commentaires
B25: Vérifier que l'onglet est rempli au meilleur de votre connaissance
B26: Vérifier que l'entièreté du texte est lisible.
B27: Vérifier que l'échéancier dans la section "Mise en œuvre" est inscrit.
B28: Vérifier que le tableau "Plans, stratégies, politiques incluant la mise en œuvre de cette action" est rempli.
B29: Onglet Détail des projets | G29: Commentaires
B30: Vérifier que l'onglet est rempli au meilleur de votre connaissance
B31: Onglet Adaptation | G31: Commentaires
B32: Vérifier que l'onglet est rempli au meilleur de votre connaissance
B33: Onglet GES | G33: Commentaires
B34: Vérifier que les deux cases de la ligne 20 sont bien remplies.
B35: Onglet Indicateurs | G35: Commentaires
B36: Vérifier que la liste d'indicateurs inscrits convient et que vous serez en mesure de fournir les résultats et une cible.
B37: Vérifier que le tableau "PRÉVISIONS DES RETOMBÉES SUR LES RÉDUCTIONS DES ÉMISSIONS DE GES" est bien rempli si votre action vise la réduction des GES.
B38: Onglet Commentaires | G38: Commentaires
B39: Inscrire en noir les commentaires nécessaires à afficher lors de la publication des fiches
A58: Code de couleur | B58: Onglet concerné | C58: no ligne | D58: Description de la problématique | E58: No d'erreur | G58: Commentaires
B59: Description | D59: Les informations "Description, objectif, clientèle, critères d'admissibilité, processus de suivi de l'action, résultats attendus, résultats obtenus dans la dernière année, résultats obtenus, finalité, catégorie" sont manquantes dans l'onglet Description. | E59: 18
B60: détail des projets | D60: Aucun projet n'est mentionné dans la fiche. Cette situation est acceptable seulement si l'action n'est pas encore lancée (statut non démarrée ou en élaboration). | E60: 12
B61: GES | D61: Les informations "Potentiel de réduction des GES, réduction réelle des émissions de GES" sont manquantes dans l'onglet GES. | E61: 18
B62: indicateurs | D62: Aucun indicateur n'est inscrit pour cette action. Acceptable seulement si l'action n'est pas démarrée. | E62: 20

Sheet Prochain Exercice-Commentaires (hidden)
B2: =Utilitaire!E8 -> Plan pour une économie verte 2030
E4: =Accueil!D65 & " - " & Accueil!D53 -> MERN (SITE) - 1.4.2.1
E5: ="Action " & Accueil!D58 -> Action en cours
B6: Conseils de rédaction : | E6: Info en date du : | F6: =Utilitaire!G6 -> 2022-03-31
B7: - Veuillez inscrire ici tout commentaire améliorer pour le prochain exercice.
B10: Onglet de la fiche | C10: Case | D10: Commentaire
B11: Administration | C11: d37 | D11: Veuillez remplir ce tableau
B106: HQ
B107: MAMH
B108: MAPAQ
B109: MEES
B110: MEI
B111: MELCC - BECC
B112: MELCC - hors BECC
B113: MERN
B114: MERN (SITE)
B115: MFFP
B116: MFQ
B117: MRIF
B118: MSP
B119: MSSS
B120: MTESS
B121: MTO
B122: MTQ
B123: RBQ
B124: MELCC - Gouvernance
B125: CGFV
